Workbook

Sheet BrewReport
A1: Bryggeri: | C1: =IF(Data!B2="","",Data!B2) -> eyeT Brewery
A2: Bryg navn:
A3: Bryg nr.: | C3: 73 | E3: Type: | F3: Cream Ale | I3: Dato:
A4: Typiske data: | C4: EBC | D4: =IF($F$3="","",CONCATENATE(VLOOKUP($F$3,Typer!$C$4:$N$102,8,FALSE)," - ",VLOOKUP($F$3,Typer!$C$4:$N$102,9,FALSE))) -> 10 - 5 | E4: OG | F4: =IF($F$3="","",CONCATENATE(VLOOKUP($F$3,Typer!$C$4:$N$102,2,FALSE)," - ",VLOOKUP($F$3,Typer!$C$4:$N$102,3,FALSE))) -> 1055 - 1042 | H4: IBU | I4: =IF($F$3="","",CONCATENATE(VLOOKUP($F$3,Typer!$C$4:$N$102,10,FALSE)," - ",VLOOKUP($F$3,Typer!$C$4:$N$102,11,FALSE))) -> 20 - 15 | K4: RBR | L4: =IF($F$3="","",VLOOKUP($F$3,Typer!$C$4:$N$102,12,FALSE)) -> 0.38
A6: Dette brygs data: | D6: =IF(Data!D26=0,"",Data!D26) -> 10 | E6: OG | F6: =IF(C19=0,"",IF(C50="",IF(J3="",Data!F26,C49),IF(J3="",Data!F26,C50))) -> 1055 | H6: IBU | I6: =IF(Data!F54=0,"",Data!F54) -> 23.73084 | K6: RBR | L6: =IF(I50="","",IF(C52="",IF(I6="","",(Data!F54/(F6-1000)*(1+((Data!E30/100)-0.7655)))),(Data!F54/(F6-1000)*(1+((C53/100)-0.7655))))) -> 0.4420408287
A7: Ingredienser | D7: fra: | E7: Hjemmebryggeren | G7: Mæskning
A8: Malttype | C8: Mængde | D8: Enhed | E8: Priser | G8: Proces | I8: Tid | K8: Temperatur
A9: Pale Ale | C9: 5.5 | D9: kg | E9: =IFERROR(VLOOKUP($A9,Malt!$A$3:$K$75,COLUMN(INDIRECT(CONCATENATE(HLOOKUP($E$7,Malt!$G$1:$K$2,2,FALSE),2))),FALSE),"") -> 104.5
D10: kg | E10: =IFERROR(VLOOKUP($A10,Malt!$A$3:$K$75,COLUMN(INDIRECT(CONCATENATE(HLOOKUP($E$7,Malt!$G$1:$K$2,2,FALSE),2))),FALSE),"") ->  | G10: Indmæskning | I10: 20 | J10: min | K10: =CONCATENATE("35 - ",K11) -> 35 - 65 | L10: °C
D11: kg | E11: =IFERROR(VLOOKUP($A11,Malt!$A$3:$K$75,COLUMN(INDIRECT(CONCATENATE(HLOOKUP($E$7,Malt!$G$1:$K$2,2,FALSE),2))),FALSE),"") ->  | G11: Mæskning 1 | I11: 75 | J11: min | K11: 65 | L11: °C
D12: kg | E12: =IFERROR(VLOOKUP($A12,Malt!$A$3:$K$75,COLUMN(INDIRECT(CONCATENATE(HLOOKUP($E$7,Malt!$G$1:$K$2,2,FALSE),2))),FALSE),"") ->  | G12: Mæskning 2 | J12: min | L12: °C
D13: kg | E13: =IFERROR(VLOOKUP($A13,Malt!$A$3:$K$75,COLUMN(INDIRECT(CONCATENATE(HLOOKUP($E$7,Malt!$G$1:$K$2,2,FALSE),2))),FALSE),"") ->  | G13: Mæskning 3 | J13: min | L13: °C
D14: kg | E14: =IFERROR(VLOOKUP($A14,Malt!$A$3:$K$75,COLUMN(INDIRECT(CONCATENATE(HLOOKUP($E$7,Malt!$G$1:$K$2,2,FALSE),2))),FALSE),"") ->  | G14: Mæskning 4 | J14: min | L14: °C
D15: kg | E15: =IFERROR(VLOOKUP($A15,Malt!$A$3:$K$75,COLUMN(INDIRECT(CONCATENATE(HLOOKUP($E$7,Malt!$G$1:$K$2,2,FALSE),2))),FALSE),"") -> 
D16: kg | E16: =IFERROR(VLOOKUP($A16,Malt!$A$3:$K$75,COLUMN(INDIRECT(CONCATENATE(HLOOKUP($E$7,Malt!$G$1:$K$2,2,FALSE),2))),FALSE),"") ->  | G16: Forsukring | I16: 15 | J16: min | K16: 72 | L16: °C
D17: kg | E17: =IFERROR(VLOOKUP($A17,Malt!$A$3:$K$75,COLUMN(INDIRECT(CONCATENATE(HLOOKUP($E$7,Malt!$G$1:$K$2,2,FALSE),2))),FALSE),"") ->  | G17: Afmæskning | I17: 10 | J17: min | K17: 78 | L17: °C
D18: kg | E18: =IFERROR(VLOOKUP($A18,Malt!$A$3:$K$75,COLUMN(INDIRECT(CONCATENATE(HLOOKUP($E$7,Malt!$G$1:$K$2,2,FALSE),2))),FALSE),"") -> 
A19: Total | C19: =SUM(C9:C18) -> 5.5 | D19: kg | E19: =IF(SUM(E9:E15)=0,"",SUM(E9:E15)) -> 104.5 | G19: Fraløb | I19: 15 | J19: min | K19: 78 | L19: °C
A21: Humletype | B21: Anv. | C21: Mængde | D21: Enhed | G21: Kogning | I21: Tid før slut | K21: Enhed
A22: Bitterhumle | G22: I alt | I22: 90 | K22: min
A23: Cascade | B23: =IF(A23="","",VLOOKUP(A23,Humle!$A$2:$H$37,7,FALSE)) -> BA | C23: 37 | D23: gram | E23: Justeres evt. | G23: =IF(A23="","",A23) -> Cascade | I23: 60 | K23: min.
B24: =IF(A24="","",VLOOKUP(A24,Humle!$A$2:$H$37,7,FALSE)) ->  | D24: gram | G24: =IF(A24="","",A24) ->  | K24: min.
B25: =IF(A25="","",VLOOKUP(A25,Humle!$A$2:$H$37,7,FALSE)) ->  | D25: gram | G25: =IF(A25="","",A25) ->  | K25: min.
A26: Smagshumle
B27: =IF(A27="","",VLOOKUP(A27,Humle!$A$2:$H$37,7,FALSE)) ->  | D27: gram | G27: =IF(A27="","",A27) ->  | K27: min
B28: =IF(A28="","",VLOOKUP(A28,Humle!$A$2:$H$37,7,FALSE)) ->  | D28: gram | G28: =IF(A28="","",A28) ->  | K28: min
B29: =IF(A29="","",VLOOKUP(A29,Humle!$A$2:$H$37,7,FALSE)) ->  | D29: gram | G29: =IF(A29="","",A29) ->  | K29: min
A30: Aromahumle
A31: Cascade | B31: =IF(A31="","",VLOOKUP(A31,Humle!$A$2:$H$37,7,FALSE)) -> BA | C31: 30 | D31: gram | G31: =IF(A31="","",A31) -> Cascade | I31: 5 | K31: min
B32: =IF(A32="","",VLOOKUP(A32,Humle!$A$2:$H$37,7,FALSE)) ->  | D32: gram | G32: =IF(A32="","",A32) ->  | K32: min
B33: =IF(A33="","",VLOOKUP(A33,Humle!$A$2:$H$37,7,FALSE)) ->  | D33: gram | G33: =IF(A33="","",A33) ->  | K33: min
A34: Andet | E34: Manuel indtast
D35: gram | G35: =IF($A$35="","",$A$35) ->  | K35: min
A36: Rørsukker | C36: 440 | D36: gram | G36: =IF($A$36="","",$A$36) -> Rørsukker | I36: 60 | K36: min
D37: gram | G37: =IF($A$37="","",$A$37) ->  | K37: min
D38: gram | G38: =IF($A$38="","",$A$38) ->  | K38: min
D39: gram | G39: =IF($A$39="","",$A$39) ->  | K39: min
D40: gram | G40: =IF($A$40="","",$A$40) ->  | K40: min
A41: Klar Urt | C41: 7 | D41: gram | G41: =IF($A$41="","",$A$41) -> Klar Urt | I41: 15 | K41: min
A43: Målinger | G43: Køling
C44: Målt | D44: Enhed | K44: Enhed
A45: Udbytte efter mæskning | D45: liter | G45: Tid | I45: 15 | K45: min
A46: Udbytte til gæring | D46: liter | G46: Nedkøling til | I46: 25 | K46: °C
A47: Udbytte til tapning | D47: liter
A48: Bryggedato: | C48: =IF(J3="","",J3) ->  | G48: Gæring - 1. ferm.
A49: Vægtfylde efter mæskning | D49: Oeschle | E49: =IF(C49="","",CONCATENATE("Effektivitet: ",ROUND((Data!A24*100),0)," %")) ->  | G49: Anvend 2 slags gær: | I49: Mangrove Jack's California Lager M54
A50: Vægtfylde før gæring | D50: Oeschle | E50: =IF(C50="","",CONCATENATE("Effektivitet: ",ROUND((Data!A25*100),0)," %")) ->  | G50: Tilsat gær type: | I50: Mangrove Jack´s New World Strong Ale M42
A51: Flaskedato: | C51: =IF(I68="","",I68) ->  | G51: Gæringstemperatur °C | H51: 18 | I51: Dato | K51: Gærer i spand
A52: Vægtfylde efter gæring | D52: Oeschle | G52: Gæring i gang | K52: 5
A53: Forgæringsgrad | C53: =IF(C50="","",IF(C52="","",ROUND(((C50-C52)/(C50-1000))*100,0))) ->  | D53: % | E53: =IF(Data!F30="","",CONCATENATE("Estimeret: ",ROUND((Data!F30),1)," %")) -> Estimeret: 5,7 % | G53: Gæring færdig
A54: Alkohol indhold | C54: =IF(C50=0,"",IF(C52=0,"",ROUND(((C50-C52)/7.5)+(IF(I66=0,0,(((ROUND(I66/(IF(C46=0,C45,C46)),1))-2)/10))),1))) ->  | D54: % Vol. | E54: =IF(C54="",CONCATENATE("Genstande: ",Data!F35),CONCATENATE("Genstande: ",Data!F36)) -> Genstande: 1,9 | G54: Tid | I54: =IF(I53=0,0,(I53-I52)) -> 0 | K54: dage
A56: Tapning - fordelt på flaskestørrelse | G56: Modning - 2. ferm.
A57: Label Farve / Kapsel | G57: Kommentar
A58: Flasker | B58: à | C58: 2 liter | I58: Dato | K58: Modner i spand
A59: Flasker | B59: à | C59: 1 liter | G59: Modning fra | K59: ?
A60: Flasker | B60: à | C60: ¾ liter | D60: 2 | E60: 0,66 liter | G60: Modning til
A61: Flasker | B61: à | C61: ½ liter | D61: 39 | G61: Tid | I61: =IF(I60=0,0,(I60-I59)) -> 0 | K61: dage
A62: Flasker | B62: à | C62: ⅓ liter | D62: 2
A63: Flasker | B63: à | C63: ¼ liter | G63: Karbonering - 3. ferm.
A64: Antal flasker i alt | D64: =SUM(D58:D63) -> 43 | G64: Tilsat gær type:
G65: Anbefalet mængde sukker til karbonering: | I65: =IF(F3="","",ROUND((((VLOOKUP(F3,Typer!C3:T102,15,FALSE)-VLOOKUP(H51,Gær!I2:J29,2,FALSE))*4)*C47),0)) -> 0 | K65: =CONCATENATE("gram = ",IF(C47=0,"?",IF(I65="",0,(ROUND(I65/C47,1))))," g/ltr.") -> gram = ? g/ltr.
A66: Brygnoter: | B66: Inspiration: Horst Dornbusch | G66: Tilsat sukker | K66: =CONCATENATE("gram = ",IF(C47=0,"?",(ROUND(I66/C47,1)))," g/ltr.") -> gram = ? g/ltr.
I67: Dato | K67: Karbonerer i
G68: Karbonering fra | K68: Flaske
G69: Karbonering til
G70: Tid | I70: =IF(I69=0,0,(I69-I68)) -> 0 | K70: dage
A72: Vurderinger: | B72: Skumkrone | D72: Duft | G72: Smag | J72: Farve
A73: Ved brygning | B73: -
A74: Ved omstikning | B74: -
A75: Ved flaskning | B75: -
A76: Ved første åbning
A77: Efter nogen tid
A78: Brygget af: | B78: =IF(Data!B3="","",Data!B3) -> André | G78: Godkendt til servering d.:

Sheet Labels
B1: FLASKE-ETIKETTER
D2: Udfyldes automatisk fra BrewReport til denne Label
B3: =IF(BrewReport!C1="","",BrewReport!C1) -> eyeT Brewery | N3: =$B$3 -> eyeT Brewery
D6: =IF(BrewReport!C2<>"",CONCATENATE(BrewReport!C2," - ",BrewReport!F3),IF(BrewReport!F3="","",BrewReport!F3)) -> Cream Ale | P6: =$D$6 -> Cream Ale
D9: Brygget: | E9: =IF(BrewReport!J3="","",BrewReport!J3) ->  | G9: Tappet: | H9: =IF(BrewReport!C51="","",BrewReport!C51) ->  | I9: Bryg # | J9: =IF(BrewReport!C3="","",BrewReport!C3) -> 73 | P9: Brygget: | Q9: =$E$9 ->  | S9: Tappet: | T9: =$H$9 ->  | U9: =$I$9 -> Bryg # | V9: =$J$9 -> 73
D11: Malt: | E11: =CONCATENATE(IF(BrewReport!A9="","",BrewReport!A9),IF(BrewReport!A10="","",CONCATENATE(", ",BrewReport!A10)),IF(BrewReport!A11="","",CONCATENATE(", ",BrewReport!A11)),IF(BrewReport!A12="","",CONCATENATE(", ",BrewReport!A12)),IF(BrewReport!A13="","",CONCATENATE(", ",BrewReport!A13)),IF(BrewReport!A14="","",CONCATENATE(", ",BrewReport!A14)),IF(BrewReport!A15="","",CONCATENATE(", ",BrewReport!A15))) -> Pale Ale | P11: =$D$11 -> Malt: | Q11: =$E$11 -> Pale Ale
D13: Humle: | E13: =CONCATENATE(IF(BrewReport!A23="","",BrewReport!A23),IF(BrewReport!A24="","",CONCATENATE(", ",BrewReport!A24)),IF(BrewReport!A25="","",CONCATENATE(", ",BrewReport!A25)),IF(BrewReport!A27="","",CONCATENATE(", ",BrewReport!A27)),IF(BrewReport!A28="","",CONCATENATE(", ",BrewReport!A28)),IF(BrewReport!A29="","",CONCATENATE(", ",BrewReport!A29)),IF(BrewReport!A32="","",CONCATENATE(", ",BrewReport!A31)),IF(BrewReport!A32="","",CONCATENATE(", ",BrewReport!A32)),IF(BrewReport!A33="","",CONCATENATE(", ",BrewReport!A33))) -> Cascade | P13: =$D$13 -> Humle: | Q13: =$E$13 -> Cascade
D15: Gær: | E15: =IF(BrewReport!I50="","",CONCATENATE(BrewReport!I49,", og ",RIGHT(BrewReport!I50,24))) -> Mangrove Jack's California Lager M54, og New World Strong Ale M42 | P15: =$D$15 -> Gær: | Q15: =$E$15 -> Mangrove Jack's California Lager M54, og New World Strong Ale M42
D17: Tilsætning: | E17: =CONCATENATE(IF(BrewReport!A36="","",BrewReport!A36),IF(BrewReport!A37="","",CONCATENATE(", ",BrewReport!A37)),IF(BrewReport!A38="","",CONCATENATE(", ",BrewReport!A38)),IF(BrewReport!A39="","",CONCATENATE(", ",BrewReport!A39)),IF(BrewReport!A40="","",CONCATENATE(", ",BrewReport!A40)),IF(OR((BrewReport!A41="Klar Urt"),(BrewReport!A41="")),"",CONCATENATE(", ",BrewReport!A41)),IF(BrewReport!A35="","",CONCATENATE(", ",BrewReport!A35))) -> Rørsukker | P17: =$D$17 -> Tilsætning: | Q17: =$E$17 -> Rørsukker
D19: Alc. Vol.: | E19: =IF(BrewReport!$C$54="","",BrewReport!$C$54/100) ->  | G19: EBC: | H19: =BrewReport!$D$6 -> 10 | I19: IBU: | J19: =BrewReport!$I$6 -> 23.73084 | P19: =$D$19 -> Alc. Vol.: | Q19: =$E$19 ->  | S19: =$G$19 -> EBC: | T19: =$H$19 -> 10 | U19: =$I$19 -> IBU: | V19: =$J$19 -> 23.73084
D21: Brygget af: | E21: =IF(BrewReport!B78="","",BrewReport!B78) -> André | G21: =IF(Data!F35="","",CONCATENATE("Indhold: ",Data!B6," liter; svarer til ",IF(Data!F36="",Data!F35,Data!F36)," genstande")) -> Indhold: 0,5 liter; svarer til 1,9 genstande | P21: =$D$21 -> Brygget af: | Q21: =$E$21 -> André | S21: =$G$21 -> Indhold: 0,5 liter; svarer til 1,9 genstande
B24: =$B$3 -> eyeT Brewery | N24: =$B$3 -> eyeT Brewery
D27: =$D$6 -> Cream Ale | P27: =$D$6 -> Cream Ale
D30: Brygget: | E30: =$E$9 ->  | G30: Tappet: | H30: =$H$9 ->  | I30: =$I$9 -> Bryg # | J30: =$J$9 -> 73 | P30: Brygget: | Q30: =$E$9 ->  | S30: Tappet: | T30: =$H$9 ->  | U30: =$I$9 -> Bryg # | V30: =$J$9 -> 73
D32: =$D$11 -> Malt: | E32: =$E$11 -> Pale Ale | P32: =$D$11 -> Malt: | Q32: =$E$11 -> Pale Ale
D34: =$D$13 -> Humle: | E34: =$E$13 -> Cascade | P34: =$D$13 -> Humle: | Q34: =$E$13 -> Cascade
D36: =$D$15 -> Gær: | E36: =$E$15 -> Mangrove Jack's California Lager M54, og New World Strong Ale M42 | P36: =$D$15 -> Gær: | Q36: =$E$15 -> Mangrove Jack's California Lager M54, og New World Strong Ale M42
D38: =$D$17 -> Tilsætning: | E38: =$E$17 -> Rørsukker | P38: =$D$17 -> Tilsætning: | Q38: =$E$17 -> Rørsukker
D40: =$D$19 -> Alc. Vol.: | E40: =$E$19 ->  | G40: =$G$19 -> EBC: | H40: =$H$19 -> 10 | I40: =$I$19 -> IBU: | J40: =$J$19 -> 23.73084 | P40: =$D$19 -> Alc. Vol.: | Q40: =$E$19 ->  | S40: =$G$19 -> EBC: | T40: =$H$19 -> 10 | U40: =$I$19 -> IBU: | V40: =$J$19 -> 23.73084
D42: =$D$21 -> Brygget af: | E42: =$E$21 -> André | G42: =$G$21 -> Indhold: 0,5 liter; svarer til 1,9 genstande | P42: =$D$21 -> Brygget af: | Q42: =$E$21 -> André | S42: =$G$21 -> Indhold: 0,5 liter; svarer til 1,9 genstande
B45: =$B$3 -> eyeT Brewery | N45: =$B$3 -> eyeT Brewery
D48: =$D$6 -> Cream Ale | P48: =$D$6 -> Cream Ale
D51: Brygget: | E51: =$E$9 ->  | G51: Tappet: | H51: =$H$9 ->  | I51: =$I$9 -> Bryg # | J51: =$J$9 -> 73 | P51: Brygget: | Q51: =$E$9 ->  | S51: Tappet: | T51: =$H$9 ->  | U51: =$I$9 -> Bryg # | V51: =$J$9 -> 73
D53: =$D$11 -> Malt: | E53: =$E$11 -> Pale Ale | P53: =$D$11 -> Malt: | Q53: =$E$11 -> Pale Ale
D55: =$D$13 -> Humle: | E55: =$E$13 -> Cascade | P55: =$D$13 -> Humle: | Q55: =$E$13 -> Cascade
D57: =$D$15 -> Gær: | E57: =$E$15 -> Mangrove Jack's California Lager M54, og New World Strong Ale M42 | P57: =$D$15 -> Gær: | Q57: =$E$15 -> Mangrove Jack's California Lager M54, og New World Strong Ale M42
D59: =$D$17 -> Tilsætning: | E59: =$E$17 -> Rørsukker | P59: =$D$17 -> Tilsætning: | Q59: =$E$17 -> Rørsukker
D61: =$D$19 -> Alc. Vol.: | E61: =$E$19 ->  | G61: =$G$19 -> EBC: | H61: =$H$19 -> 10 | I61: =$I$19 -> IBU: | J61: =$J$19 -> 23.73084 | P61: =$D$19 -> Alc. Vol.: | Q61: =$E$19 ->  | S61: =$G$19 -> EBC: | T61: =$H$19 -> 10 | U61: =$I$19 -> IBU: | V61: =$J$19 -> 23.73084
D63: =$D$21 -> Brygget af: | E63: =$E$21 -> André | G63: =$G$21 -> Indhold: 0,5 liter; svarer til 1,9 genstande | P63: =$D$21 -> Brygget af: | Q63: =$E$21 -> André | S63: =$G$21 -> Indhold: 0,5 liter; svarer til 1,9 genstande
B66: =$B$3 -> eyeT Brewery | N66: =$B$3 -> eyeT Brewery
D69: =$D$6 -> Cream Ale | P69: =$D$6 -> Cream Ale
D72: Brygget: | E72: =$E$9 ->  | G72: Tappet: | H72: =$H$9 ->  | I72: =$I$9 -> Bryg # | J72: =$J$9 -> 73 | P72: Brygget: | Q72: =$E$9 ->  | S72: Tappet: | T72: =$H$9 ->  | U72: =$I$9 -> Bryg # | V72: =$J$9 -> 73
D74: =$D$11 -> Malt: | E74: =$E$11 -> Pale Ale | P74: =$D$11 -> Malt: | Q74: =$E$11 -> Pale Ale
D76: =$D$13 -> Humle: | E76: =$E$13 -> Cascade | P76: =$D$13 -> Humle: | Q76: =$E$13 -> Cascade
D78: =$D$15 -> Gær: | E78: =$E$15 -> Mangrove Jack's California Lager M54, og New World Strong Ale M42 | P78: =$D$15 -> Gær: | Q78: =$E$15 -> Mangrove Jack's California Lager M54, og New World Strong Ale M42
D80: =$D$17 -> Tilsætning: | E80: =$E$17 -> Rørsukker | P80: =$D$17 -> Tilsætning: | Q80: =$E$17 -> Rørsukker
D82: =$D$19 -> Alc. Vol.: | E82: =$E$19 ->  | G82: =$G$19 -> EBC: | H82: =$H$19 -> 10 | I82: =$I$19 -> IBU: | J82: =$J$19 -> 23.73084 | P82: =$D$19 -> Alc. Vol.: | Q82: =$E$19 ->  | S82: =$G$19 -> EBC: | T82: =$H$19 -> 10 | U82: =$I$19 -> IBU: | V82: =$J$19 -> 23.73084
D84: =$D$21 -> Brygget af: | E84: =$E$21 -> André | G84: =$G$21 -> Indhold: 0,5 liter; svarer til 1,9 genstande | P84: =$D$21 -> Brygget af: | Q84: =$E$21 -> André | S84: =$G$21 -> Indhold: 0,5 liter; svarer til 1,9 genstande

Sheet Data
A1: STAMDATA
A2: Bryggeri | B2: eyeT Brewery
A3: Brygmester | B3: André
A4: Mæskeeffektivitet | B4: 0.75 | C4: Anvendes til at estimere Original Gravity
A5: Urtmængde i liter | B5: 25 | C5: Anvendes til at beregne Effektivitet og Original Gravity
A6: Flaskestørrelse i liter | B6: 0.5 | C6: Anvendes til at beregne og vise antal genstande
A8: Beregninger | B8: Malt | C8: % | D8: EBC | E8: Ekstraktudbytte | F8: OG
B9: =IF(BrewReport!A9="","",BrewReport!A9) -> Pale Ale | C9: =IF(B9="","",ROUND(((BrewReport!C9/BrewReport!$C$19)*100),1)) -> 100 | D9: =IF(B9="","",IF(BrewReport!C9="","",ROUND((VLOOKUP(B9,Malt!$A$3:$D$75,3,)*(Data!C9/100)),1))) -> 8 | E9: =IF(B9="","",(VLOOKUP(B9,Malt!$A$2:$D$75,4,)*C9/100)) -> 300 | F9: |
B10: =IF(BrewReport!A10="","",BrewReport!A10) ->  | C10: =IF(B10="","",ROUND(((BrewReport!C10/BrewReport!$C$19)*100),1)) ->  | D10: =IF(B10="","",IF(BrewReport!C10="","",ROUND((VLOOKUP(B10,Malt!$A$3:$D$75,3,)*(Data!C10/100)),1))) ->  | E10: =IF(B10="","",(VLOOKUP(B10,Malt!$A$2:$D$75,4,)*C10/100)) ->  | F10: |
B11: =IF(BrewReport!A11="","",BrewReport!A11) ->  | C11: =IF(B11="","",ROUND(((BrewReport!C11/BrewReport!$C$19)*100),1)) ->  | D11: =IF(B11="","",IF(BrewReport!C11="","",ROUND((VLOOKUP(B11,Malt!$A$3:$D$75,3,)*(Data!C11/100)),1))) ->  | E11: =IF(B11="","",(VLOOKUP(B11,Malt!$A$2:$D$75,4,)*C11/100)) ->  | F11: |
B12: =IF(BrewReport!A12="","",BrewReport!A12) ->  | C12: =IF(B12="","",ROUND(((BrewReport!C12/BrewReport!$C$19)*100),1)) ->  | D12: =IF(B12="","",IF(BrewReport!C12="","",ROUND((VLOOKUP(B12,Malt!$A$3:$D$75,3,)*(Data!C12/100)),1))) ->  | E12: =IF(B12="","",(VLOOKUP(B12,Malt!$A$2:$D$75,4,)*C12/100)) ->  | F12: |
B13: =IF(BrewReport!A13="","",BrewReport!A13) ->  | C13: =IF(B13="","",ROUND(((BrewReport!C13/BrewReport!$C$19)*100),1)) ->  | D13: =IF(B13="","",IF(BrewReport!C13="","",ROUND((VLOOKUP(B13,Malt!$A$3:$D$75,3,)*(Data!C13/100)),1))) ->  | E13: =IF(B13="","",(VLOOKUP(B13,Malt!$A$2:$D$75,4,)*C13/100)) ->  | F13: |
A14: Estimeret effektivitet | B14: =IF(BrewReport!A14="","",BrewReport!A14) ->  | C14: =IF(B14="","",ROUND(((BrewReport!C14/BrewReport!$C$19)*100),1)) ->  | D14: =IF(B14="","",IF(BrewReport!C14="","",ROUND((VLOOKUP(B14,Malt!$A$3:$D$75,3,)*(Data!C14/100)),1))) ->  | E14: =IF(B14="","",(VLOOKUP(B14,Malt!$A$2:$D$75,4,)*C14/100)) ->  | F14: |
A15: =IF(BrewReport!C19=0,"",((F26-1000)*B5)/(BrewReport!C19*E26)) -> 0.7494004796 | B15: =IF(BrewReport!A15="","",BrewReport!A15) ->  | C15: =IF(B15="","",ROUND(((BrewReport!C15/BrewReport!$C$19)*100),1)) ->  | D15: =IF(B15="","",IF(BrewReport!C15="","",ROUND((VLOOKUP(B15,Malt!$A$3:$D$75,3,)*(Data!C15/100)),1))) ->  | E15: =IF(B15="","",(VLOOKUP(B15,Malt!$A$2:$D$75,4,)*C15/100)) ->  | F15: |
B16: =IF(BrewReport!A16="","",BrewReport!A16) ->  | C16: =IF(B16="","",ROUND(((BrewReport!C16/BrewReport!$C$19)*100),1)) ->  | D16: =IF(B16="","",IF(BrewReport!C16="","",ROUND((VLOOKUP(B16,Malt!$A$3:$D$75,3,)*(Data!C16/100)),1))) ->  | E16: =IF(B16="","",(VLOOKUP(B16,Malt!$A$2:$D$75,4,)*C16/100)) ->  | F16: | | H16: EBC | I16: Example | L16: Beer color | M16: SRM
B17: =IF(BrewReport!A17="","",BrewReport!A17) ->  | C17: =IF(B17="","",ROUND(((BrewReport!C17/BrewReport!$C$19)*100),1)) ->  | D17: =IF(B17="","",IF(BrewReport!C17="","",ROUND((VLOOKUP(B17,Malt!$A$3:$D$75,3,)*(Data!C17/100)),1))) ->  | E17: =IF(B17="","",(VLOOKUP(B17,Malt!$A$2:$D$75,4,)*C17/100)) ->  | F17: | | H17: 4 | I17: Pale lager, Witbier, Pilsener, Berliner Weisse | M17: 2
B18: =IF(BrewReport!A18="","",BrewReport!A18) ->  | C18: =IF(B18="","",ROUND(((BrewReport!C18/BrewReport!$C$19)*100),1)) ->  | D18: =IF(B18="","",IF(BrewReport!C18="","",ROUND((VLOOKUP(B18,Malt!$A$3:$D$75,3,)*(Data!C18/100)),1))) ->  | E18: =IF(B18="","",(VLOOKUP(B18,Malt!$A$2:$D$75,4,)*C18/100)) ->  | F18: | | H18: 6 | I18: Maibock, Blonde Ale | M18: 3
F19: | | H19: 8 | I19: Weissbier | M19: 4
B20: =IF(OR((BrewReport!A36="Klar Urt"),(BrewReport!A36="Appelsinskal"),(BrewReport!A36="Koriander"),(BrewReport!A36="")),"",BrewReport!A36) -> Rørsukker | C20: =IF(B20="","",ROUND((((BrewReport!C36/1000)/BrewReport!$C$19)*100),1)) -> 8 | D20: =IF(B20="","",IF(BrewReport!C36="","",ROUND((VLOOKUP(B20,Tilsætninger!$A$2:$D$17,3,)*(Data!C20/100)),1))) -> 2 | E20: =IF(B20="","",(VLOOKUP(B20,Tilsætninger!$A$2:$D$17,4,)*C20/100)) -> 33.6 | F20: | | H20: 12 | I20: American Pale Ale, India Pale Ale | M20: 6
B21: =IF(OR((BrewReport!A37="Klar Urt"),(BrewReport!A37="Appelsinskal"),(BrewReport!A37="Koriander"),(BrewReport!A37="")),"",BrewReport!A37) ->  | C21: =IF(B21="","",ROUND((((BrewReport!C37/1000)/BrewReport!$C$19)*100),1)) ->  | D21: =IF(B21="","",IF(BrewReport!C37="","",ROUND((VLOOKUP(B21,Tilsætninger!$A$2:$D$17,3,)*(Data!C21/100)),1))) ->  | E21: =IF(B21="","",(VLOOKUP(B21,Tilsætninger!$A$2:$D$17,4,)*C21/100)) ->  | F21: | | H21: 16 | I21: Weissbier, Saison | M21: 8
B22: =IF(OR((BrewReport!A38="Klar Urt"),(BrewReport!A38="Appelsinskal"),(BrewReport!A38="Koriander"),(BrewReport!A38="")),"",BrewReport!A38) ->  | C22: =IF(B22="","",ROUND((((BrewReport!C38/1000)/BrewReport!$C$19)*100),1)) ->  | D22: =IF(B22="","",IF(BrewReport!C38="","",ROUND((VLOOKUP(B22,Tilsætninger!$A$2:$D$17,3,)*(Data!C22/100)),1))) ->  | E22: =IF(B22="","",(VLOOKUP(B22,Tilsætninger!$A$2:$D$17,4,)*C22/100)) ->  | F22: | | H22: 20 | I22: English Bitter, ESB | M22: 10
A23: Faktisk effektivitet | B23: =IF(OR((BrewReport!A39="Klar Urt"),(BrewReport!A39="Appelsinskal"),(BrewReport!A39="Koriander"),(BrewReport!A39="")),"",BrewReport!A39) ->  | C23: =IF(B23="","",ROUND((((BrewReport!C39/1000)/BrewReport!$C$19)*100),1)) ->  | D23: =IF(B23="","",IF(BrewReport!C39="","",ROUND((VLOOKUP(B23,Tilsætninger!$A$2:$D$17,3,)*(Data!C23/100)),1))) ->  | E23: =IF(B23="","",(VLOOKUP(B23,Tilsætninger!$A$2:$D$17,4,)*C23/100)) ->  | F23: | | H23: 26 | I23: Biere de Garde, Double IPA | M23: 13
A24: =IF(BrewReport!$C$19=0,"",((BrewReport!$C$49-1000)*BrewReport!$C$45)/(BrewReport!$C$19*$E$26)) -> 0 | B24: =IF(OR((BrewReport!A40="Klar Urt"),(BrewReport!A40="Appelsinskal"),(BrewReport!A40="Koriander"),(BrewReport!A40="")),"",BrewReport!A40) ->  | C24: =IF(B24="","",ROUND((((BrewReport!C40/1000)/BrewReport!$C$19)*100),1)) ->  | D24: =IF(B24="","",IF(BrewReport!C40="","",ROUND((VLOOKUP(B24,Tilsætninger!$A$2:$D$17,3,)*(Data!C24/100)),1))) ->  | E24: =IF(B24="","",(VLOOKUP(B24,Tilsætninger!$A$2:$D$17,4,)*C24/100)) ->  | F24: | | H24: 33 | I24: Dark lager, Vienna lager, Marzen, Amber Ale | M24: 17
A25: =IF(BrewReport!$C$19=0,"",((BrewReport!$C$50-1000)*BrewReport!$C$45)/(BrewReport!$C$19*$E$26)) -> 0 | B25: =IF(OR((BrewReport!A41="Klar Urt"),(BrewReport!A41="Appelsinskal"),(BrewReport!A41="Koriander"),(BrewReport!A41="")),"",BrewReport!A41) ->  | C25: =IF(B25="","",ROUND((((BrewReport!C41/1000)/BrewReport!$C$19)*100),1)) ->  | D25: =IF(B25="","",IF(BrewReport!C41="","",ROUND((VLOOKUP(B25,Tilsætninger!$A$2:$D$17,3,)*(Data!C25/100)),1))) ->  | E25: =IF(B25="","",(VLOOKUP(B25,Tilsætninger!$A$2:$D$17,4,)*C25/100)) ->  | F25: | | H25: 39 | I25: Brown Ale, Bock, Dunkel, Dunkelweizen | M25: 20
C26: =ROUND(SUM(C9:C14),0) -> 100 | D26: =ROUND(SUM(D9:D25),1) -> 10 | E26: =ROUND(SUM(E9:E25),1) -> 333.6 | F26: =ROUND(((BrewReport!C19*E26*(B4))/B5),0)+1000 -> 1055 | H26: 47 | I26: Irish Dry Stout, Doppelbock, Porter | M26: 24
A27: Gær navn og nummer | C27: Alc.Tolerance % | E27: Attenuation % | F27: ALC.% | H27: 57 | I27: Stout | M27: 29
H28: 69 | I28: Foreign Stout, Baltic Porter | M28: 35
H29: 79 | I29: Imperial Stout | M29: 40+
A30: =IF(BrewReport!I50="","",BrewReport!I50) -> Mangrove Jack´s New World Strong Ale M42 | C30: =IF(A30="","",(VLOOKUP(A30,Gær!A2:G65,7,FALSE))) -> 0 | E30: =IF(A30="","",(VLOOKUP(A30,Gær!A2:G65,5,FALSE))) -> 79 | F30: =IF(A30="","",((F26-E32)/7.5)) -> 5.733333333
H31: This is EBC to RGB
D32: FG: | E32: =IF(E30="","",ROUND((F26-((F26-1000)*(E30/100))),0)) -> 1012 | I32: =IF(D26=0,"",VLOOKUP(D26, H34:K333,2,TRUE)) -> 224 | J32: =IF(D26=0,"",VLOOKUP(D26, H34:K333,3,TRUE)) -> 206 | K32: =IF(D26=0,"",VLOOKUP(D26, H34:K333,4,TRUE)) -> 50 | M32: This is SRM to RGB
E33: Flaskeindhold
E34: Svarer til i genstande: | H34: 0.2 | I34: 250 | J34: 250 | K34: 210 | M34: 0,1 250 250 210
E35: Estimat | F35: =IF(F30="","",ROUND((((B6*1000)*0.79*(F30/100))/12),1)) -> 1.9 | H35: 0.4 | I35: 250 | J35: 250 | K35: 204 | M35: 0,2 250 250 204
E36: Brygget | F36: =IF(BrewReport!C54="","",ROUND((((B6*1000)*0.79*(BrewReport!C54/100))/12),1)) ->  | H36: 0.6 | I36: 250 | J36: 250 | K36: 199 | M36: 0,3 250 250 199
H37: 0.8 | I37: 250 | J37: 250 | K37: 193 | M37: 0,4 250 250 193
H38: 1 | I38: 250 | J38: 250 | K38: 188 | M38: 0,5 250 250 188
H39: 1.2 | I39: 250 | J39: 250 | K39: 182 | M39: 0,6 250 250 182
B40: Humle | C40: Gram | D40: IBU Avg. | E40: Udnyttelsesgrad | F40: IBU i urten | H40: 1.4 | I40: 250 | J40: 250 | K40: 177 | M40: 0,7 250 250 177
B41: =IF(BrewReport!A23="","",BrewReport!A23) -> Cascade | C41: =IF(BrewReport!C23="","",BrewReport!C23) -> 37 | D41: =IF(B41="","",VLOOKUP(B41,Humle!$A$3:$I$34,4,FALSE)) -> 6.3 | E41: =IF(B41="","",VLOOKUP(BrewReport!$I23,Humle!$M$7:$X$32,((ROUNDDOWN(($F$26/10),0)*10)-1000)/10-1,TRUE)*100) -> 23.1 | F41: =IF(B41="","",IF(BrewReport!I23="","",(C41*D41*E41)/($B$5*10))) -> 21.53844 | H41: 1.6 | I41: 250 | J41: 250 | K41: 171 | M41: 0,8 250 250 171
B42: =IF(BrewReport!A24="","",BrewReport!A24) ->  | C42: =IF(BrewReport!C24="","",BrewReport!C24) ->  | D42: =IF(B42="","",VLOOKUP(B42,Humle!$A$3:$I$34,4,FALSE)) ->  | E42: =IF(B42="","",VLOOKUP(BrewReport!$I24,Humle!$M$7:$X$32,((ROUNDDOWN(($F$26/10),0)*10)-1000)/10-1,TRUE)*100) ->  | F42: =IF(B42="","",IF(BrewReport!I24="","",(C42*D42*E42)/($B$5*10))) ->  | H42: 1.8 | I42: 250 | J42: 250 | K42: 166 | M42: 0,9 250 250 166
B43: =IF(BrewReport!A25="","",BrewReport!A25) ->  | C43: =IF(BrewReport!C25="","",BrewReport!C25) ->  | D43: =IF(B43="","",VLOOKUP(B43,Humle!$A$3:$I$34,4,FALSE)) ->  | E43: =IF(B43="","",VLOOKUP(BrewReport!$I25,Humle!$M$7:$X$32,((ROUNDDOWN(($F$26/10),0)*10)-1000)/10-1,TRUE)*100) ->  | F43: =IF(B43="","",IF(BrewReport!I25="","",(C43*D43*E43)/($B$5*10))) ->  | H43: 2 | I43: 250 | J43: 250 | K43: 160 | M43: 1 250 250 160
F44: - | H44: 2.2 | I44: 250 | J44: 250 | K44: 155 | M44: 1,1 250 250 155
B45: =IF(BrewReport!A27="","",BrewReport!A27) ->  | C45: =IF(BrewReport!C27="","",BrewReport!C27) ->  | D45: =IF(B45="","",VLOOKUP(B45,Humle!$A$3:$I$34,4,FALSE)) ->  | E45: =IF(B45="","",VLOOKUP(BrewReport!$I27,Humle!$M$7:$X$32,((ROUNDDOWN(($F$26/10),0)*10)-1000)/10-1,TRUE)*100) ->  | F45: =IF(B45="","",IF(BrewReport!I27="","",(C45*D45*E45)/($B$5*10))) ->  | H45: 2.4 | I45: 250 | J45: 250 | K45: 149 | M45: 1,2 250 250 149
B46: =IF(BrewReport!A28="","",BrewReport!A28) ->  | C46: =IF(BrewReport!C28="","",BrewReport!C28) ->  | D46: =IF(B46="","",VLOOKUP(B46,Humle!$A$3:$I$34,4,FALSE)) ->  | E46: =IF(B46="","",VLOOKUP(BrewReport!$I28,Humle!$M$7:$X$32,((ROUNDDOWN(($F$26/10),0)*10)-1000)/10-1,TRUE)*100) ->  | F46: =IF(B46="","",IF(BrewReport!I28="","",(C46*D46*E46)/($B$5*10))) ->  | H46: 2.6 | I46: 250 | J46: 250 | K46: 144 | M46: 1,3 250 250 144
B47: =IF(BrewReport!A29="","",BrewReport!A29) ->  | C47: =IF(BrewReport!C29="","",BrewReport!C29) ->  | D47: =IF(B47="","",VLOOKUP(B47,Humle!$A$3:$I$34,4,FALSE)) ->  | E47: =IF(B47="","",VLOOKUP(BrewReport!$I29,Humle!$M$7:$X$32,((ROUNDDOWN(($F$26/10),0)*10)-1000)/10-1,TRUE)*100) ->  | F47: =IF(B47="","",IF(BrewReport!I29="","",(C47*D47*E47)/($B$5*10))) ->  | H47: 2.8 | I47: 250 | J47: 250 | K47: 138 | M47: 1,4 250 250 138
F48: - | H48: 3 | I48: 250 | J48: 250 | K48: 133 | M48: 1,5 250 250 133
B49: =IF(BrewReport!A31="","",BrewReport!A31) -> Cascade | C49: =IF(BrewReport!C31="","",BrewReport!C31) -> 30 | D49: =IF(B49="","",VLOOKUP(B49,Humle!$A$3:$I$34,4,FALSE)) -> 6.3 | E49: =IF(B49="","",VLOOKUP(BrewReport!$I31,Humle!$M$7:$X$32,((ROUNDDOWN(($F$26/10),0)*10)-1000)/10-1,TRUE)*100) -> 2.9 | F49: =IF(B49="","",IF(BrewReport!I31="","",(C49*D49*E49)/($B$5*10))) -> 2.1924 | H49: 3.2 | I49: 250 | J49: 250 | K49: 127 | M49: 1,6 250 250 127
B50: =IF(BrewReport!A32="","",BrewReport!A32) ->  | C50: =IF(BrewReport!C32="","",BrewReport!C32) ->  | D50: =IF(B50="","",VLOOKUP(B50,Humle!$A$3:$I$34,4,FALSE)) ->  | E50: =IF(B50="","",VLOOKUP(BrewReport!$I32,Humle!$M$7:$X$32,((ROUNDDOWN(($F$26/10),0)*10)-1000)/10-1,TRUE)*100) ->  | F50: =IF(B50="","",IF(BrewReport!I32="","",(C50*D50*E50)/($B$5*10))) ->  | H50: 3.3 | I50: 250 | J50: 250 | K50: 122 | M50: 1,7 250 250 122
B51: =IF(BrewReport!A33="","",BrewReport!A33) ->  | C51: =IF(BrewReport!C33="","",BrewReport!C33) ->  | D51: =IF(B51="","",VLOOKUP(B51,Humle!$A$3:$I$34,4,FALSE)) ->  | E51: =IF(B51="","",VLOOKUP(BrewReport!$I33,Humle!$M$7:$X$32,((ROUNDDOWN(($F$26/10),0)*10)-1000)/10-1,TRUE)*100) ->  | F51: =IF(B51="","",IF(BrewReport!I33="","",(C51*D51*E51)/($B$5*10))) ->  | H51: 3.5 | I51: 250 | J51: 250 | K51: 116 | M51: 1,8 250 250 116
B52: =IF(BrewReport!A34="","",BrewReport!A34) -> Andet | F52: - | H52: 3.7 | I52: 250 | J52: 250 | K52: 111 | M52: 1,9 250 250 111
H53: 3.9 | I53: 250 | J53: 250 | K53: 105 | M53: 2 250 250 105
C54: Total IBU: | F54: =SUM(F41:F52) -> 23.73084 | H54: 4.1 | I54: 250 | J54: 250 | K54: 100 | M54: 2,1 250 250 100
H55: 4.3 | I55: 250 | J55: 250 | K55: 94 | M55: 2,2 250 250 94
A56: BU:GU and RBR: | B56: http://www.madalchemist.com/chart_bitterness_corrected.html | H56: 4.5 | I56: 250 | J56: 250 | K56: 89 | M56: 2,3 250 250 89
H57: 4.7 | I57: 250 | J57: 250 | K57: 83 | M57: 2,4 250 250 83
H58: 4.9 | I58: 250 | J58: 250 | K58: 78 | M58: 2,5 250 250 78
H59: 5.1 | I59: 249 | J59: 250 | K59: 72 | M59: 2,6 249 250 72
H60: 5.3 | I60: 248 | J60: 249 | K60: 67 | M60: 2,7 248 249 67
H61: 5.5 | I61: 247 | J61: 248 | K61: 61 | M61: 2,8 247 248 61
H62: 5.7 | I62: 246 | J62: 247 | K62: 56 | M62: 2,9 246 247 56
H63: 5.9 | I63: 245 | J63: 246 | K63: 50 | M63: 3 245 246 50
H64: 6.1 | I64: 244 | J64: 245 | K64: 45 | M64: 3,1 244 245 45
H65: 6.3 | I65: 243 | J65: 244 | K65: 45 | M65: 3,2 243 244 45
H66: 6.5 | I66: 242 | J66: 242 | K66: 45 | M66: 3,3 242 242 45
H67: 6.7 | I67: 241 | J67: 240 | K67: 46 | M67: 3,4 241 240 46
H68: 6.9 | I68: 240 | J68: 238 | K68: 46 | M68: 3,5 240 238 46
H69: 7.1 | I69: 239 | J69: 236 | K69: 46 | M69: 3,6 239 236 46
H70: 7.3 | I70: 238 | J70: 234 | K70: 46 | M70: 3,7 238 234 46
H71: 7.5 | I71: 237 | J71: 232 | K71: 47 | M71: 3,8 237 232 47
H72: 7.7 | I72: 236 | J72: 230 | K72: 47 | M72: 3,9 236 230 47
H73: 7.9 | I73: 235 | J73: 228 | K73: 47 | M73: 4 235 228 47
H74: 8.1 | I74: 234 | J74: 226 | K74: 47 | M74: 4,1 234 226 47
H75: 8.3 | I75: 233 | J75: 224 | K75: 48 | M75: 4,2 233 224 48
H76: 8.5 | I76: 232 | J76: 222 | K76: 48 | M76: 4,3 232 222 48
H77: 8.7 | I77: 231 | J77: 220 | K77: 48 | M77: 4,4 231 220 48
H78: 8.9 | I78: 230 | J78: 218 | K78: 48 | M78: 4,5 230 218 48
H79: 9.1 | I79: 229 | J79: 216 | K79: 49 | M79: 4,6 229 216 49
H80: 9.3 | I80: 228 | J80: 214 | K80: 49 | M80: 4,7 228 214 49
H81: 9.5 | I81: 227 | J81: 212 | K81: 49 | M81: 4,8 227 212 49
H82: 9.7 | I82: 226 | J82: 210 | K82: 49 | M82: 4,9 226 210 49
H83: 9.9 | I83: 225 | J83: 208 | K83: 50 | M83: 5 225 208 50
H84: 10 | I84: 224 | J84: 206 | K84: 50 | M84: 5,1 224 206 50
H85: 10.2 | I85: 223 | J85: 204 | K85: 50 | M85: 5,2 223 204 50
H86: 10.4 | I86: 222 | J86: 202 | K86: 50 | M86: 5,3 222 202 50
H87: 10.6 | I87: 221 | J87: 200 | K87: 51 | M87: 5,4 221 200 51
H88: 10.8 | I88: 220 | J88: 198 | K88: 51 | M88: 5,5 220 198 51
H89: 11 | I89: 219 | J89: 196 | K89: 51 | M89: 5,6 219 196 51
H90: 11.2 | I90: 218 | J90: 194 | K90: 51 | M90: 5,7 218 194 51
H91: 11.4 | I91: 217 | J91: 192 | K91: 52 | M91: 5,8 217 192 52
H92: 11.6 | I92: 216 | J92: 190 | K92: 52 | M92: 5,9 216 190 52
H93: 11.8 | I93: 215 | J93: 188 | K93: 52 | M93: 6 215 188 52
H94: 12 | I94: 214 | J94: 186 | K94: 52 | M94: 6,1 214 186 52
H95: 12.2 | I95: 213 | J95: 184 | K95: 53 | M95: 6,2 213 184 53
H96: 12.4 | I96: 212 | J96: 182 | K96: 53 | M96: 6,3 212 182 53
H97: 12.6 | I97: 211 | J97: 180 | K97: 53 | M97: 6,4 211 180 53
H98: 12.8 | I98: 210 | J98: 178 | K98: 53 | M98: 6,5 210 178 53
H99: 13 | I99: 209 | J99: 176 | K99: 54 | M99: 6,6 209 176 54
H100: 13.2 | I100: 208 | J100: 174 | K100: 54 | M100: 6,7 208 174 54
H101: 13.4 | I101: 207 | J101: 172 | K101: 54 | M101: 6,8 207 172 54
H102: 13.6 | I102: 206 | J102: 170 | K102: 54 | M102: 6,9 206 170 54
H103: 13.8 | I103: 205 | J103: 168 | K103: 55 | M103: 7 205 168 55
H104: 14 | I104: 204 | J104: 166 | K104: 55 | M104: 7,1 204 166 55
H105: 14.2 | I105: 203 | J105: 164 | K105: 55 | M105: 7,2 203 164 55
H106: 14.4 | I106: 202 | J106: 162 | K106: 55 | M106: 7,3 202 162 55
H107: 14.6 | I107: 201 | J107: 160 | K107: 56 | M107: 7,4 201 160 56
H108: 14.8 | I108: 200 | J108: 158 | K108: 56 | M108: 7,5 200 158 56
H109: 15 | I109: 200 | J109: 156 | K109: 56 | M109: 7,6 200 156 56
H110: 15.2 | I110: 199 | J110: 154 | K110: 56 | M110: 7,7 199 154 56
H111: 15.4 | I111: 199 | J111: 152 | K111: 56 | M111: 7,8 199 152 56
H112: 15.6 | I112: 198 | J112: 150 | K112: 56 | M112: 7,9 198 150 56
H113: 15.8 | I113: 198 | J113: 148 | K113: 56 | M113: 8 198 148 56
H114: 16 | I114: 197 | J114: 146 | K114: 56 | M114: 8,1 197 146 56
H115: 16.2 | I115: 197 | J115: 144 | K115: 56 | M115: 8,2 197 144 56
H116: 16.4 | I116: 196 | J116: 142 | K116: 56 | M116: 8,3 196 142 56
H117: 16.5 | I117: 196 | J117: 141 | K117: 56 | M117: 8,4 196 141 56
H118: 16.7 | I118: 195 | J118: 140 | K118: 56 | M118: 8,5 195 140 56
H119: 16.9 | I119: 195 | J119: 139 | K119: 56 | M119: 8,6 195 139 56
H120: 17.1 | I120: 194 | J120: 139 | K120: 56 | M120: 8,7 194 139 56
H121: 17.3 | I121: 194 | J121: 138 | K121: 56 | M121: 8,8 194 138 56
H122: 17.5 | I122: 193 | J122: 137 | K122: 56 | M122: 8,9 193 137 56
H123: 17.7 | I123: 193 | J123: 136 | K123: 56 | M123: 9 193 136 56
H124: 17.9 | I124: 192 | J124: 136 | K124: 56 | M124: 9,1 192 136 56
H125: 18.1 | I125: 192 | J125: 135 | K125: 56 | M125: 9,2 192 135 56
H126: 18.3 | I126: 192 | J126: 134 | K126: 56 | M126: 9,3 192 134 56
H127: 18.5 | I127: 192 | J127: 133 | K127: 56 | M127: 9,4 192 133 56
H128: 18.7 | I128: 192 | J128: 133 | K128: 56 | M128: 9,5 192 133 56
H129: 18.9 | I129: 192 | J129: 132 | K129: 56 | M129: 9,6 192 132 56
H130: 19.1 | I130: 192 | J130: 131 | K130: 56 | M130: 9,7 192 131 56
H131: 19.3 | I131: 192 | J131: 130 | K131: 56 | M131: 9,8 192 130 56
H132: 19.5 | I132: 192 | J132: 130 | K132: 56 | M132: 9,9 192 130 56
H133: 19.7 | I133: 192 | J133: 129 | K133: 56 | M133: 10 192 129 56
H134: 19.9 | I134: 192 | J134: 128 | K134: 56 | M134: 10,1 192 128 56
H135: 20.1 | I135: 192 | J135: 127 | K135: 56 | M135: 10,2 192 127 56
H136: 20.3 | I136: 192 | J136: 127 | K136: 56 | M136: 10,3 192 127 56
H137: 20.5 | I137: 192 | J137: 126 | K137: 56 | M137: 10,4 192 126 56
H138: 20.7 | I138: 192 | J138: 125 | K138: 56 | M138: 10,5 192 125 56
H139: 20.9 | I139: 192 | J139: 124 | K139: 56 | M139: 10,6 192 124 56
H140: 21.1 | I140: 192 | J140: 124 | K140: 56 | M140: 10,7 192 124 56
H141: 21.3 | I141: 192 | J141: 123 | K141: 56 | M141: 10,8 192 123 56
H142: 21.5 | I142: 192 | J142: 122 | K142: 56 | M142: 10,9 192 122 56
H143: 21.7 | I143: 192 | J143: 121 | K143: 56 | M143: 11 192 121 56
H144: 21.9 | I144: 192 | J144: 121 | K144: 56 | M144: 11,1 192 121 56
H145: 22.1 | I145: 192 | J145: 120 | K145: 56 | M145: 11,2 192 120 56
H146: 22.3 | I146: 192 | J146: 119 | K146: 56 | M146: 11,3 192 119 56
H147: 22.5 | I147: 192 | J147: 118 | K147: 56 | M147: 11,4 192 118 56
H148: 22.7 | I148: 192 | J148: 118 | K148: 56 | M148: 11,5 192 118 56
H149: 22.9 | I149: 192 | J149: 117 | K149: 56 | M149: 11,6 192 117 56
H150: 23 | I150: 192 | J150: 116 | K150: 56 | M150: 11,7 192 116 56
H151: 23.2 | I151: 192 | J151: 115 | K151: 56 | M151: 11,8 192 115 56
H152: 23.4 | I152: 192 | J152: 115 | K152: 56 | M152: 11,9 192 115 56
H153: 23.6 | I153: 192 | J153: 114 | K153: 56 | M153: 12 192 114 56
H154: 23.8 | I154: 192 | J154: 113 | K154: 56 | M154: 12,1 192 113 56
H155: 24 | I155: 192 | J155: 112 | K155: 56 | M155: 12,2 192 112 56
H156: 24.2 | I156: 192 | J156: 112 | K156: 56 | M156: 12,3 192 112 56
H157: 24.4 | I157: 192 | J157: 111 | K157: 56 | M157: 12,4 192 111 56
H158: 24.6 | I158: 192 | J158: 110 | K158: 56 | M158: 12,5 192 110 56
H159: 24.8 | I159: 192 | J159: 109 | K159: 56 | M159: 12,6 192 109 56
H160: 25 | I160: 192 | J160: 109 | K160: 56 | M160: 12,7 192 109 56
H161: 25.2 | I161: 192 | J161: 108 | K161: 56 | M161: 12,8 192 108 56
H162: 25.4 | I162: 191 | J162: 107 | K162: 56 | M162: 12,9 191 107 56
H163: 25.6 | I163: 190 | J163: 106 | K163: 56 | M163: 13 190 106 56
H164: 25.8 | I164: 189 | J164: 106 | K164: 56 | M164: 13,1 189 106 56
H165: 26 | I165: 188 | J165: 105 | K165: 56 | M165: 13,2 188 105 56
H166: 26.2 | I166: 187 | J166: 104 | K166: 56 | M166: 13,3 187 104 56
H167: 26.4 | I167: 186 | J167: 103 | K167: 56 | M167: 13,4 186 103 56
H168: 26.6 | I168: 185 | J168: 103 | K168: 56 | M168: 13,5 185 103 56
H169: 26.8 | I169: 184 | J169: 102 | K169: 56 | M169: 13,6 184 102 56
H170: 27 | I170: 183 | J170: 101 | K170: 56 | M170: 13,7 183 101 56
H171: 27.2 | I171: 182 | J171: 100 | K171: 56 | M171: 13,8 182 100 56
H172: 27.4 | I172: 181 | J172: 100 | K172: 56 | M172: 13,9 181 100 56
H173: 27.6 | I173: 180 | J173: 99 | K173: 56 | M173: 14 180 99 56
H174: 27.8 | I174: 179 | J174: 98 | K174: 56 | M174: 14,1 179 98 56
H175: 28 | I175: 178 | J175: 97 | K175: 56 | M175: 14,2 178 97 56
H176: 28.2 | I176: 177 | J176: 97 | K176: 56 | M176: 14,3 177 97 56
H177: 28.4 | I177: 175 | J177: 96 | K177: 55 | M177: 14,4 175 96 55
H178: 28.6 | I178: 174 | J178: 95 | K178: 55 | M178: 14,5 174 95 55
H179: 28.8 | I179: 172 | J179: 94 | K179: 55 | M179: 14,6 172 94 55
H180: 29 | I180: 171 | J180: 94 | K180: 55 | M180: 14,7 171 94 55
H181: 29.2 | I181: 169 | J181: 93 | K181: 54 | M181: 14,8 169 93 54
H182: 29.4 | I182: 168 | J182: 92 | K182: 54 | M182: 14,9 168 92 54
H183: 29.6 | I183: 167 | J183: 91 | K183: 54 | M183: 15 167 91 54
H184: 29.7 | I184: 165 | J184: 91 | K184: 54 | M184: 15,1 165 91 54
H185: 29.9 | I185: 164 | J185: 90 | K185: 53 | M185: 15,2 164 90 53
H186: 30.1 | I186: 162 | J186: 89 | K186: 53 | M186: 15,3 162 89 53
H187: 30.3 | I187: 161 | J187: 88 | K187: 53 | M187: 15,4 161 88 53
H188: 30.5 | I188: 159 | J188: 88 | K188: 53 | M188: 15,5 159 88 53
H189: 30.7 | I189: 158 | J189: 87 | K189: 52 | M189: 15,6 158 87 52
H190: 30.9 | I190: 157 | J190: 86 | K190: 52 | M190: 15,7 157 86 52
H191: 31.1 | I191: 155 | J191: 85 | K191: 52 | M191: 15,8 155 85 52
H192: 31.3 | I192: 154 | J192: 85 | K192: 52 | M192: 15,9 154 85 52
H193: 31.5 | I193: 152 | J193: 84 | K193: 51 | M193: 16 152 84 51
H194: 31.7 | I194: 151 | J194: 83 | K194: 51 | M194: 16,1 151 83 51
H195: 31.9 | I195: 149 | J195: 82 | K195: 51 | M195: 16,2 149 82 51
H196: 32.1 | I196: 148 | J196: 82 | K196: 51 | M196: 16,3 148 82 51
H197: 32.3 | I197: 147 | J197: 81 | K197: 50 | M197: 16,4 147 81 50
H198: 32.5 | I198: 145 | J198: 80 | K198: 50 | M198: 16,5 145 80 50
H199: 32.7 | I199: 144 | J199: 79 | K199: 50 | M199: 16,6 144 79 50
H200: 32.9 | I200: 142 | J200: 78 | K200: 50 | M200: 16,7 142 78 50
H201: 33.1 | I201: 141 | J201: 77 | K201: 49 | M201: 16,8 141 77 49
... 132 more rows

Sheet Omregninger
A2: Farver:
B4: Formål | C4: Formel | D4: Indtast | E4: Beregn | F4: Resultat
B5: EBC to SRM: | C5: SRM = EBC × 0,508 | D5: Indtast EBC | F5: =IF(E5="","",ROUND((E5*0.508),0)) -> 
B6: SRM to EBC: | C6: EBC = SRM × 1,97 | D6: Indtast SRM | F6: =IF(E6="","",ROUND((E6*1.97),0)) -> 
B7: Lovibond to SRM: | C7: SRM = (1,3546 × °L) - 0,76 | D7: Indtast °L | F7: =IF(E7="","",ROUND(((1.3546*E7)-0.76),0)) -> 
B8: SRM to Lovibond: | C8: °L = (SRM + 0,76) ÷ 1,3546 | D8: Indtast SRM | F8: =IF(E8="","",ROUND(((E8+0.76)/1.3546),0)) -> 
A10: Refraktometer:
B12: Udregning af Final Gravity med Refraktometer måling - med kompensation for fejlvisning grundet alkohol
B13: Input er i Oechsle, hvor gravity 1080 eller 1,080 = 80 oe
B14: Indtast Original Gravity | C14: Oe | D14: Indtast Final Gravity | E14: Oe
B15: Refrektometer Input - OG | C15: 59 | D15: Refrektometer INPUT - FG | E15: 29
B16: Brix mellemregning | C16: =VLOOKUP((C15/1000)+1,$B$26:$C$167,2,FALSE) -> 14.49 | D16: Brix mellemregning | E16: =VLOOKUP((E15/1000)+1,$B$26:$C$167,2,FALSE) -> 7.3
B17: Mellemregning | C17: -0.002318474 | D17: =1.001843+C17*C16 -> 0.9682483117
B18: Mellemregning | C18: -7.775e-06 | D18: =C18*C16*C16 -> -0.001632439778
B19: Mellemregning | C19: -3.4e-08 | D19: =C19*C16*C16*C16 -> -0.0001034389429
B20: Mellemregning | C20: 0.00574 | D20: =C20*E16 -> 0.041902
B21: Mellemregning | C21: 3.344e-05 | D21: =C21*E16*E16 -> 0.0017820176
B22: Mellemregning | C22: 8.6e-08 | D22: =C22*E16*E16*E16 -> 3.3455462e-05
B23: Udregnet Final Gravity ( kompenseret for alkohol ) = | E23: =SUM(D17:D22) -> 1.010229906
B25: Specific Gravity-Brix Conversion Table
B26: Specific Gravity | C26: Brix
B27: 0.99 | C27: 0
B28: 0.991 | C28: 0
B29: 0.992 | C29: 0
B30: 0.993 | C30: 0
B31: 0.994 | C31: 0
B32: 0.995 | C32: 0
B33: 0.996 | C33: 0
B34: 0.997 | C34: 0
B35: 0.998 | C35: 0
B36: 0.999 | C36: 0
B37: 1 | C37: 0
B38: 1.001 | C38: 0.26
B39: 1.002 | C39: 0.51
B40: 1.003 | C40: 0.77
B41: 1.004 | C41: 1.03
B42: 1.005 | C42: 1.28
B43: 1.006 | C43: 1.54
B44: 1.007 | C44: 1.8
B45: 1.008 | C45: 2.05
B46: 1.009 | C46: 2.31
B47: 1.01 | C47: 2.56
B48: 1.011 | C48: 2.81
B49: 1.012 | C49: 3.07
B50: 1.013 | C50: 3.32
B51: 1.014 | C51: 3.57
B52: 1.015 | C52: 3.82
B53: 1.016 | C53: 4.08
B54: 1.017 | C54: 4.33
B55: 1.018 | C55: 4.58
B56: 1.019 | C56: 4.83
B57: 1.02 | C57: 5.08
B58: 1.021 | C58: 5.33
B59: 1.022 | C59: 5.57
B60: 1.023 | C60: 5.82
B61: 1.024 | C61: 6.07
B62: 1.025 | C62: 6.32
B63: 1.026 | C63: 6.57
B64: 1.027 | C64: 6.81
B65: 1.028 | C65: 7.06
B66: 1.029 | C66: 7.3
B67: 1.03 | C67: 7.55
B68: 1.031 | C68: 7.8
B69: 1.032 | C69: 8.04
B70: 1.033 | C70: 8.28
B71: 1.034 | C71: 8.53
B72: 1.035 | C72: 8.77
B73: 1.036 | C73: 9.01
B74: 1.037 | C74: 9.26
B75: 1.038 | C75: 9.5
B76: 1.039 | C76: 9.74
B77: 1.04 | C77: 9.98
B78: 1.041 | C78: 10.22
B79: 1.042 | C79: 10.46
B80: 1.043 | C80: 10.7
B81: 1.044 | C81: 10.94
B82: 1.045 | C82: 11.18
B83: 1.046 | C83: 11.42
B84: 1.047 | C84: 11.66
B85: 1.048 | C85: 11.9
B86: 1.049 | C86: 12.14
B87: 1.05 | C87: 12.37
B88: 1.051 | C88: 12.61
B89: 1.052 | C89: 12.85
B90: 1.053 | C90: 13.08
B91: 1.054 | C91: 13.32
B92: 1.055 | C92: 13.55
B93: 1.056 | C93: 13.79
B94: 1.057 | C94: 14.02
B95: 1.058 | C95: 14.26
B96: 1.059 | C96: 14.49
B97: 1.06 | C97: 14.72
B98: 1.061 | C98: 14.96
B99: 1.062 | C99: 15.19
B100: 1.063 | C100: 15.42
B101: 1.064 | C101: 15.65
B102: 1.065 | C102: 15.88
B103: 1.066 | C103: 16.11
B104: 1.067 | C104: 16.34
B105: 1.068 | C105: 16.57
B106: 1.069 | C106: 16.8
B107: 1.07 | C107: 17.03
B108: 1.071 | C108: 17.26
B109: 1.072 | C109: 17.49
B110: 1.073 | C110: 17.72
B111: 1.074 | C111: 17.95
B112: 1.075 | C112: 18.18
B113: 1.076 | C113: 18.4
B114: 1.077 | C114: 18.63
B115: 1.078 | C115: 18.86
B116: 1.079 | C116: 19.08
B117: 1.08 | C117: 19.31
B118: 1.081 | C118: 19.53
B119: 1.082 | C119: 19.76
B120: 1.083 | C120: 19.98
B121: 1.084 | C121: 20.21
B122: 1.085 | C122: 20.43
B123: 1.086 | C123: 20.65
B124: 1.087 | C124: 20.88
B125: 1.088 | C125: 21.1
B126: 1.089 | C126: 21.32
B127: 1.09 | C127: 21.54
B128: 1.091 | C128: 21.77
B129: 1.092 | C129: 21.99
B130: 1.093 | C130: 22.21
B131: 1.094 | C131: 22.43
B132: 1.095 | C132: 22.65
B133: 1.096 | C133: 22.87
B134: 1.097 | C134: 23.09
B135: 1.098 | C135: 23.31
B136: 1.099 | C136: 23.53
B137: 1.1 | C137: 23.75
B138: 1.101 | C138: 23.96
B139: 1.102 | C139: 24.18
B140: 1.103 | C140: 24.4
B141: 1.104 | C141: 24.62
B142: 1.105 | C142: 24.83
B143: 1.106 | C143: 25.05
B144: 1.107 | C144: 25.27
B145: 1.108 | C145: 25.48
B146: 1.109 | C146: 25.7
B147: 1.11 | C147: 25.91
B148: 1.111 | C148: 26.13
B149: 1.112 | C149: 26.34
B150: 1.113 | C150: 26.56
B151: 1.114 | C151: 26.77
B152: 1.115 | C152: 26.98
B153: 1.116 | C153: 27.2
B154: 1.117 | C154: 27.41
B155: 1.118 | C155: 27.62
B156: 1.119 | C156: 27.83
B157: 1.12 | C157: 28.05
B158: 1.121 | C158: 28.26
B159: 1.122 | C159: 28.47
B160: 1.123 | C160: 28.68
B161: 1.124 | C161: 28.89
B162: 1.125 | C162: 29.1
B163: 1.126 | C163: 29.31
B164: 1.127 | C164: 29.52
B165: 1.128 | C165: 29.73
B166: 1.129 | C166: 29.94
B167: 1.13 | C167: 30.15

Sheet Malt
A1: Malttyper | B1: EBC Range | C1: EBC Avg. | D1: Ekstraktudbytte | E1: Karakteristik | F1: Malt i kg | G1: Brygladen | H1: Hjemmebryggeren | I1: Albryg (10g interval) | J1: Bryglageret | K1: Brygforretningen | M1: Malt Pris Grupper | N1: Priser kr./kg | P1: DropDown Menu
A2: Basis Malt | G2: G | H2: H | I2: I | J2: J | K2: K | N2: 15
A3: Pilsner | B3: 2,5 - 3,5 | C3: 3 | D3: 300 | E3: Høj enzymaktivitet | F3: =IFERROR(VLOOKUP(Malt!$A3,BrewReport!$A$9:$C$18,3,FALSE),0) -> 0 | G3: =F3*N5 -> 0 | H3: =F3*N7 -> 0 | I3: =F3*N7 -> 0 | J3: =F3*N7 -> 0 | K3: =F3*N5 -> 0 | N3: 16 | P3: =IFERROR(INDEX($A$3:$A$75, SMALL(IF(ISBLANK(INDIRECT(CONCATENATE("$",HLOOKUP(BrewReport!$E$7,$G$1:$K$2,2,FALSE),"$3:$",HLOOKUP(BrewReport!$E$7,$G$1:$K$2,2,FALSE),"$80"))), "", ROW(INDIRECT(CONCATENATE("$",HLOOKUP(BrewReport!$E$7,$G$1:$K$2,2,FALSE),"$3:$",HLOOKUP(BrewReport!$E$7,$G$1:$K$2,2,FALSE),"$80")))-MIN(ROW(INDIRECT(CONCATENATE("$",HLOOKUP(BrewReport!$E$7,$G$1:$K$2,2,FALSE),"$3:$",HLOOKUP(BrewReport!$E$7,$G$1:$K$2,2,FALSE),"$80"))))+1), ROW(A1))),"") -> Pilsner
A4: Fuglsang Pilsner | B4: 3,7 | C4: 3,7 | D4: 320 | E4: Dansk, Høj enzymaktivitet | F4: =IFERROR(VLOOKUP(Malt!$A4,BrewReport!$A$9:$C$18,3,FALSE),0) -> 0 | I4: =F4*N2 -> 0 | N4: 17 | P4: =IFERROR(INDEX($A$3:$A$75, SMALL(IF(ISBLANK(INDIRECT(CONCATENATE("$",HLOOKUP(BrewReport!$E$7,$G$1:$K$2,2,FALSE),"$3:$",HLOOKUP(BrewReport!$E$7,$G$1:$K$2,2,FALSE),"$80"))), "", ROW(INDIRECT(CONCATENATE("$",HLOOKUP(BrewReport!$E$7,$G$1:$K$2,2,FALSE),"$3:$",HLOOKUP(BrewReport!$E$7,$G$1:$K$2,2,FALSE),"$80")))-MIN(ROW(INDIRECT(CONCATENATE("$",HLOOKUP(BrewReport!$E$7,$G$1:$K$2,2,FALSE),"$3:$",HLOOKUP(BrewReport!$E$7,$G$1:$K$2,2,FALSE),"$80"))))+1), ROW(A2))),"") -> Vienna
A5: Pilsner Bohemian | B5: 2,5 - 3,5 | C5: 3 | D5: 300 | E5: Høj enzymaktivitet | F5: =IFERROR(VLOOKUP(Malt!$A5,BrewReport!$A$9:$C$18,3,FALSE),0) -> 0 | G5: =F5*N5 -> 0 | I5: =F5*N3 -> 0 | J5: =F5*N7 -> 0 | M5: Grp 1 | N5: 18 | P5: =IFERROR(INDEX($A$3:$A$75, SMALL(IF(ISBLANK(INDIRECT(CONCATENATE("$",HLOOKUP(BrewReport!$E$7,$G$1:$K$2,2,FALSE),"$3:$",HLOOKUP(BrewReport!$E$7,$G$1:$K$2,2,FALSE),"$80"))), "", ROW(INDIRECT(CONCATENATE("$",HLOOKUP(BrewReport!$E$7,$G$1:$K$2,2,FALSE),"$3:$",HLOOKUP(BrewReport!$E$7,$G$1:$K$2,2,FALSE),"$80")))-MIN(ROW(INDIRECT(CONCATENATE("$",HLOOKUP(BrewReport!$E$7,$G$1:$K$2,2,FALSE),"$3:$",HLOOKUP(BrewReport!$E$7,$G$1:$K$2,2,FALSE),"$80"))))+1), ROW(A3))),"") -> Pale Ale
A6: Vienna | B6: 5 - 7 | C6: 6 | D6: 300 | E6: Farve, sødme og fylde | F6: =IFERROR(VLOOKUP(Malt!$A6,BrewReport!$A$9:$C$18,3,FALSE),0) -> 0 | G6: =F6*N5 -> 0 | H6: =F6*N7 -> 0 | I6: =F6*N3 -> 0 | K6: =F6*N5 -> 0 | M6: Grp 2 | N6: 19 | P6: =IFERROR(INDEX($A$3:$A$75, SMALL(IF(ISBLANK(INDIRECT(CONCATENATE("$",HLOOKUP(BrewReport!$E$7,$G$1:$K$2,2,FALSE),"$3:$",HLOOKUP(BrewReport!$E$7,$G$1:$K$2,2,FALSE),"$80"))), "", ROW(INDIRECT(CONCATENATE("$",HLOOKUP(BrewReport!$E$7,$G$1:$K$2,2,FALSE),"$3:$",HLOOKUP(BrewReport!$E$7,$G$1:$K$2,2,FALSE),"$80")))-MIN(ROW(INDIRECT(CONCATENATE("$",HLOOKUP(BrewReport!$E$7,$G$1:$K$2,2,FALSE),"$3:$",HLOOKUP(BrewReport!$E$7,$G$1:$K$2,2,FALSE),"$80"))))+1), ROW(A4))),"") -> Munich (Type 2)
A7: Pale Ale | B7: 7,0 - 9,0 | C7: 8 | D7: 300 | E7: Mørkere og mere maltet end Pilsner | F7: =IFERROR(VLOOKUP(Malt!$A7,BrewReport!$A$9:$C$18,3,FALSE),0) -> 5.5 | G7: =F7*N7 -> 110 | H7: =F7*N6 -> 104.5 | I7: =F7*N3 -> 88 | J7: =F7*N6 -> 104.5 | K7: =F7*N5 -> 99 | M7: Grp 3 | N7: 20 | P7: =IFERROR(INDEX($A$3:$A$75, SMALL(IF(ISBLANK(INDIRECT(CONCATENATE("$",HLOOKUP(BrewReport!$E$7,$G$1:$K$2,2,FALSE),"$3:$",HLOOKUP(BrewReport!$E$7,$G$1:$K$2,2,FALSE),"$80"))), "", ROW(INDIRECT(CONCATENATE("$",HLOOKUP(BrewReport!$E$7,$G$1:$K$2,2,FALSE),"$3:$",HLOOKUP(BrewReport!$E$7,$G$1:$K$2,2,FALSE),"$80")))-MIN(ROW(INDIRECT(CONCATENATE("$",HLOOKUP(BrewReport!$E$7,$G$1:$K$2,2,FALSE),"$3:$",HLOOKUP(BrewReport!$E$7,$G$1:$K$2,2,FALSE),"$80"))))+1), ROW(A5))),"") -> Munich Light (Type 1)
A8: Munich (Type 2) | B8: 20 - 25 | C8: 25 | D8: 290 | E8: Sødme og fylde | F8: =IFERROR(VLOOKUP(Malt!$A8,BrewReport!$A$9:$C$18,3,FALSE),0) -> 0 | G8: =F8*N5 -> 0 | H8: =F8*N7 -> 0 | I8: =F8*N7 -> 0 | J8: =F8*N16 -> 0 | K8: =F8*N5 -> 0 | M8: Grp 4 | N8: 21 | P8: =IFERROR(INDEX($A$3:$A$75, SMALL(IF(ISBLANK(INDIRECT(CONCATENATE("$",HLOOKUP(BrewReport!$E$7,$G$1:$K$2,2,FALSE),"$3:$",HLOOKUP(BrewReport!$E$7,$G$1:$K$2,2,FALSE),"$80"))), "", ROW(INDIRECT(CONCATENATE("$",HLOOKUP(BrewReport!$E$7,$G$1:$K$2,2,FALSE),"$3:$",HLOOKUP(BrewReport!$E$7,$G$1:$K$2,2,FALSE),"$80")))-MIN(ROW(INDIRECT(CONCATENATE("$",HLOOKUP(BrewReport!$E$7,$G$1:$K$2,2,FALSE),"$3:$",HLOOKUP(BrewReport!$E$7,$G$1:$K$2,2,FALSE),"$80"))))+1), ROW(A6))),"") -> Maris Otter Ale
A9: Munich Light (Type 1) | B9: 13 - 17 | C9: 15 | D9: 290 | E9: Sødme og fylde | F9: =IFERROR(VLOOKUP(Malt!$A9,BrewReport!$A$9:$C$18,3,FALSE),0) -> 0 | G9: =F9*N5 -> 0 | H9: =F9*N7 -> 0 | I9: =F9*N7 -> 0 | J9: =F9*N16 -> 0 | K9: =F9*N5 -> 0 | M9: Grp 5 | N9: 22 | P9: =IFERROR(INDEX($A$3:$A$75, SMALL(IF(ISBLANK(INDIRECT(CONCATENATE("$",HLOOKUP(BrewReport!$E$7,$G$1:$K$2,2,FALSE),"$3:$",HLOOKUP(BrewReport!$E$7,$G$1:$K$2,2,FALSE),"$80"))), "", ROW(INDIRECT(CONCATENATE("$",HLOOKUP(BrewReport!$E$7,$G$1:$K$2,2,FALSE),"$3:$",HLOOKUP(BrewReport!$E$7,$G$1:$K$2,2,FALSE),"$80")))-MIN(ROW(INDIRECT(CONCATENATE("$",HLOOKUP(BrewReport!$E$7,$G$1:$K$2,2,FALSE),"$3:$",HLOOKUP(BrewReport!$E$7,$G$1:$K$2,2,FALSE),"$80"))))+1), ROW(A7))),"") -> Cara 20 (Blond)
A10: Maris Otter Ale | B10: 8 | C10: 8 | D10: 320 | E10: Fyldig, nødder, let orange farve | F10: =IFERROR(VLOOKUP(Malt!$A10,BrewReport!$A$9:$C$18,3,FALSE),0) -> 0 | G10: =F10*N6 -> 0 | H10: =F10*N7 -> 0 | K10: =F10*N12 -> 0 | M10: Grp 6 | N10: 23 | P10: =IFERROR(INDEX($A$3:$A$75, SMALL(IF(ISBLANK(INDIRECT(CONCATENATE("$",HLOOKUP(BrewReport!$E$7,$G$1:$K$2,2,FALSE),"$3:$",HLOOKUP(BrewReport!$E$7,$G$1:$K$2,2,FALSE),"$80"))), "", ROW(INDIRECT(CONCATENATE("$",HLOOKUP(BrewReport!$E$7,$G$1:$K$2,2,FALSE),"$3:$",HLOOKUP(BrewReport!$E$7,$G$1:$K$2,2,FALSE),"$80")))-MIN(ROW(INDIRECT(CONCATENATE("$",HLOOKUP(BrewReport!$E$7,$G$1:$K$2,2,FALSE),"$3:$",HLOOKUP(BrewReport!$E$7,$G$1:$K$2,2,FALSE),"$80"))))+1), ROW(A8))),"") -> Cara Crystal (Gold)
A11: Red X | B11: 30 | C11: 30 | D11: 290 | E11: Fyldig, intens rødlig farve | F11: =IFERROR(VLOOKUP(Malt!$A11,BrewReport!$A$9:$C$18,3,FALSE),0) -> 0 | G11: =F11*N6 -> 0 | M11: Grp 7 | N11: 24 | P11: =IFERROR(INDEX($A$3:$A$75, SMALL(IF(ISBLANK(INDIRECT(CONCATENATE("$",HLOOKUP(BrewReport!$E$7,$G$1:$K$2,2,FALSE),"$3:$",HLOOKUP(BrewReport!$E$7,$G$1:$K$2,2,FALSE),"$80"))), "", ROW(INDIRECT(CONCATENATE("$",HLOOKUP(BrewReport!$E$7,$G$1:$K$2,2,FALSE),"$3:$",HLOOKUP(BrewReport!$E$7,$G$1:$K$2,2,FALSE),"$80")))-MIN(ROW(INDIRECT(CONCATENATE("$",HLOOKUP(BrewReport!$E$7,$G$1:$K$2,2,FALSE),"$3:$",HLOOKUP(BrewReport!$E$7,$G$1:$K$2,2,FALSE),"$80"))))+1), ROW(A9))),"") -> Cara Ruby
A12: Karamel Malt | M12: Grp 8 | N12: 25 | P12: =IFERROR(INDEX($A$3:$A$75, SMALL(IF(ISBLANK(INDIRECT(CONCATENATE("$",HLOOKUP(BrewReport!$E$7,$G$1:$K$2,2,FALSE),"$3:$",HLOOKUP(BrewReport!$E$7,$G$1:$K$2,2,FALSE),"$80"))), "", ROW(INDIRECT(CONCATENATE("$",HLOOKUP(BrewReport!$E$7,$G$1:$K$2,2,FALSE),"$3:$",HLOOKUP(BrewReport!$E$7,$G$1:$K$2,2,FALSE),"$80")))-MIN(ROW(INDIRECT(CONCATENATE("$",HLOOKUP(BrewReport!$E$7,$G$1:$K$2,2,FALSE),"$3:$",HLOOKUP(BrewReport!$E$7,$G$1:$K$2,2,FALSE),"$80"))))+1), ROW(A10))),"") -> Crystal
A13: Cara Pils | B13: 5 | C13: 5 | D13: 275 | F13: =IFERROR(VLOOKUP(Malt!$A13,BrewReport!$A$9:$C$18,3,FALSE),0) -> 0 | G13: =F13*N8 -> 0 | I13: =F13*N7 -> 0 | J13: =F13*N16 -> 0 | K13: =F13*N9 -> 0 | M13: Grp 9 | N13: 26 | P13: =IFERROR(INDEX($A$3:$A$75, SMALL(IF(ISBLANK(INDIRECT(CONCATENATE("$",HLOOKUP(BrewReport!$E$7,$G$1:$K$2,2,FALSE),"$3:$",HLOOKUP(BrewReport!$E$7,$G$1:$K$2,2,FALSE),"$80"))), "", ROW(INDIRECT(CONCATENATE("$",HLOOKUP(BrewReport!$E$7,$G$1:$K$2,2,FALSE),"$3:$",HLOOKUP(BrewReport!$E$7,$G$1:$K$2,2,FALSE),"$80")))-MIN(ROW(INDIRECT(CONCATENATE("$",HLOOKUP(BrewReport!$E$7,$G$1:$K$2,2,FALSE),"$3:$",HLOOKUP(BrewReport!$E$7,$G$1:$K$2,2,FALSE),"$80"))))+1), ROW(A11))),"") -> Special B
A14: Cara 20 (Blond) | B14: 20 | C14: 20 | D14: 280 | E14: Mild karamel smag og gylden farve | F14: =IFERROR(VLOOKUP(Malt!$A14,BrewReport!$A$9:$C$18,3,FALSE),0) -> 0 | G14: =F14*N8 -> 0 | H14: =F14*N16 -> 0 | J14: =F14*N16 -> 0 | K14: =F14*N9 -> 0 | M14: Grp 10 | N14: 27 | P14: =IFERROR(INDEX($A$3:$A$75, SMALL(IF(ISBLANK(INDIRECT(CONCATENATE("$",HLOOKUP(BrewReport!$E$7,$G$1:$K$2,2,FALSE),"$3:$",HLOOKUP(BrewReport!$E$7,$G$1:$K$2,2,FALSE),"$80"))), "", ROW(INDIRECT(CONCATENATE("$",HLOOKUP(BrewReport!$E$7,$G$1:$K$2,2,FALSE),"$3:$",HLOOKUP(BrewReport!$E$7,$G$1:$K$2,2,FALSE),"$80")))-MIN(ROW(INDIRECT(CONCATENATE("$",HLOOKUP(BrewReport!$E$7,$G$1:$K$2,2,FALSE),"$3:$",HLOOKUP(BrewReport!$E$7,$G$1:$K$2,2,FALSE),"$80"))))+1), ROW(A12))),"") -> Coffee / Café Light
A15: Carabelge | B15: 30 - 35 | C15: 33 | D15: 280 | F15: =IFERROR(VLOOKUP(Malt!$A15,BrewReport!$A$9:$C$18,3,FALSE),0) -> 0 | I15: =F15*N7 -> 0 | M15: Grp 11 | N15: 28 | P15: =IFERROR(INDEX($A$3:$A$75, SMALL(IF(ISBLANK(INDIRECT(CONCATENATE("$",HLOOKUP(BrewReport!$E$7,$G$1:$K$2,2,FALSE),"$3:$",HLOOKUP(BrewReport!$E$7,$G$1:$K$2,2,FALSE),"$80"))), "", ROW(INDIRECT(CONCATENATE("$",HLOOKUP(BrewReport!$E$7,$G$1:$K$2,2,FALSE),"$3:$",HLOOKUP(BrewReport!$E$7,$G$1:$K$2,2,FALSE),"$80")))-MIN(ROW(INDIRECT(CONCATENATE("$",HLOOKUP(BrewReport!$E$7,$G$1:$K$2,2,FALSE),"$3:$",HLOOKUP(BrewReport!$E$7,$G$1:$K$2,2,FALSE),"$80"))))+1), ROW(A13))),"") -> Coffee / Café
A16: Cara Vienna | B16: 50 | C16: 50 | D16: 280 | F16: =IFERROR(VLOOKUP(Malt!$A16,BrewReport!$A$9:$C$18,3,FALSE),0) -> 0 | G16: =F16*N8 -> 0 | J16: =F16*N16 -> 0 | M16: Grp 12 | N16: 30 | P16: =IFERROR(INDEX($A$3:$A$75, SMALL(IF(ISBLANK(INDIRECT(CONCATENATE("$",HLOOKUP(BrewReport!$E$7,$G$1:$K$2,2,FALSE),"$3:$",HLOOKUP(BrewReport!$E$7,$G$1:$K$2,2,FALSE),"$80"))), "", ROW(INDIRECT(CONCATENATE("$",HLOOKUP(BrewReport!$E$7,$G$1:$K$2,2,FALSE),"$3:$",HLOOKUP(BrewReport!$E$7,$G$1:$K$2,2,FALSE),"$80")))-MIN(ROW(INDIRECT(CONCATENATE("$",HLOOKUP(BrewReport!$E$7,$G$1:$K$2,2,FALSE),"$3:$",HLOOKUP(BrewReport!$E$7,$G$1:$K$2,2,FALSE),"$80"))))+1), ROW(A14))),"") -> Roasted Barley
A17: Cara Crystal (Gold) | B17: 110 - 130 | C17: 120 | D17: 280 | E17: Stor karamel- og toffee smag, bedre skum og fylde | F17: =IFERROR(VLOOKUP(Malt!$A17,BrewReport!$A$9:$C$18,3,FALSE),0) -> 0 | G17: =F17*N8 -> 0 | H17: =F17*N16 -> 0 | I17: =F17*N7 -> 0 | K17: =F17*N9 -> 0 | M17: Grp 13 | N17: 40 | P17: =IFERROR(INDEX($A$3:$A$75, SMALL(IF(ISBLANK(INDIRECT(CONCATENATE("$",HLOOKUP(BrewReport!$E$7,$G$1:$K$2,2,FALSE),"$3:$",HLOOKUP(BrewReport!$E$7,$G$1:$K$2,2,FALSE),"$80"))), "", ROW(INDIRECT(CONCATENATE("$",HLOOKUP(BrewReport!$E$7,$G$1:$K$2,2,FALSE),"$3:$",HLOOKUP(BrewReport!$E$7,$G$1:$K$2,2,FALSE),"$80")))-MIN(ROW(INDIRECT(CONCATENATE("$",HLOOKUP(BrewReport!$E$7,$G$1:$K$2,2,FALSE),"$3:$",HLOOKUP(BrewReport!$E$7,$G$1:$K$2,2,FALSE),"$80"))))+1), ROW(A15))),"") -> Chocolate / carafa Type I
A18: Chateau Cara | B18: 150 | C18: 150 | D18: 280 | F18: =IFERROR(VLOOKUP(Malt!$A18,BrewReport!$A$9:$C$18,3,FALSE),0) -> 0 | I18: =F18*N7 -> 0 | K18: =F18*N9 -> 0 | P18: =IFERROR(INDEX($A$3:$A$75, SMALL(IF(ISBLANK(INDIRECT(CONCATENATE("$",HLOOKUP(BrewReport!$E$7,$G$1:$K$2,2,FALSE),"$3:$",HLOOKUP(BrewReport!$E$7,$G$1:$K$2,2,FALSE),"$80"))), "", ROW(INDIRECT(CONCATENATE("$",HLOOKUP(BrewReport!$E$7,$G$1:$K$2,2,FALSE),"$3:$",HLOOKUP(BrewReport!$E$7,$G$1:$K$2,2,FALSE),"$80")))-MIN(ROW(INDIRECT(CONCATENATE("$",HLOOKUP(BrewReport!$E$7,$G$1:$K$2,2,FALSE),"$3:$",HLOOKUP(BrewReport!$E$7,$G$1:$K$2,2,FALSE),"$80"))))+1), ROW(A16))),"") -> Black / carafa Type III
A19: Cara Hell | B19: 25 | C19: 25 | D19: 280 | F19: =IFERROR(VLOOKUP(Malt!$A19,BrewReport!$A$9:$C$18,3,FALSE),0) -> 0 | G19: =F19*N8 -> 0 | I19: =F19*N7 -> 0 | J19: =F19*N16 -> 0 | P19: =IFERROR(INDEX($A$3:$A$75, SMALL(IF(ISBLANK(INDIRECT(CONCATENATE("$",HLOOKUP(BrewReport!$E$7,$G$1:$K$2,2,FALSE),"$3:$",HLOOKUP(BrewReport!$E$7,$G$1:$K$2,2,FALSE),"$80"))), "", ROW(INDIRECT(CONCATENATE("$",HLOOKUP(BrewReport!$E$7,$G$1:$K$2,2,FALSE),"$3:$",HLOOKUP(BrewReport!$E$7,$G$1:$K$2,2,FALSE),"$80")))-MIN(ROW(INDIRECT(CONCATENATE("$",HLOOKUP(BrewReport!$E$7,$G$1:$K$2,2,FALSE),"$3:$",HLOOKUP(BrewReport!$E$7,$G$1:$K$2,2,FALSE),"$80"))))+1), ROW(A17))),"") -> Wheat
A20: Cara Munich Type I | B20: 80 - 100 | C20: 90 | D20: 275 | F20: =IFERROR(VLOOKUP(Malt!$A20,BrewReport!$A$9:$C$18,3,FALSE),0) -> 0 | G20: =F20*N7 -> 0 | I20: =F20*N7 -> 0 | J20: =F20*N15 -> 0 | P20: =IFERROR(INDEX($A$3:$A$75, SMALL(IF(ISBLANK(INDIRECT(CONCATENATE("$",HLOOKUP(BrewReport!$E$7,$G$1:$K$2,2,FALSE),"$3:$",HLOOKUP(BrewReport!$E$7,$G$1:$K$2,2,FALSE),"$80"))), "", ROW(INDIRECT(CONCATENATE("$",HLOOKUP(BrewReport!$E$7,$G$1:$K$2,2,FALSE),"$3:$",HLOOKUP(BrewReport!$E$7,$G$1:$K$2,2,FALSE),"$80")))-MIN(ROW(INDIRECT(CONCATENATE("$",HLOOKUP(BrewReport!$E$7,$G$1:$K$2,2,FALSE),"$3:$",HLOOKUP(BrewReport!$E$7,$G$1:$K$2,2,FALSE),"$80"))))+1), ROW(A18))),"") -> Wheat Spelt
A21: Cara Munich Type II | B21: 110 - 130 | C21: 120 | D21: 275 | F21: =IFERROR(VLOOKUP(Malt!$A21,BrewReport!$A$9:$C$18,3,FALSE),0) -> 0 | G21: =F21*N7 -> 0 | I21: =F21*N7 -> 0 | J21: =F21*N15 -> 0 | P21: =IFERROR(INDEX($A$3:$A$75, SMALL(IF(ISBLANK(INDIRECT(CONCATENATE("$",HLOOKUP(BrewReport!$E$7,$G$1:$K$2,2,FALSE),"$3:$",HLOOKUP(BrewReport!$E$7,$G$1:$K$2,2,FALSE),"$80"))), "", ROW(INDIRECT(CONCATENATE("$",HLOOKUP(BrewReport!$E$7,$G$1:$K$2,2,FALSE),"$3:$",HLOOKUP(BrewReport!$E$7,$G$1:$K$2,2,FALSE),"$80")))-MIN(ROW(INDIRECT(CONCATENATE("$",HLOOKUP(BrewReport!$E$7,$G$1:$K$2,2,FALSE),"$3:$",HLOOKUP(BrewReport!$E$7,$G$1:$K$2,2,FALSE),"$80"))))+1), ROW(A19))),"") -> Biscuit
A22: Cara Munich Type III | B22: 140 - 160 | C22: 150 | D22: 275 | F22: =IFERROR(VLOOKUP(Malt!$A22,BrewReport!$A$9:$C$18,3,FALSE),0) -> 0 | G22: =F22*N8 -> 0 | J22: =F22*N16 -> 0 | P22: =IFERROR(INDEX($A$3:$A$75, SMALL(IF(ISBLANK(INDIRECT(CONCATENATE("$",HLOOKUP(BrewReport!$E$7,$G$1:$K$2,2,FALSE),"$3:$",HLOOKUP(BrewReport!$E$7,$G$1:$K$2,2,FALSE),"$80"))), "", ROW(INDIRECT(CONCATENATE("$",HLOOKUP(BrewReport!$E$7,$G$1:$K$2,2,FALSE),"$3:$",HLOOKUP(BrewReport!$E$7,$G$1:$K$2,2,FALSE),"$80")))-MIN(ROW(INDIRECT(CONCATENATE("$",HLOOKUP(BrewReport!$E$7,$G$1:$K$2,2,FALSE),"$3:$",HLOOKUP(BrewReport!$E$7,$G$1:$K$2,2,FALSE),"$80"))))+1), ROW(A20))),"") -> Arome
A23: Cara Red | B23: 40 | C23: 40 | D23: 290 | F23: =IFERROR(VLOOKUP(Malt!$A23,BrewReport!$A$9:$C$18,3,FALSE),0) -> 0 | G23: =F23*N8 -> 0 | I23: =F23*N7 -> 0 | J23: =F23*N16 -> 0 | P23: =IFERROR(INDEX($A$3:$A$75, SMALL(IF(ISBLANK(INDIRECT(CONCATENATE("$",HLOOKUP(BrewReport!$E$7,$G$1:$K$2,2,FALSE),"$3:$",HLOOKUP(BrewReport!$E$7,$G$1:$K$2,2,FALSE),"$80"))), "", ROW(INDIRECT(CONCATENATE("$",HLOOKUP(BrewReport!$E$7,$G$1:$K$2,2,FALSE),"$3:$",HLOOKUP(BrewReport!$E$7,$G$1:$K$2,2,FALSE),"$80")))-MIN(ROW(INDIRECT(CONCATENATE("$",HLOOKUP(BrewReport!$E$7,$G$1:$K$2,2,FALSE),"$3:$",HLOOKUP(BrewReport!$E$7,$G$1:$K$2,2,FALSE),"$80"))))+1), ROW(A21))),"") -> Melano Light
A24: Cara Aroma | B24: 350 - 450 | C24: 400 | D24: 290 | F24: =IFERROR(VLOOKUP(Malt!$A24,BrewReport!$A$9:$C$18,3,FALSE),0) -> 0 | G24: =F24*N9 -> 0 | J24: =F24*N16 -> 0 | P24: =IFERROR(INDEX($A$3:$A$75, SMALL(IF(ISBLANK(INDIRECT(CONCATENATE("$",HLOOKUP(BrewReport!$E$7,$G$1:$K$2,2,FALSE),"$3:$",HLOOKUP(BrewReport!$E$7,$G$1:$K$2,2,FALSE),"$80"))), "", ROW(INDIRECT(CONCATENATE("$",HLOOKUP(BrewReport!$E$7,$G$1:$K$2,2,FALSE),"$3:$",HLOOKUP(BrewReport!$E$7,$G$1:$K$2,2,FALSE),"$80")))-MIN(ROW(INDIRECT(CONCATENATE("$",HLOOKUP(BrewReport!$E$7,$G$1:$K$2,2,FALSE),"$3:$",HLOOKUP(BrewReport!$E$7,$G$1:$K$2,2,FALSE),"$80"))))+1), ROW(A22))),"") -> Melano
A25: Cara Amber | B25: 60 | C25: 60 | D25: 290 | F25: =IFERROR(VLOOKUP(Malt!$A25,BrewReport!$A$9:$C$18,3,FALSE),0) -> 0 | G25: =F25*N9 -> 0 | J25: =F25*N16 -> 0 | P25: =IFERROR(INDEX($A$3:$A$75, SMALL(IF(ISBLANK(INDIRECT(CONCATENATE("$",HLOOKUP(BrewReport!$E$7,$G$1:$K$2,2,FALSE),"$3:$",HLOOKUP(BrewReport!$E$7,$G$1:$K$2,2,FALSE),"$80"))), "", ROW(INDIRECT(CONCATENATE("$",HLOOKUP(BrewReport!$E$7,$G$1:$K$2,2,FALSE),"$3:$",HLOOKUP(BrewReport!$E$7,$G$1:$K$2,2,FALSE),"$80")))-MIN(ROW(INDIRECT(CONCATENATE("$",HLOOKUP(BrewReport!$E$7,$G$1:$K$2,2,FALSE),"$3:$",HLOOKUP(BrewReport!$E$7,$G$1:$K$2,2,FALSE),"$80"))))+1), ROW(A23))),"") -> Boghvede / Buckwheat
A26: Cara Rye | B26: 90 | C26: 90 | D26: 260 | F26: =IFERROR(VLOOKUP(Malt!$A26,BrewReport!$A$9:$C$18,3,FALSE),0) -> 0 | G26: =F26*N9 -> 0 | P26: =IFERROR(INDEX($A$3:$A$75, SMALL(IF(ISBLANK(INDIRECT(CONCATENATE("$",HLOOKUP(BrewReport!$E$7,$G$1:$K$2,2,FALSE),"$3:$",HLOOKUP(BrewReport!$E$7,$G$1:$K$2,2,FALSE),"$80"))), "", ROW(INDIRECT(CONCATENATE("$",HLOOKUP(BrewReport!$E$7,$G$1:$K$2,2,FALSE),"$3:$",HLOOKUP(BrewReport!$E$7,$G$1:$K$2,2,FALSE),"$80")))-MIN(ROW(INDIRECT(CONCATENATE("$",HLOOKUP(BrewReport!$E$7,$G$1:$K$2,2,FALSE),"$3:$",HLOOKUP(BrewReport!$E$7,$G$1:$K$2,2,FALSE),"$80"))))+1), ROW(A24))),"") -> Sauer / Acid
A27: Cara Ruby | B27: 50 | C27: 50 | D27: 290 | E27: Rig karamelsmag og toffee aroma | F27: =IFERROR(VLOOKUP(Malt!$A27,BrewReport!$A$9:$C$18,3,FALSE),0) -> 0 | H27: =F27*N16 -> 0 | I27: =F27*N3 -> 0 | K27: =F27*N9 -> 0 | P27: =IFERROR(INDEX($A$3:$A$75, SMALL(IF(ISBLANK(INDIRECT(CONCATENATE("$",HLOOKUP(BrewReport!$E$7,$G$1:$K$2,2,FALSE),"$3:$",HLOOKUP(BrewReport!$E$7,$G$1:$K$2,2,FALSE),"$80"))), "", ROW(INDIRECT(CONCATENATE("$",HLOOKUP(BrewReport!$E$7,$G$1:$K$2,2,FALSE),"$3:$",HLOOKUP(BrewReport!$E$7,$G$1:$K$2,2,FALSE),"$80")))-MIN(ROW(INDIRECT(CONCATENATE("$",HLOOKUP(BrewReport!$E$7,$G$1:$K$2,2,FALSE),"$3:$",HLOOKUP(BrewReport!$E$7,$G$1:$K$2,2,FALSE),"$80"))))+1), ROW(A25))),"") -> Abbey
A28: Cara Wheat | B28: 100 - 140 | C28: 120 | D28: 290 | F28: =IFERROR(VLOOKUP(Malt!$A28,BrewReport!$A$9:$C$18,3,FALSE),0) -> 0 | G28: =F28*N9 -> 0 | P28: =IFERROR(INDEX($A$3:$A$75, SMALL(IF(ISBLANK(INDIRECT(CONCATENATE("$",HLOOKUP(BrewReport!$E$7,$G$1:$K$2,2,FALSE),"$3:$",HLOOKUP(BrewReport!$E$7,$G$1:$K$2,2,FALSE),"$80"))), "", ROW(INDIRECT(CONCATENATE("$",HLOOKUP(BrewReport!$E$7,$G$1:$K$2,2,FALSE),"$3:$",HLOOKUP(BrewReport!$E$7,$G$1:$K$2,2,FALSE),"$80")))-MIN(ROW(INDIRECT(CONCATENATE("$",HLOOKUP(BrewReport!$E$7,$G$1:$K$2,2,FALSE),"$3:$",HLOOKUP(BrewReport!$E$7,$G$1:$K$2,2,FALSE),"$80"))))+1), ROW(A26))),"") -> Peated / Røg
A29: Crystal | B29: 150 | C29: 150 | D29: 280 | E29: Rig malt smag og aroma. Blød bitterhed | F29: =IFERROR(VLOOKUP(Malt!$A29,BrewReport!$A$9:$C$18,3,FALSE),0) -> 0 | H29: =F29*N16 -> 0 | P29: =IFERROR(INDEX($A$3:$A$75, SMALL(IF(ISBLANK(INDIRECT(CONCATENATE("$",HLOOKUP(BrewReport!$E$7,$G$1:$K$2,2,FALSE),"$3:$",HLOOKUP(BrewReport!$E$7,$G$1:$K$2,2,FALSE),"$80"))), "", ROW(INDIRECT(CONCATENATE("$",HLOOKUP(BrewReport!$E$7,$G$1:$K$2,2,FALSE),"$3:$",HLOOKUP(BrewReport!$E$7,$G$1:$K$2,2,FALSE),"$80")))-MIN(ROW(INDIRECT(CONCATENATE("$",HLOOKUP(BrewReport!$E$7,$G$1:$K$2,2,FALSE),"$3:$",HLOOKUP(BrewReport!$E$7,$G$1:$K$2,2,FALSE),"$80"))))+1), ROW(A27))),"") -> Oat
A30: Special B | B30: 300 | C30: 300 | D30: 250 | E30: Rosinagtig smag, strejf af nødder og blommer | F30: =IFERROR(VLOOKUP(Malt!$A30,BrewReport!$A$9:$C$18,3,FALSE),0) -> 0 | G30: =F30*N9 -> 0 | H30: =F30*N16 -> 0 | I30: =F30*N7 -> 0 | J30: =F30*N16 -> 0 | P30: =IFERROR(INDEX($A$3:$A$75, SMALL(IF(ISBLANK(INDIRECT(CONCATENATE("$",HLOOKUP(BrewReport!$E$7,$G$1:$K$2,2,FALSE),"$3:$",HLOOKUP(BrewReport!$E$7,$G$1:$K$2,2,FALSE),"$80"))), "", ROW(INDIRECT(CONCATENATE("$",HLOOKUP(BrewReport!$E$7,$G$1:$K$2,2,FALSE),"$3:$",HLOOKUP(BrewReport!$E$7,$G$1:$K$2,2,FALSE),"$80")))-MIN(ROW(INDIRECT(CONCATENATE("$",HLOOKUP(BrewReport!$E$7,$G$1:$K$2,2,FALSE),"$3:$",HLOOKUP(BrewReport!$E$7,$G$1:$K$2,2,FALSE),"$80"))))+1), ROW(A28))),"") -> Rye
A31: Coffee / Café Light | B31: 250 | C31: 250 | D31: 280 | E31: Mild nøddeagtig og kaffesmag | F31: =IFERROR(VLOOKUP(Malt!$A31,BrewReport!$A$9:$C$18,3,FALSE),0) -> 0 | G31: =F31*N10 -> 0 | H31: =F31*N16 -> 0 | K31: =F31*N10 -> 0 | P31: =IFERROR(INDEX($A$3:$A$75, SMALL(IF(ISBLANK(INDIRECT(CONCATENATE("$",HLOOKUP(BrewReport!$E$7,$G$1:$K$2,2,FALSE),"$3:$",HLOOKUP(BrewReport!$E$7,$G$1:$K$2,2,FALSE),"$80"))), "", ROW(INDIRECT(CONCATENATE("$",HLOOKUP(BrewReport!$E$7,$G$1:$K$2,2,FALSE),"$3:$",HLOOKUP(BrewReport!$E$7,$G$1:$K$2,2,FALSE),"$80")))-MIN(ROW(INDIRECT(CONCATENATE("$",HLOOKUP(BrewReport!$E$7,$G$1:$K$2,2,FALSE),"$3:$",HLOOKUP(BrewReport!$E$7,$G$1:$K$2,2,FALSE),"$80"))))+1), ROW(A29))),"") -> Barley Flaked
A32: Coffee / Café | B32: 500 | C32: 500 | D32: 280 | E32: Mild nøddeagtig og kaffesmag | F32: =IFERROR(VLOOKUP(Malt!$A32,BrewReport!$A$9:$C$18,3,FALSE),0) -> 0 | G32: =F32*N10 -> 0 | H32: =F32*N16 -> 0 | K32: =F32*N10 -> 0 | P32: =IFERROR(INDEX($A$3:$A$75, SMALL(IF(ISBLANK(INDIRECT(CONCATENATE("$",HLOOKUP(BrewReport!$E$7,$G$1:$K$2,2,FALSE),"$3:$",HLOOKUP(BrewReport!$E$7,$G$1:$K$2,2,FALSE),"$80"))), "", ROW(INDIRECT(CONCATENATE("$",HLOOKUP(BrewReport!$E$7,$G$1:$K$2,2,FALSE),"$3:$",HLOOKUP(BrewReport!$E$7,$G$1:$K$2,2,FALSE),"$80")))-MIN(ROW(INDIRECT(CONCATENATE("$",HLOOKUP(BrewReport!$E$7,$G$1:$K$2,2,FALSE),"$3:$",HLOOKUP(BrewReport!$E$7,$G$1:$K$2,2,FALSE),"$80"))))+1), ROW(A30))),"") -> Corn Flaked
A33: Cara Clair | B33: 3 - 7 | C33: 5 | D33: 275 | F33: =IFERROR(VLOOKUP(Malt!$A33,BrewReport!$A$9:$C$18,3,FALSE),0) -> 0 | G33: =F33*N8 -> 0 | P33: =IFERROR(INDEX($A$3:$A$75, SMALL(IF(ISBLANK(INDIRECT(CONCATENATE("$",HLOOKUP(BrewReport!$E$7,$G$1:$K$2,2,FALSE),"$3:$",HLOOKUP(BrewReport!$E$7,$G$1:$K$2,2,FALSE),"$80"))), "", ROW(INDIRECT(CONCATENATE("$",HLOOKUP(BrewReport!$E$7,$G$1:$K$2,2,FALSE),"$3:$",HLOOKUP(BrewReport!$E$7,$G$1:$K$2,2,FALSE),"$80")))-MIN(ROW(INDIRECT(CONCATENATE("$",HLOOKUP(BrewReport!$E$7,$G$1:$K$2,2,FALSE),"$3:$",HLOOKUP(BrewReport!$E$7,$G$1:$K$2,2,FALSE),"$80"))))+1), ROW(A31))),"") -> Oat Flaked
A34: Ristet Malt | P34: =IFERROR(INDEX($A$3:$A$75, SMALL(IF(ISBLANK(INDIRECT(CONCATENATE("$",HLOOKUP(BrewReport!$E$7,$G$1:$K$2,2,FALSE),"$3:$",HLOOKUP(BrewReport!$E$7,$G$1:$K$2,2,FALSE),"$80"))), "", ROW(INDIRECT(CONCATENATE("$",HLOOKUP(BrewReport!$E$7,$G$1:$K$2,2,FALSE),"$3:$",HLOOKUP(BrewReport!$E$7,$G$1:$K$2,2,FALSE),"$80")))-MIN(ROW(INDIRECT(CONCATENATE("$",HLOOKUP(BrewReport!$E$7,$G$1:$K$2,2,FALSE),"$3:$",HLOOKUP(BrewReport!$E$7,$G$1:$K$2,2,FALSE),"$80"))))+1), ROW(A32))),"") -> Torrefied Oat Flakes
A35: Roasted Barley | B35: 1200 - 1400 | C35: 1300 | D35: 210 | E35: Kaffeagtig smag, kraftigt ristet smag. Sødme | F35: =IFERROR(VLOOKUP(Malt!$A35,BrewReport!$A$9:$C$18,3,FALSE),0) -> 0 | G35: =F35*N10 -> 0 | H35: =F35*N16 -> 0 | J35: =F35*N15 -> 0 | K35: =F35*N7 -> 0 | P35: =IFERROR(INDEX($A$3:$A$75, SMALL(IF(ISBLANK(INDIRECT(CONCATENATE("$",HLOOKUP(BrewReport!$E$7,$G$1:$K$2,2,FALSE),"$3:$",HLOOKUP(BrewReport!$E$7,$G$1:$K$2,2,FALSE),"$80"))), "", ROW(INDIRECT(CONCATENATE("$",HLOOKUP(BrewReport!$E$7,$G$1:$K$2,2,FALSE),"$3:$",HLOOKUP(BrewReport!$E$7,$G$1:$K$2,2,FALSE),"$80")))-MIN(ROW(INDIRECT(CONCATENATE("$",HLOOKUP(BrewReport!$E$7,$G$1:$K$2,2,FALSE),"$3:$",HLOOKUP(BrewReport!$E$7,$G$1:$K$2,2,FALSE),"$80"))))+1), ROW(A33))),"") -> Wheat Flaked
A36: Roasted Wheat | B36: 950 - 1050 | C36: 1000 | D36: 210 | F36: =IFERROR(VLOOKUP(Malt!$A36,BrewReport!$A$9:$C$18,3,FALSE),0) -> 0 | G36: =F36*N10 -> 0 | J36: =F36*N15 -> 0 | P36: =IFERROR(INDEX($A$3:$A$75, SMALL(IF(ISBLANK(INDIRECT(CONCATENATE("$",HLOOKUP(BrewReport!$E$7,$G$1:$K$2,2,FALSE),"$3:$",HLOOKUP(BrewReport!$E$7,$G$1:$K$2,2,FALSE),"$80"))), "", ROW(INDIRECT(CONCATENATE("$",HLOOKUP(BrewReport!$E$7,$G$1:$K$2,2,FALSE),"$3:$",HLOOKUP(BrewReport!$E$7,$G$1:$K$2,2,FALSE),"$80")))-MIN(ROW(INDIRECT(CONCATENATE("$",HLOOKUP(BrewReport!$E$7,$G$1:$K$2,2,FALSE),"$3:$",HLOOKUP(BrewReport!$E$7,$G$1:$K$2,2,FALSE),"$80"))))+1), ROW(A34))),"") -> Rice Flaked
A37: Roasted Rye | B37: 500 - 800 | C37: 650 | D37: 260 | F37: =IFERROR(VLOOKUP(Malt!$A37,BrewReport!$A$9:$C$18,3,FALSE),0) -> 0 | G37: =F37*N10 -> 0 | I37: =F37*N4 -> 0 | P37: =IFERROR(INDEX($A$3:$A$75, SMALL(IF(ISBLANK(INDIRECT(CONCATENATE("$",HLOOKUP(BrewReport!$E$7,$G$1:$K$2,2,FALSE),"$3:$",HLOOKUP(BrewReport!$E$7,$G$1:$K$2,2,FALSE),"$80"))), "", ROW(INDIRECT(CONCATENATE("$",HLOOKUP(BrewReport!$E$7,$G$1:$K$2,2,FALSE),"$3:$",HLOOKUP(BrewReport!$E$7,$G$1:$K$2,2,FALSE),"$80")))-MIN(ROW(INDIRECT(CONCATENATE("$",HLOOKUP(BrewReport!$E$7,$G$1:$K$2,2,FALSE),"$3:$",HLOOKUP(BrewReport!$E$7,$G$1:$K$2,2,FALSE),"$80"))))+1), ROW(A35))),"") -> Whisky 30 - 45 ppm
A38: Chokolate Rye | B38: 800 | C38: 800 | D38: 260 | F38: =IFERROR(VLOOKUP(Malt!$A38,BrewReport!$A$9:$C$18,3,FALSE),0) -> 0 | I38: =F38*N7 -> 0 | P38: =IFERROR(INDEX($A$3:$A$75, SMALL(IF(ISBLANK(INDIRECT(CONCATENATE("$",HLOOKUP(BrewReport!$E$7,$G$1:$K$2,2,FALSE),"$3:$",HLOOKUP(BrewReport!$E$7,$G$1:$K$2,2,FALSE),"$80"))), "", ROW(INDIRECT(CONCATENATE("$",HLOOKUP(BrewReport!$E$7,$G$1:$K$2,2,FALSE),"$3:$",HLOOKUP(BrewReport!$E$7,$G$1:$K$2,2,FALSE),"$80")))-MIN(ROW(INDIRECT(CONCATENATE("$",HLOOKUP(BrewReport!$E$7,$G$1:$K$2,2,FALSE),"$3:$",HLOOKUP(BrewReport!$E$7,$G$1:$K$2,2,FALSE),"$80"))))+1), ROW(A36))),"") -> Whisky Light 15 - 25 ppm
A39: Chocolate / carafa Type I | B39: 800 - 900 | C39: 850 | D39: 275 | E39: Nøddeagtig og ristet smag | F39: =IFERROR(VLOOKUP(Malt!$A39,BrewReport!$A$9:$C$18,3,FALSE),0) -> 0 | G39: =F39*N10 -> 0 | H39: =F39*N16 -> 0 | I39: =F39*N7 -> 0 | J39: =F39*N16 -> 0 | K39: =F39*N9 -> 0 | P39: =IFERROR(INDEX($A$3:$A$75, SMALL(IF(ISBLANK(INDIRECT(CONCATENATE("$",HLOOKUP(BrewReport!$E$7,$G$1:$K$2,2,FALSE),"$3:$",HLOOKUP(BrewReport!$E$7,$G$1:$K$2,2,FALSE),"$80"))), "", ROW(INDIRECT(CONCATENATE("$",HLOOKUP(BrewReport!$E$7,$G$1:$K$2,2,FALSE),"$3:$",HLOOKUP(BrewReport!$E$7,$G$1:$K$2,2,FALSE),"$80")))-MIN(ROW(INDIRECT(CONCATENATE("$",HLOOKUP(BrewReport!$E$7,$G$1:$K$2,2,FALSE),"$3:$",HLOOKUP(BrewReport!$E$7,$G$1:$K$2,2,FALSE),"$80"))))+1), ROW(A37))),"") -> 
A40: Dehusked Chocolate | B40: 800 | C40: 800 | D40: 275 | F40: =IFERROR(VLOOKUP(Malt!$A40,BrewReport!$A$9:$C$18,3,FALSE),0) -> 0 | G40: =F40*N10 -> 0 | P40: =IFERROR(INDEX($A$3:$A$75, SMALL(IF(ISBLANK(INDIRECT(CONCATENATE("$",HLOOKUP(BrewReport!$E$7,$G$1:$K$2,2,FALSE),"$3:$",HLOOKUP(BrewReport!$E$7,$G$1:$K$2,2,FALSE),"$80"))), "", ROW(INDIRECT(CONCATENATE("$",HLOOKUP(BrewReport!$E$7,$G$1:$K$2,2,FALSE),"$3:$",HLOOKUP(BrewReport!$E$7,$G$1:$K$2,2,FALSE),"$80")))-MIN(ROW(INDIRECT(CONCATENATE("$",HLOOKUP(BrewReport!$E$7,$G$1:$K$2,2,FALSE),"$3:$",HLOOKUP(BrewReport!$E$7,$G$1:$K$2,2,FALSE),"$80"))))+1), ROW(A38))),"") -> 
A41: Black / carafa Type III | B41: 1300 | C41: 1300 | D41: 210 | E41: Let brændt smag | F41: =IFERROR(VLOOKUP(Malt!$A41,BrewReport!$A$9:$C$18,3,FALSE),0) -> 0 | G41: =F41*N10 -> 0 | H41: =F41*N16 -> 0 | I41: =F41*N7 -> 0 | J41: =F41*N16 -> 0 | K41: =F41*N10 -> 0 | P41: =IFERROR(INDEX($A$3:$A$75, SMALL(IF(ISBLANK(INDIRECT(CONCATENATE("$",HLOOKUP(BrewReport!$E$7,$G$1:$K$2,2,FALSE),"$3:$",HLOOKUP(BrewReport!$E$7,$G$1:$K$2,2,FALSE),"$80"))), "", ROW(INDIRECT(CONCATENATE("$",HLOOKUP(BrewReport!$E$7,$G$1:$K$2,2,FALSE),"$3:$",HLOOKUP(BrewReport!$E$7,$G$1:$K$2,2,FALSE),"$80")))-MIN(ROW(INDIRECT(CONCATENATE("$",HLOOKUP(BrewReport!$E$7,$G$1:$K$2,2,FALSE),"$3:$",HLOOKUP(BrewReport!$E$7,$G$1:$K$2,2,FALSE),"$80"))))+1), ROW(A39))),"") -> 
A42: Dehusked Black / carafa Special type II | B42: 1400 | C42: 1400 | D42: 210 | F42: =IFERROR(VLOOKUP(Malt!$A42,BrewReport!$A$9:$C$18,3,FALSE),0) -> 0 | G42: =F42*N10 -> 0 | J42: =F42*N16 -> 0 | P42: =IFERROR(INDEX($A$3:$A$75, SMALL(IF(ISBLANK(INDIRECT(CONCATENATE("$",HLOOKUP(BrewReport!$E$7,$G$1:$K$2,2,FALSE),"$3:$",HLOOKUP(BrewReport!$E$7,$G$1:$K$2,2,FALSE),"$80"))), "", ROW(INDIRECT(CONCATENATE("$",HLOOKUP(BrewReport!$E$7,$G$1:$K$2,2,FALSE),"$3:$",HLOOKUP(BrewReport!$E$7,$G$1:$K$2,2,FALSE),"$80")))-MIN(ROW(INDIRECT(CONCATENATE("$",HLOOKUP(BrewReport!$E$7,$G$1:$K$2,2,FALSE),"$3:$",HLOOKUP(BrewReport!$E$7,$G$1:$K$2,2,FALSE),"$80"))))+1), ROW(A40))),"") -> 
A43: Wheat Chocolate | B43: 900 - 1200 | C43: 1050 | D43: 275 | F43: =IFERROR(VLOOKUP(Malt!$A43,BrewReport!$A$9:$C$18,3,FALSE),0) -> 0 | G43: =F43*N10 -> 0 | I43: =F43*N7 -> 0 | J43: =F43*N16 -> 0 | P43: =IFERROR(INDEX($A$3:$A$75, SMALL(IF(ISBLANK(INDIRECT(CONCATENATE("$",HLOOKUP(BrewReport!$E$7,$G$1:$K$2,2,FALSE),"$3:$",HLOOKUP(BrewReport!$E$7,$G$1:$K$2,2,FALSE),"$80"))), "", ROW(INDIRECT(CONCATENATE("$",HLOOKUP(BrewReport!$E$7,$G$1:$K$2,2,FALSE),"$3:$",HLOOKUP(BrewReport!$E$7,$G$1:$K$2,2,FALSE),"$80")))-MIN(ROW(INDIRECT(CONCATENATE("$",HLOOKUP(BrewReport!$E$7,$G$1:$K$2,2,FALSE),"$3:$",HLOOKUP(BrewReport!$E$7,$G$1:$K$2,2,FALSE),"$80"))))+1), ROW(A41))),"") -> 
A44: Chocolate Spelt | B44: 450 - 650 | C44: 550 | D44: 250 | F44: =IFERROR(VLOOKUP(Malt!$A44,BrewReport!$A$9:$C$18,3,FALSE),0) -> 0 | I44: =F44*N16 -> 0 | P44: =IFERROR(INDEX($A$3:$A$75, SMALL(IF(ISBLANK(INDIRECT(CONCATENATE("$",HLOOKUP(BrewReport!$E$7,$G$1:$K$2,2,FALSE),"$3:$",HLOOKUP(BrewReport!$E$7,$G$1:$K$2,2,FALSE),"$80"))), "", ROW(INDIRECT(CONCATENATE("$",HLOOKUP(BrewReport!$E$7,$G$1:$K$2,2,FALSE),"$3:$",HLOOKUP(BrewReport!$E$7,$G$1:$K$2,2,FALSE),"$80")))-MIN(ROW(INDIRECT(CONCATENATE("$",HLOOKUP(BrewReport!$E$7,$G$1:$K$2,2,FALSE),"$3:$",HLOOKUP(BrewReport!$E$7,$G$1:$K$2,2,FALSE),"$80"))))+1), ROW(A42))),"") -> 
A45: Black of Black | B45: 400 - 600 | C45: 500 | D45: 250 | F45: =IFERROR(VLOOKUP(Malt!$A45,BrewReport!$A$9:$C$18,3,FALSE),0) -> 0 | G45: =F45*N10 -> 0 | K45: =F45*N10 -> 0 | P45: =IFERROR(INDEX($A$3:$A$75, SMALL(IF(ISBLANK(INDIRECT(CONCATENATE("$",HLOOKUP(BrewReport!$E$7,$G$1:$K$2,2,FALSE),"$3:$",HLOOKUP(BrewReport!$E$7,$G$1:$K$2,2,FALSE),"$80"))), "", ROW(INDIRECT(CONCATENATE("$",HLOOKUP(BrewReport!$E$7,$G$1:$K$2,2,FALSE),"$3:$",HLOOKUP(BrewReport!$E$7,$G$1:$K$2,2,FALSE),"$80")))-MIN(ROW(INDIRECT(CONCATENATE("$",HLOOKUP(BrewReport!$E$7,$G$1:$K$2,2,FALSE),"$3:$",HLOOKUP(BrewReport!$E$7,$G$1:$K$2,2,FALSE),"$80"))))+1), ROW(A43))),"") -> 
A46: Hvede Malt | P46: =IFERROR(INDEX($A$3:$A$75, SMALL(IF(ISBLANK(INDIRECT(CONCATENATE("$",HLOOKUP(BrewReport!$E$7,$G$1:$K$2,2,FALSE),"$3:$",HLOOKUP(BrewReport!$E$7,$G$1:$K$2,2,FALSE),"$80"))), "", ROW(INDIRECT(CONCATENATE("$",HLOOKUP(BrewReport!$E$7,$G$1:$K$2,2,FALSE),"$3:$",HLOOKUP(BrewReport!$E$7,$G$1:$K$2,2,FALSE),"$80")))-MIN(ROW(INDIRECT(CONCATENATE("$",HLOOKUP(BrewReport!$E$7,$G$1:$K$2,2,FALSE),"$3:$",HLOOKUP(BrewReport!$E$7,$G$1:$K$2,2,FALSE),"$80"))))+1), ROW(A44))),"") -> 
A47: Wheat | B47: 3 | C47: 3 | D47: 310 | E47: Fylde og skumstabilitet | F47: =IFERROR(VLOOKUP(Malt!$A47,BrewReport!$A$9:$C$18,3,FALSE),0) -> 0 | G47: =F47*N5 -> 0 | H47: =F47*N5 -> 0 | J47: =F47*N16 -> 0 | K47: =F47*N5 -> 0 | P47: =IFERROR(INDEX($A$3:$A$75, SMALL(IF(ISBLANK(INDIRECT(CONCATENATE("$",HLOOKUP(BrewReport!$E$7,$G$1:$K$2,2,FALSE),"$3:$",HLOOKUP(BrewReport!$E$7,$G$1:$K$2,2,FALSE),"$80"))), "", ROW(INDIRECT(CONCATENATE("$",HLOOKUP(BrewReport!$E$7,$G$1:$K$2,2,FALSE),"$3:$",HLOOKUP(BrewReport!$E$7,$G$1:$K$2,2,FALSE),"$80")))-MIN(ROW(INDIRECT(CONCATENATE("$",HLOOKUP(BrewReport!$E$7,$G$1:$K$2,2,FALSE),"$3:$",HLOOKUP(BrewReport!$E$7,$G$1:$K$2,2,FALSE),"$80"))))+1), ROW(A45))),"") -> 
A48: CaraWheat | B48: 3 - 5 | C48: 4 | D48: 310 | F48: =IFERROR(VLOOKUP(Malt!$A48,BrewReport!$A$9:$C$18,3,FALSE),0) -> 0 | G48: =F48*N6 -> 0 | J48: =F48*N15 -> 0 | P48: =IFERROR(INDEX($A$3:$A$75, SMALL(IF(ISBLANK(INDIRECT(CONCATENATE("$",HLOOKUP(BrewReport!$E$7,$G$1:$K$2,2,FALSE),"$3:$",HLOOKUP(BrewReport!$E$7,$G$1:$K$2,2,FALSE),"$80"))), "", ROW(INDIRECT(CONCATENATE("$",HLOOKUP(BrewReport!$E$7,$G$1:$K$2,2,FALSE),"$3:$",HLOOKUP(BrewReport!$E$7,$G$1:$K$2,2,FALSE),"$80")))-MIN(ROW(INDIRECT(CONCATENATE("$",HLOOKUP(BrewReport!$E$7,$G$1:$K$2,2,FALSE),"$3:$",HLOOKUP(BrewReport!$E$7,$G$1:$K$2,2,FALSE),"$80"))))+1), ROW(A46))),"") -> 
A49: Wheat Light | B49: 15 - 20 | C49: 17 | D49: 325 | F49: =IFERROR(VLOOKUP(Malt!$A49,BrewReport!$A$9:$C$18,3,FALSE),0) -> 0 | G49: =F49*N7 -> 0 | I49: =F49*N2 -> 0 | J49: =F49*N16 -> 0 | P49: =IFERROR(INDEX($A$3:$A$75, SMALL(IF(ISBLANK(INDIRECT(CONCATENATE("$",HLOOKUP(BrewReport!$E$7,$G$1:$K$2,2,FALSE),"$3:$",HLOOKUP(BrewReport!$E$7,$G$1:$K$2,2,FALSE),"$80"))), "", ROW(INDIRECT(CONCATENATE("$",HLOOKUP(BrewReport!$E$7,$G$1:$K$2,2,FALSE),"$3:$",HLOOKUP(BrewReport!$E$7,$G$1:$K$2,2,FALSE),"$80")))-MIN(ROW(INDIRECT(CONCATENATE("$",HLOOKUP(BrewReport!$E$7,$G$1:$K$2,2,FALSE),"$3:$",HLOOKUP(BrewReport!$E$7,$G$1:$K$2,2,FALSE),"$80"))))+1), ROW(A47))),"") -> 
A50: Wheat Dark | B50: 15 | C50: 15 | D50: 325 | F50: =IFERROR(VLOOKUP(Malt!$A50,BrewReport!$A$9:$C$18,3,FALSE),0) -> 0 | G50: =F50*N8 -> 0 | I50: =F50*N3 -> 0 | P50: =IFERROR(INDEX($A$3:$A$75, SMALL(IF(ISBLANK(INDIRECT(CONCATENATE("$",HLOOKUP(BrewReport!$E$7,$G$1:$K$2,2,FALSE),"$3:$",HLOOKUP(BrewReport!$E$7,$G$1:$K$2,2,FALSE),"$80"))), "", ROW(INDIRECT(CONCATENATE("$",HLOOKUP(BrewReport!$E$7,$G$1:$K$2,2,FALSE),"$3:$",HLOOKUP(BrewReport!$E$7,$G$1:$K$2,2,FALSE),"$80")))-MIN(ROW(INDIRECT(CONCATENATE("$",HLOOKUP(BrewReport!$E$7,$G$1:$K$2,2,FALSE),"$3:$",HLOOKUP(BrewReport!$E$7,$G$1:$K$2,2,FALSE),"$80"))))+1), ROW(A48))),"") -> 
A51: Wheat Munich | B51: 20 - 30 | C51: 25 | D51: 325 | F51: =IFERROR(VLOOKUP(Malt!$A51,BrewReport!$A$9:$C$18,3,FALSE),0) -> 0 | G51: =F51*N5 -> 0 | I51: =F51*N4 -> 0 | K51: =F51*N5 -> 0 | P51: =IFERROR(INDEX($A$3:$A$75, SMALL(IF(ISBLANK(INDIRECT(CONCATENATE("$",HLOOKUP(BrewReport!$E$7,$G$1:$K$2,2,FALSE),"$3:$",HLOOKUP(BrewReport!$E$7,$G$1:$K$2,2,FALSE),"$80"))), "", ROW(INDIRECT(CONCATENATE("$",HLOOKUP(BrewReport!$E$7,$G$1:$K$2,2,FALSE),"$3:$",HLOOKUP(BrewReport!$E$7,$G$1:$K$2,2,FALSE),"$80")))-MIN(ROW(INDIRECT(CONCATENATE("$",HLOOKUP(BrewReport!$E$7,$G$1:$K$2,2,FALSE),"$3:$",HLOOKUP(BrewReport!$E$7,$G$1:$K$2,2,FALSE),"$80"))))+1), ROW(A49))),"") -> 
A52: Wheat Chit | B52: 3 - 7 | C52: 5 | D52: 325 | F52: =IFERROR(VLOOKUP(Malt!$A52,BrewReport!$A$9:$C$18,3,FALSE),0) -> 0 | G52: =F52*N7 -> 0 | K52: =F52*N12 -> 0 | P52: =IFERROR(INDEX($A$3:$A$75, SMALL(IF(ISBLANK(INDIRECT(CONCATENATE("$",HLOOKUP(BrewReport!$E$7,$G$1:$K$2,2,FALSE),"$3:$",HLOOKUP(BrewReport!$E$7,$G$1:$K$2,2,FALSE),"$80"))), "", ROW(INDIRECT(CONCATENATE("$",HLOOKUP(BrewReport!$E$7,$G$1:$K$2,2,FALSE),"$3:$",HLOOKUP(BrewReport!$E$7,$G$1:$K$2,2,FALSE),"$80")))-MIN(ROW(INDIRECT(CONCATENATE("$",HLOOKUP(BrewReport!$E$7,$G$1:$K$2,2,FALSE),"$3:$",HLOOKUP(BrewReport!$E$7,$G$1:$K$2,2,FALSE),"$80"))))+1), ROW(A50))),"") -> 
A53: Wheat Spelt | B53: 3 - 7 | C53: 5 | D53: 300 | E53: Sødlig nøddeagtig og krydret, jordagtig smag | F53: =IFERROR(VLOOKUP(Malt!$A53,BrewReport!$A$9:$C$18,3,FALSE),0) -> 0 | G53: =F53*N15 -> 0 | H53: =F53*N16 -> 0 | I53: =F53*N16 -> 0 | P53: =IFERROR(INDEX($A$3:$A$75, SMALL(IF(ISBLANK(INDIRECT(CONCATENATE("$",HLOOKUP(BrewReport!$E$7,$G$1:$K$2,2,FALSE),"$3:$",HLOOKUP(BrewReport!$E$7,$G$1:$K$2,2,FALSE),"$80"))), "", ROW(INDIRECT(CONCATENATE("$",HLOOKUP(BrewReport!$E$7,$G$1:$K$2,2,FALSE),"$3:$",HLOOKUP(BrewReport!$E$7,$G$1:$K$2,2,FALSE),"$80")))-MIN(ROW(INDIRECT(CONCATENATE("$",HLOOKUP(BrewReport!$E$7,$G$1:$K$2,2,FALSE),"$3:$",HLOOKUP(BrewReport!$E$7,$G$1:$K$2,2,FALSE),"$80"))))+1), ROW(A51))),"") -> 
A54: Special Malt | P54: =IFERROR(INDEX($A$3:$A$75, SMALL(IF(ISBLANK(INDIRECT(CONCATENATE("$",HLOOKUP(BrewReport!$E$7,$G$1:$K$2,2,FALSE),"$3:$",HLOOKUP(BrewReport!$E$7,$G$1:$K$2,2,FALSE),"$80"))), "", ROW(INDIRECT(CONCATENATE("$",HLOOKUP(BrewReport!$E$7,$G$1:$K$2,2,FALSE),"$3:$",HLOOKUP(BrewReport!$E$7,$G$1:$K$2,2,FALSE),"$80")))-MIN(ROW(INDIRECT(CONCATENATE("$",HLOOKUP(BrewReport!$E$7,$G$1:$K$2,2,FALSE),"$3:$",HLOOKUP(BrewReport!$E$7,$G$1:$K$2,2,FALSE),"$80"))))+1), ROW(A52))),"") -> 
A55: Amber | B55: 80 - 110 | C55: 95 | D55: 290 | F55: =IFERROR(VLOOKUP(Malt!$A55,BrewReport!$A$9:$C$18,3,FALSE),0) -> 0 | G55: =F55*N10 -> 0 | I55: =F55*N7 -> 0 | J55: =F55*N16 -> 0 | P55: =IFERROR(INDEX($A$3:$A$75, SMALL(IF(ISBLANK(INDIRECT(CONCATENATE("$",HLOOKUP(BrewReport!$E$7,$G$1:$K$2,2,FALSE),"$3:$",HLOOKUP(BrewReport!$E$7,$G$1:$K$2,2,FALSE),"$80"))), "", ROW(INDIRECT(CONCATENATE("$",HLOOKUP(BrewReport!$E$7,$G$1:$K$2,2,FALSE),"$3:$",HLOOKUP(BrewReport!$E$7,$G$1:$K$2,2,FALSE),"$80")))-MIN(ROW(INDIRECT(CONCATENATE("$",HLOOKUP(BrewReport!$E$7,$G$1:$K$2,2,FALSE),"$3:$",HLOOKUP(BrewReport!$E$7,$G$1:$K$2,2,FALSE),"$80"))))+1), ROW(A53))),"") -> 
A56: Biscuit | B56: 45 - 70 | C56: 55 | D56: 300 | E56: Kiksesmag, svag smag af black og chokolade | F56: =IFERROR(VLOOKUP(Malt!$A56,BrewReport!$A$9:$C$18,3,FALSE),0) -> 0 | G56: =F56*N10 -> 0 | H56: =F56*N16 -> 0 | J56: =F56*N16 -> 0 | K56: =F56*N9 -> 0 | P56: =IFERROR(INDEX($A$3:$A$75, SMALL(IF(ISBLANK(INDIRECT(CONCATENATE("$",HLOOKUP(BrewReport!$E$7,$G$1:$K$2,2,FALSE),"$3:$",HLOOKUP(BrewReport!$E$7,$G$1:$K$2,2,FALSE),"$80"))), "", ROW(INDIRECT(CONCATENATE("$",HLOOKUP(BrewReport!$E$7,$G$1:$K$2,2,FALSE),"$3:$",HLOOKUP(BrewReport!$E$7,$G$1:$K$2,2,FALSE),"$80")))-MIN(ROW(INDIRECT(CONCATENATE("$",HLOOKUP(BrewReport!$E$7,$G$1:$K$2,2,FALSE),"$3:$",HLOOKUP(BrewReport!$E$7,$G$1:$K$2,2,FALSE),"$80"))))+1), ROW(A54))),"") -> 
A57: Arome | B57: 100 | C57: 100 | D57: 300 | E57: Blød bitterhed | F57: =IFERROR(VLOOKUP(Malt!$A57,BrewReport!$A$9:$C$18,3,FALSE),0) -> 0 | G57: =F57*N10 -> 0 | H57: =F57*N16 -> 0 | I57: =F57*N7 -> 0 | K57: =F57*N7 -> 0 | P57: =IFERROR(INDEX($A$3:$A$75, SMALL(IF(ISBLANK(INDIRECT(CONCATENATE("$",HLOOKUP(BrewReport!$E$7,$G$1:$K$2,2,FALSE),"$3:$",HLOOKUP(BrewReport!$E$7,$G$1:$K$2,2,FALSE),"$80"))), "", ROW(INDIRECT(CONCATENATE("$",HLOOKUP(BrewReport!$E$7,$G$1:$K$2,2,FALSE),"$3:$",HLOOKUP(BrewReport!$E$7,$G$1:$K$2,2,FALSE),"$80")))-MIN(ROW(INDIRECT(CONCATENATE("$",HLOOKUP(BrewReport!$E$7,$G$1:$K$2,2,FALSE),"$3:$",HLOOKUP(BrewReport!$E$7,$G$1:$K$2,2,FALSE),"$80"))))+1), ROW(A55))),"") -> 
A58: Melano Light | B58: 40 | C58: 40 | D58: 310 | E58: Intens maltsmag og fylde | F58: =IFERROR(VLOOKUP(Malt!$A58,BrewReport!$A$9:$C$18,3,FALSE),0) -> 0 | G58: =F58*N10 -> 0 | H58: =F58*N16 -> 0 | P58: =IFERROR(INDEX($A$3:$A$75, SMALL(IF(ISBLANK(INDIRECT(CONCATENATE("$",HLOOKUP(BrewReport!$E$7,$G$1:$K$2,2,FALSE),"$3:$",HLOOKUP(BrewReport!$E$7,$G$1:$K$2,2,FALSE),"$80"))), "", ROW(INDIRECT(CONCATENATE("$",HLOOKUP(BrewReport!$E$7,$G$1:$K$2,2,FALSE),"$3:$",HLOOKUP(BrewReport!$E$7,$G$1:$K$2,2,FALSE),"$80")))-MIN(ROW(INDIRECT(CONCATENATE("$",HLOOKUP(BrewReport!$E$7,$G$1:$K$2,2,FALSE),"$3:$",HLOOKUP(BrewReport!$E$7,$G$1:$K$2,2,FALSE),"$80"))))+1), ROW(A56))),"") -> 
A59: Melano | B59: 80 | C59: 80 | D59: 310 | E59: Intens maltsmag og fylde | F59: =IFERROR(VLOOKUP(Malt!$A59,BrewReport!$A$9:$C$18,3,FALSE),0) -> 0 | G59: =F59*N10 -> 0 | H59: =F59*N17 -> 0 | I59: =F59*N7 -> 0 | J59: =F59*N16 -> 0 | K59: =F59*N9 -> 0 | P59: =IFERROR(INDEX($A$3:$A$75, SMALL(IF(ISBLANK(INDIRECT(CONCATENATE("$",HLOOKUP(BrewReport!$E$7,$G$1:$K$2,2,FALSE),"$3:$",HLOOKUP(BrewReport!$E$7,$G$1:$K$2,2,FALSE),"$80"))), "", ROW(INDIRECT(CONCATENATE("$",HLOOKUP(BrewReport!$E$7,$G$1:$K$2,2,FALSE),"$3:$",HLOOKUP(BrewReport!$E$7,$G$1:$K$2,2,FALSE),"$80")))-MIN(ROW(INDIRECT(CONCATENATE("$",HLOOKUP(BrewReport!$E$7,$G$1:$K$2,2,FALSE),"$3:$",HLOOKUP(BrewReport!$E$7,$G$1:$K$2,2,FALSE),"$80"))))+1), ROW(A57))),"") -> 
A60: Boghvede / Buckwheat | B60: 4 - 6 | C60: 5 | D60: 275 | E60: Malt og nøddeagtig smag. Glutenfri | F60: =IFERROR(VLOOKUP(Malt!$A60,BrewReport!$A$9:$C$18,3,FALSE),0) -> 0 | H60: =F60*N17 -> 0 | I60: =F60*N13 -> 0 | K60: =F60*42 -> 0 | P60: =IFERROR(INDEX($A$3:$A$75, SMALL(IF(ISBLANK(INDIRECT(CONCATENATE("$",HLOOKUP(BrewReport!$E$7,$G$1:$K$2,2,FALSE),"$3:$",HLOOKUP(BrewReport!$E$7,$G$1:$K$2,2,FALSE),"$80"))), "", ROW(INDIRECT(CONCATENATE("$",HLOOKUP(BrewReport!$E$7,$G$1:$K$2,2,FALSE),"$3:$",HLOOKUP(BrewReport!$E$7,$G$1:$K$2,2,FALSE),"$80")))-MIN(ROW(INDIRECT(CONCATENATE("$",HLOOKUP(BrewReport!$E$7,$G$1:$K$2,2,FALSE),"$3:$",HLOOKUP(BrewReport!$E$7,$G$1:$K$2,2,FALSE),"$80"))))+1), ROW(A58))),"") -> 
A61: Sauer / Acid | B61: 3.0 - 7 | C61: 5 | D61: 220 | E61: Rund og stabil smag | F61: =IFERROR(VLOOKUP(Malt!$A61,BrewReport!$A$9:$C$18,3,FALSE),0) -> 0 | G61: =F61*N10 -> 0 | H61: =F61*N17 -> 0 | I61: =F61*N9 -> 0 | J61: =F61*N7 -> 0 | K61: =F61*32 -> 0 | P61: =IFERROR(INDEX($A$3:$A$75, SMALL(IF(ISBLANK(INDIRECT(CONCATENATE("$",HLOOKUP(BrewReport!$E$7,$G$1:$K$2,2,FALSE),"$3:$",HLOOKUP(BrewReport!$E$7,$G$1:$K$2,2,FALSE),"$80"))), "", ROW(INDIRECT(CONCATENATE("$",HLOOKUP(BrewReport!$E$7,$G$1:$K$2,2,FALSE),"$3:$",HLOOKUP(BrewReport!$E$7,$G$1:$K$2,2,FALSE),"$80")))-MIN(ROW(INDIRECT(CONCATENATE("$",HLOOKUP(BrewReport!$E$7,$G$1:$K$2,2,FALSE),"$3:$",HLOOKUP(BrewReport!$E$7,$G$1:$K$2,2,FALSE),"$80"))))+1), ROW(A59))),"") -> 
A62: Chateau Diastatic | B62: 3,5 - 4,5 | C62: 4 | D62: 275 | E62: Enzymer. Hæver udbyttet | F62: =IFERROR(VLOOKUP(Malt!$A62,BrewReport!$A$9:$C$18,3,FALSE),0) -> 0 | K62: =F62*N9 -> 0 | P62: =IFERROR(INDEX($A$3:$A$75, SMALL(IF(ISBLANK(INDIRECT(CONCATENATE("$",HLOOKUP(BrewReport!$E$7,$G$1:$K$2,2,FALSE),"$3:$",HLOOKUP(BrewReport!$E$7,$G$1:$K$2,2,FALSE),"$80"))), "", ROW(INDIRECT(CONCATENATE("$",HLOOKUP(BrewReport!$E$7,$G$1:$K$2,2,FALSE),"$3:$",HLOOKUP(BrewReport!$E$7,$G$1:$K$2,2,FALSE),"$80")))-MIN(ROW(INDIRECT(CONCATENATE("$",HLOOKUP(BrewReport!$E$7,$G$1:$K$2,2,FALSE),"$3:$",HLOOKUP(BrewReport!$E$7,$G$1:$K$2,2,FALSE),"$80"))))+1), ROW(A60))),"") -> 
A63: Abbey | B63: 45 | C63: 45 | D63: 280 | E63: Stærkere smag af kogt brød, nødder og frugt | F63: =IFERROR(VLOOKUP(Malt!$A63,BrewReport!$A$9:$C$18,3,FALSE),0) -> 0 | G63: =F63*N10 -> 0 | H63: =F63*N16 -> 0 | I63: =F63*N2 -> 0 | K63: =F63*N7 -> 0 | P63: =IFERROR(INDEX($A$3:$A$75, SMALL(IF(ISBLANK(INDIRECT(CONCATENATE("$",HLOOKUP(BrewReport!$E$7,$G$1:$K$2,2,FALSE),"$3:$",HLOOKUP(BrewReport!$E$7,$G$1:$K$2,2,FALSE),"$80"))), "", ROW(INDIRECT(CONCATENATE("$",HLOOKUP(BrewReport!$E$7,$G$1:$K$2,2,FALSE),"$3:$",HLOOKUP(BrewReport!$E$7,$G$1:$K$2,2,FALSE),"$80")))-MIN(ROW(INDIRECT(CONCATENATE("$",HLOOKUP(BrewReport!$E$7,$G$1:$K$2,2,FALSE),"$3:$",HLOOKUP(BrewReport!$E$7,$G$1:$K$2,2,FALSE),"$80"))))+1), ROW(A61))),"") -> 
A64: Peated / Røg | B64: 5 - 10 | C64: 7 | D64: 310 | F64: =IFERROR(VLOOKUP(Malt!$A64,BrewReport!$A$9:$C$18,3,FALSE),0) -> 0 | G64: =F64*N10 -> 0 | H64: =F64*N16 -> 0 | I64: =F64*N5 -> 0 | J64: =F64*N15 -> 0 | K64: =F64*N9 -> 0 | P64: =IFERROR(INDEX($A$3:$A$75, SMALL(IF(ISBLANK(INDIRECT(CONCATENATE("$",HLOOKUP(BrewReport!$E$7,$G$1:$K$2,2,FALSE),"$3:$",HLOOKUP(BrewReport!$E$7,$G$1:$K$2,2,FALSE),"$80"))), "", ROW(INDIRECT(CONCATENATE("$",HLOOKUP(BrewReport!$E$7,$G$1:$K$2,2,FALSE),"$3:$",HLOOKUP(BrewReport!$E$7,$G$1:$K$2,2,FALSE),"$80")))-MIN(ROW(INDIRECT(CONCATENATE("$",HLOOKUP(BrewReport!$E$7,$G$1:$K$2,2,FALSE),"$3:$",HLOOKUP(BrewReport!$E$7,$G$1:$K$2,2,FALSE),"$80"))))+1), ROW(A62))),"") -> 
A65: Oat | B65: 2 - 4 | C65: 3 | D65: 310 | E65: Brødsmag, blødhed og fylde. Husk at koge det inden mæskning. | F65: =IFERROR(VLOOKUP(Malt!$A65,BrewReport!$A$9:$C$18,3,FALSE),0) -> 0 | H65: =F65*N17 -> 0 | P65: =IFERROR(INDEX($A$3:$A$75, SMALL(IF(ISBLANK(INDIRECT(CONCATENATE("$",HLOOKUP(BrewReport!$E$7,$G$1:$K$2,2,FALSE),"$3:$",HLOOKUP(BrewReport!$E$7,$G$1:$K$2,2,FALSE),"$80"))), "", ROW(INDIRECT(CONCATENATE("$",HLOOKUP(BrewReport!$E$7,$G$1:$K$2,2,FALSE),"$3:$",HLOOKUP(BrewReport!$E$7,$G$1:$K$2,2,FALSE),"$80")))-MIN(ROW(INDIRECT(CONCATENATE("$",HLOOKUP(BrewReport!$E$7,$G$1:$K$2,2,FALSE),"$3:$",HLOOKUP(BrewReport!$E$7,$G$1:$K$2,2,FALSE),"$80"))))+1), ROW(A63))),"") -> 
A66: Rye | B66: 4 - 10 | C66: 7 | D66: 240 | E66: Lidt rug smag og kompleksitet | F66: =IFERROR(VLOOKUP(Malt!$A66,BrewReport!$A$9:$C$18,3,FALSE),0) -> 0 | G66: =F66*N9 -> 0 | H66: =F66*N15 -> 0 | I66: =F66*N8 -> 0 | K66: =F66*N10 -> 0 | P66: =IFERROR(INDEX($A$3:$A$75, SMALL(IF(ISBLANK(INDIRECT(CONCATENATE("$",HLOOKUP(BrewReport!$E$7,$G$1:$K$2,2,FALSE),"$3:$",HLOOKUP(BrewReport!$E$7,$G$1:$K$2,2,FALSE),"$80"))), "", ROW(INDIRECT(CONCATENATE("$",HLOOKUP(BrewReport!$E$7,$G$1:$K$2,2,FALSE),"$3:$",HLOOKUP(BrewReport!$E$7,$G$1:$K$2,2,FALSE),"$80")))-MIN(ROW(INDIRECT(CONCATENATE("$",HLOOKUP(BrewReport!$E$7,$G$1:$K$2,2,FALSE),"$3:$",HLOOKUP(BrewReport!$E$7,$G$1:$K$2,2,FALSE),"$80"))))+1), ROW(A64))),"") -> 
A67: Barley Chit | B67: 3 - 7 | C67: 5 | D67: 270 | E67: Rig og tør kornagtig smag, Stabilt skum | F67: =IFERROR(VLOOKUP(Malt!$A67,BrewReport!$A$9:$C$18,3,FALSE),0) -> 0 | G67: =F67*N7 -> 0 | K67: =F67*N12 -> 0 | P67: =IFERROR(INDEX($A$3:$A$75, SMALL(IF(ISBLANK(INDIRECT(CONCATENATE("$",HLOOKUP(BrewReport!$E$7,$G$1:$K$2,2,FALSE),"$3:$",HLOOKUP(BrewReport!$E$7,$G$1:$K$2,2,FALSE),"$80"))), "", ROW(INDIRECT(CONCATENATE("$",HLOOKUP(BrewReport!$E$7,$G$1:$K$2,2,FALSE),"$3:$",HLOOKUP(BrewReport!$E$7,$G$1:$K$2,2,FALSE),"$80")))-MIN(ROW(INDIRECT(CONCATENATE("$",HLOOKUP(BrewReport!$E$7,$G$1:$K$2,2,FALSE),"$3:$",HLOOKUP(BrewReport!$E$7,$G$1:$K$2,2,FALSE),"$80"))))+1), ROW(A65))),"") -> 
A68: Barley Flaked | B68: 3 - 7 | C68: 5 | D68: 270 | E68: Rig og tør kornagtig smag, Stabilt skum | F68: =IFERROR(VLOOKUP(Malt!$A68,BrewReport!$A$9:$C$18,3,FALSE),0) -> 0 | G68: =F68*N8 -> 0 | H68: =F68*N16 -> 0 | J68: =F68*N16 -> 0 | P68: =IFERROR(INDEX($A$3:$A$75, SMALL(IF(ISBLANK(INDIRECT(CONCATENATE("$",HLOOKUP(BrewReport!$E$7,$G$1:$K$2,2,FALSE),"$3:$",HLOOKUP(BrewReport!$E$7,$G$1:$K$2,2,FALSE),"$80"))), "", ROW(INDIRECT(CONCATENATE("$",HLOOKUP(BrewReport!$E$7,$G$1:$K$2,2,FALSE),"$3:$",HLOOKUP(BrewReport!$E$7,$G$1:$K$2,2,FALSE),"$80")))-MIN(ROW(INDIRECT(CONCATENATE("$",HLOOKUP(BrewReport!$E$7,$G$1:$K$2,2,FALSE),"$3:$",HLOOKUP(BrewReport!$E$7,$G$1:$K$2,2,FALSE),"$80"))))+1), ROW(A66))),"") -> 
A69: Corn Flaked | B69: 1,5 | C69: 1,5 | D69: 310 | E69: Let smag | F69: =IFERROR(VLOOKUP(Malt!$A69,BrewReport!$A$9:$C$18,3,FALSE),0) -> 0 | G69: =F69*N8 -> 0 | H69: =F69*N16 -> 0 | P69: =IFERROR(INDEX($A$3:$A$75, SMALL(IF(ISBLANK(INDIRECT(CONCATENATE("$",HLOOKUP(BrewReport!$E$7,$G$1:$K$2,2,FALSE),"$3:$",HLOOKUP(BrewReport!$E$7,$G$1:$K$2,2,FALSE),"$80"))), "", ROW(INDIRECT(CONCATENATE("$",HLOOKUP(BrewReport!$E$7,$G$1:$K$2,2,FALSE),"$3:$",HLOOKUP(BrewReport!$E$7,$G$1:$K$2,2,FALSE),"$80")))-MIN(ROW(INDIRECT(CONCATENATE("$",HLOOKUP(BrewReport!$E$7,$G$1:$K$2,2,FALSE),"$3:$",HLOOKUP(BrewReport!$E$7,$G$1:$K$2,2,FALSE),"$80"))))+1), ROW(A67))),"") -> 
A70: Oat Flaked | B70: 3 - 7 | C70: 5 | D70: 310 | E70: Brødsmag, blødhed og fylde. Husk pause i mæskningen. | F70: =IFERROR(VLOOKUP(Malt!$A70,BrewReport!$A$9:$C$18,3,FALSE),0) -> 0 | G70: =F70*N8 -> 0 | H70: =F70*N16 -> 0 | I70: =F70*N16 -> 0 | K70: =F70*32 -> 0 | P70: =IFERROR(INDEX($A$3:$A$75, SMALL(IF(ISBLANK(INDIRECT(CONCATENATE("$",HLOOKUP(BrewReport!$E$7,$G$1:$K$2,2,FALSE),"$3:$",HLOOKUP(BrewReport!$E$7,$G$1:$K$2,2,FALSE),"$80"))), "", ROW(INDIRECT(CONCATENATE("$",HLOOKUP(BrewReport!$E$7,$G$1:$K$2,2,FALSE),"$3:$",HLOOKUP(BrewReport!$E$7,$G$1:$K$2,2,FALSE),"$80")))-MIN(ROW(INDIRECT(CONCATENATE("$",HLOOKUP(BrewReport!$E$7,$G$1:$K$2,2,FALSE),"$3:$",HLOOKUP(BrewReport!$E$7,$G$1:$K$2,2,FALSE),"$80"))))+1), ROW(A68))),"") -> 
A71: Torrefied Oat Flakes | B71: 2,8 - 5 | C71: 4 | D71: 300 | E71: Forbedrer mundfylden og skummet | F71: =IFERROR(VLOOKUP(Malt!$A71,BrewReport!$A$9:$C$18,3,FALSE),0) -> 0 | H71: =F71*N16 -> 0 | P71: =IFERROR(INDEX($A$3:$A$75, SMALL(IF(ISBLANK(INDIRECT(CONCATENATE("$",HLOOKUP(BrewReport!$E$7,$G$1:$K$2,2,FALSE),"$3:$",HLOOKUP(BrewReport!$E$7,$G$1:$K$2,2,FALSE),"$80"))), "", ROW(INDIRECT(CONCATENATE("$",HLOOKUP(BrewReport!$E$7,$G$1:$K$2,2,FALSE),"$3:$",HLOOKUP(BrewReport!$E$7,$G$1:$K$2,2,FALSE),"$80")))-MIN(ROW(INDIRECT(CONCATENATE("$",HLOOKUP(BrewReport!$E$7,$G$1:$K$2,2,FALSE),"$3:$",HLOOKUP(BrewReport!$E$7,$G$1:$K$2,2,FALSE),"$80"))))+1), ROW(A69))),"") -> 
A72: Wheat Flaked | B72: 3,0 - 7,0 | C72: 5 | D72: 290 | E72: Stabilt skum | F72: =IFERROR(VLOOKUP(Malt!$A72,BrewReport!$A$9:$C$18,3,FALSE),0) -> 0 | G72: =F72*N8 -> 0 | H72: =F72*N7 -> 0 | I72: =F72*N12 -> 0 | P72: =IFERROR(INDEX($A$3:$A$75, SMALL(IF(ISBLANK(INDIRECT(CONCATENATE("$",HLOOKUP(BrewReport!$E$7,$G$1:$K$2,2,FALSE),"$3:$",HLOOKUP(BrewReport!$E$7,$G$1:$K$2,2,FALSE),"$80"))), "", ROW(INDIRECT(CONCATENATE("$",HLOOKUP(BrewReport!$E$7,$G$1:$K$2,2,FALSE),"$3:$",HLOOKUP(BrewReport!$E$7,$G$1:$K$2,2,FALSE),"$80")))-MIN(ROW(INDIRECT(CONCATENATE("$",HLOOKUP(BrewReport!$E$7,$G$1:$K$2,2,FALSE),"$3:$",HLOOKUP(BrewReport!$E$7,$G$1:$K$2,2,FALSE),"$80"))))+1), ROW(A70))),"") -> 
A73: Rice Flaked | B73: 0 | C73: 0 | D73: 270 | E73: Masser af stivelse, øger alkohol% | F73: =IFERROR(VLOOKUP(Malt!$A73,BrewReport!$A$9:$C$18,3,FALSE),0) -> 0 | G73: =F73*N8 -> 0 | H73: =F73*N16 -> 0 | I73: =F73*38 -> 0 | J73: =F73*N7 -> 0 | P73: =IFERROR(INDEX($A$3:$A$75, SMALL(IF(ISBLANK(INDIRECT(CONCATENATE("$",HLOOKUP(BrewReport!$E$7,$G$1:$K$2,2,FALSE),"$3:$",HLOOKUP(BrewReport!$E$7,$G$1:$K$2,2,FALSE),"$80"))), "", ROW(INDIRECT(CONCATENATE("$",HLOOKUP(BrewReport!$E$7,$G$1:$K$2,2,FALSE),"$3:$",HLOOKUP(BrewReport!$E$7,$G$1:$K$2,2,FALSE),"$80")))-MIN(ROW(INDIRECT(CONCATENATE("$",HLOOKUP(BrewReport!$E$7,$G$1:$K$2,2,FALSE),"$3:$",HLOOKUP(BrewReport!$E$7,$G$1:$K$2,2,FALSE),"$80"))))+1), ROW(A71))),"") -> 
A74: Whisky 30 - 45 ppm | B74: 30 - 45 | C74: 38 | D74: 300 | E74: Tørv- og røgsmag | F74: =IFERROR(VLOOKUP(Malt!$A74,BrewReport!$A$9:$C$18,3,FALSE),0) -> 0 | H74: =F74*N16 -> 0 | I74: =F74*N7 -> 0 | P74: =IFERROR(INDEX($A$3:$A$75, SMALL(IF(ISBLANK(INDIRECT(CONCATENATE("$",HLOOKUP(BrewReport!$E$7,$G$1:$K$2,2,FALSE),"$3:$",HLOOKUP(BrewReport!$E$7,$G$1:$K$2,2,FALSE),"$80"))), "", ROW(INDIRECT(CONCATENATE("$",HLOOKUP(BrewReport!$E$7,$G$1:$K$2,2,FALSE),"$3:$",HLOOKUP(BrewReport!$E$7,$G$1:$K$2,2,FALSE),"$80")))-MIN(ROW(INDIRECT(CONCATENATE("$",HLOOKUP(BrewReport!$E$7,$G$1:$K$2,2,FALSE),"$3:$",HLOOKUP(BrewReport!$E$7,$G$1:$K$2,2,FALSE),"$80"))))+1), ROW(A72))),"") -> 
A75: Whisky Light 15 - 25 ppm | B75: 15 - 25 | C75: 20 | D75: 300 | E75: Tørv- og røgsmag | F75: =IFERROR(VLOOKUP(Malt!$A75,BrewReport!$A$9:$C$18,3,FALSE),0) -> 0 | H75: =F75*N16 -> 0 | P75: =IFERROR(INDEX($A$3:$A$75, SMALL(IF(ISBLANK(INDIRECT(CONCATENATE("$",HLOOKUP(BrewReport!$E$7,$G$1:$K$2,2,FALSE),"$3:$",HLOOKUP(BrewReport!$E$7,$G$1:$K$2,2,FALSE),"$80"))), "", ROW(INDIRECT(CONCATENATE("$",HLOOKUP(BrewReport!$E$7,$G$1:$K$2,2,FALSE),"$3:$",HLOOKUP(BrewReport!$E$7,$G$1:$K$2,2,FALSE),"$80")))-MIN(ROW(INDIRECT(CONCATENATE("$",HLOOKUP(BrewReport!$E$7,$G$1:$K$2,2,FALSE),"$3:$",HLOOKUP(BrewReport!$E$7,$G$1:$K$2,2,FALSE),"$80"))))+1), ROW(A73))),"") -> 
A76: Ialt | F76: =SUM(F3:F75) -> 5.5 | G76: 110 | H76: 104.5 | I76: 88 | J76: 104.5 | K76: 99 | P76: =IFERROR(INDEX($A$3:$A$75, SMALL(IF(ISBLANK(INDIRECT(CONCATENATE("$",HLOOKUP(BrewReport!$E$7,$G$1:$K$2,2,FALSE),"$3:$",HLOOKUP(BrewReport!$E$7,$G$1:$K$2,2,FALSE),"$80"))), "", ROW(INDIRECT(CONCATENATE("$",HLOOKUP(BrewReport!$E$7,$G$1:$K$2,2,FALSE),"$3:$",HLOOKUP(BrewReport!$E$7,$G$1:$K$2,2,FALSE),"$80")))-MIN(ROW(INDIRECT(CONCATENATE("$",HLOOKUP(BrewReport!$E$7,$G$1:$K$2,2,FALSE),"$3:$",HLOOKUP(BrewReport!$E$7,$G$1:$K$2,2,FALSE),"$80"))))+1), ROW(A69))),"") -> 
A77: Valsning og håndtering | G77: 28 | H77: 0 | I77: 20 | J77: =2 * (F77/1000) -> 0 | K77: 25 | P77: =IFERROR(INDEX($A$3:$A$75, SMALL(IF(ISBLANK(INDIRECT(CONCATENATE("$",HLOOKUP(BrewReport!$E$7,$G$1:$K$2,2,FALSE),"$3:$",HLOOKUP(BrewReport!$E$7,$G$1:$K$2,2,FALSE),"$80"))), "", ROW(INDIRECT(CONCATENATE("$",HLOOKUP(BrewReport!$E$7,$G$1:$K$2,2,FALSE),"$3:$",HLOOKUP(BrewReport!$E$7,$G$1:$K$2,2,FALSE),"$80")))-MIN(ROW(INDIRECT(CONCATENATE("$",HLOOKUP(BrewReport!$E$7,$G$1:$K$2,2,FALSE),"$3:$",HLOOKUP(BrewReport!$E$7,$G$1:$K$2,2,FALSE),"$80"))))+1), ROW(A70))),"") -> 
A78: Forsendelse uden omdeling (Post dk) (<=10kg) | B78: Tast 1 for at vælge fragt > | D78: 1 | G78: =IF(D78=1,59,0) -> 59 | H78: =IF(D78=1,30,0) -> 30 | I78: =IF(D78=1,55,0) -> 55 | J78: =IF(D78=1,49,0) -> 49 | K78: =IF(D78=1,60,0) -> 60 | P78: =IFERROR(INDEX($A$3:$A$75, SMALL(IF(ISBLANK(INDIRECT(CONCATENATE("$",HLOOKUP(BrewReport!$E$7,$G$1:$K$2,2,FALSE),"$3:$",HLOOKUP(BrewReport!$E$7,$G$1:$K$2,2,FALSE),"$80"))), "", ROW(INDIRECT(CONCATENATE("$",HLOOKUP(BrewReport!$E$7,$G$1:$K$2,2,FALSE),"$3:$",HLOOKUP(BrewReport!$E$7,$G$1:$K$2,2,FALSE),"$80")))-MIN(ROW(INDIRECT(CONCATENATE("$",HLOOKUP(BrewReport!$E$7,$G$1:$K$2,2,FALSE),"$3:$",HLOOKUP(BrewReport!$E$7,$G$1:$K$2,2,FALSE),"$80"))))+1), ROW(A71))),"") -> 
A79: Ialt | G79: =SUM(G76:G78) -> 197 | H79: =SUM(H76:H78) -> 134.5 | I79: 163 | J79: 153.5 | K79: 184 | P79: =IFERROR(INDEX($A$3:$A$75, SMALL(IF(ISBLANK(INDIRECT(CONCATENATE("$",HLOOKUP(BrewReport!$E$7,$G$1:$K$2,2,FALSE),"$3:$",HLOOKUP(BrewReport!$E$7,$G$1:$K$2,2,FALSE),"$80"))), "", ROW(INDIRECT(CONCATENATE("$",HLOOKUP(BrewReport!$E$7,$G$1:$K$2,2,FALSE),"$3:$",HLOOKUP(BrewReport!$E$7,$G$1:$K$2,2,FALSE),"$80")))-MIN(ROW(INDIRECT(CONCATENATE("$",HLOOKUP(BrewReport!$E$7,$G$1:$K$2,2,FALSE),"$3:$",HLOOKUP(BrewReport!$E$7,$G$1:$K$2,2,FALSE),"$80"))))+1), ROW(A72))),"") -> 
P80: =IFERROR(INDEX($A$3:$A$75, SMALL(IF(ISBLANK(INDIRECT(CONCATENATE("$",HLOOKUP(BrewReport!$E$7,$G$1:$K$2,2,FALSE),"$3:$",HLOOKUP(BrewReport!$E$7,$G$1:$K$2,2,FALSE),"$80"))), "", ROW(INDIRECT(CONCATENATE("$",HLOOKUP(BrewReport!$E$7,$G$1:$K$2,2,FALSE),"$3:$",HLOOKUP(BrewReport!$E$7,$G$1:$K$2,2,FALSE),"$80")))-MIN(ROW(INDIRECT(CONCATENATE("$",HLOOKUP(BrewReport!$E$7,$G$1:$K$2,2,FALSE),"$3:$",HLOOKUP(BrewReport!$E$7,$G$1:$K$2,2,FALSE),"$80"))))+1), ROW(A73))),"") -> 
P81: =IFERROR(INDEX($A$3:$A$75, SMALL(IF(ISBLANK(INDIRECT(CONCATENATE("$",HLOOKUP(BrewReport!$E$7,$G$1:$K$2,2,FALSE),"$3:$",HLOOKUP(BrewReport!$E$7,$G$1:$K$2,2,FALSE),"$79"))), "", ROW(INDIRECT(CONCATENATE("$",HLOOKUP(BrewReport!$E$7,$G$1:$K$2,2,FALSE),"$3:$",HLOOKUP(BrewReport!$E$7,$G$1:$K$2,2,FALSE),"$79")))-MIN(ROW(INDIRECT(CONCATENATE("$",HLOOKUP(BrewReport!$E$7,$G$1:$K$2,2,FALSE),"$3:$",HLOOKUP(BrewReport!$E$7,$G$1:$K$2,2,FALSE),"$79"))))+1), ROW(A74))),"") -> 
P82: =IFERROR(INDEX(#REF!, SMALL(IF(ISBLANK(INDIRECT(CONCATENATE("$",HLOOKUP(BrewReport!$E$7,$G$1:$K$2,2,FALSE),"$3:$",HLOOKUP(BrewReport!$E$7,$G$1:$K$2,2,FALSE),"$79"))), "", ROW(INDIRECT(CONCATENATE("$",HLOOKUP(BrewReport!$E$7,$G$1:$K$2,2,FALSE),"$3:$",HLOOKUP(BrewReport!$E$7,$G$1:$K$2,2,FALSE),"$79")))-MIN(ROW(INDIRECT(CONCATENATE("$",HLOOKUP(BrewReport!$E$7,$G$1:$K$2,2,FALSE),"$3:$",HLOOKUP(BrewReport!$E$7,$G$1:$K$2,2,FALSE),"$79"))))+1), ROW(#REF!))),"") -> 

Sheet Tilsætninger
A1: Tilsætninger | B1: EBC | C1: EBC Avg. | D1: Udbytte
A2: Sukker | B2: 0 | C2: 0 | D2: 440
A3: Rørsukker | B3: 20 - 30 | C3: 25 | D3: 420
A4: Farin | B4: 50 - 75 | C4: 65 | D4: 420
A5: Muscovado Sukker | B5: 80 - 120 | C5: 100 | D5: 400
A6: Mørk Kandis | B6: 80 - 120 | C6: 80 | D6: 375
A7: Lys Kandis | B7: 0 | C7: 0 | D7: 375
A8: Dansk Honning | B8: 40 | C8: 40 | D8: 375
A9: Appelsinskal | B9: 0 | C9: 0 | D9: 0
A10: Koriander | B10: 0 | C10: 0 | D10: 0
A11: Stjerneanis | B11: 0 | C11: 0 | D11: 0
A12: Kanel | B12: 0 | C12: 0 | D12: 0
A13: Lakrids | B13: 0 | C13: 100 | D13: 0 | E13: Estimat
A14: Lakridsrod | B14: 0 | C14: 0 | D14: 0
A15: Chili Flakes | B15: 0 | C15: 0 | D15: 0
A16: Ege Chips | B16: 0 | C16: 0 | D16: 0
A17: Klar Urt | B17: 0 | C17: 0 | D17: 0

Sheet Gær
A1: Gær Navn | B1: Beskrivelse | C1: Flocculation | D1: Attenuation % | E1: Attenuation Avg. | F1: Temp. Range °C | G1: Alc. Tolerance % | I1: Temp.(°C) | J1: CO2
I2: 0 | J2: 1.71
A3: Wyeast XL1007 German Ale | C3: Low | D3: 73 - 77 | E3: 75 | F3: 13 - 20 | G3: 11 | I3: 1 | J3: 1.66
A4: Wyeast XL1010 American Wheat | C4: Low | D4: 74 - 78 | E4: 76 | F4: 14 - 23 | G4: 10 | I4: 2 | J4: 1.61
A5: Wyeast XL1028 London Ale | C5: Low - Medium | D5: 73 - 77 | E5: 75 | F5: 15 - 22 | G5: 11 | I5: 3 | J5: 1.56
A6: Wyeast XL1056 American Ale | B6: Well balanced. Ferments dry, finishes soft. | C6: Low - Medium | D6: 73 - 77 | E6: 75 | F6: 15 - 22 | G6: 11 | I6: 4 | J6: 1.51
A7: Wyeast XL1084 Irish Ale | C7: Medium | D7: 71 - 75 | E7: 73 | F7: 16 - 22 | G7: 12 | I7: 5 | J7: 1.46
A8: Wyeast XL1098 British Ale | C8: Medium | D8: 73 - 75 | E8: 74 | F8: 18 - 22 | G8: 10 | I8: 6 | J8: 1.39
A9: Wyeast XL1099 Whitbread Ale | C9: Medium - High | D9: 68 - 72 | E9: 70 | F9: 18 - 24 | G9: 10 | I9: 7 | J9: 1.32
A10: Wyeast XL1187 Ringwood Ale | B10: A malty, complex profile that clears well. | C10: High | D10: 68 - 72 | E10: 70 | F10: 18 - 23 | G10: 10 | I10: 8 | J10: 1.28
A11: Wyeast XL1214 Belgian Abbey | C11: Low - Medium | D11: 74 - 78 | E11: 76 | F11: 20 - 24 | G11: 12 | I11: 9 | J11: 1.24
A12: Wyeast XL1272 American Ale II | B12: Slightly nutty, soft, clean and tart finish. | C12: Medium | D12: 72 - 76 | E12: 74 | F12: 15 - 22 | G12: 10 | I12: 10 | J12: 1.2
A13: Wyeast XL1275 Thames Valley Ale | C13: Low - Medium | D13: 72 - 76 | E13: 74 | F13: 16 - 22 | G13: 10 | I13: 11 | J13: 1.17
A14: Wyeast XL1318 London Ale III | C14: High | D14: 71 - 75 | E14: 73 | F14: 18 - 23 | G14: 10 | I14: 12 | J14: 1.13
A15: Wyeast XL1332 Northwest Ale | B15: Malty, mildly fruity, good depth and complexity. | C15: High | D15: 67 - 71 | E15: 69 | F15: 18 - 24 | G15: 10 | I15: 13 | J15: 1.09
A16: Wyeast XL1335 British Ale II | C16: High | D16: 73 - 76 | E16: 74 | F16: 17 - 24 | G16: 10 | I16: 14 | J16: 1.05
A17: Wyeast XL1388 Belgian Strong Ale | C17: Low | D17: 74 - 78 | E17: 76 | F17: 18 - 27 | G17: 13 | I17: 15 | J17: 1.02
A18: Wyeast XL1450 Denny's Favorite 50 | B18: Accentuates malt, caramel, or fruit character. | C18: Low | D18: 74 - 76 | E18: 75 | F18: 15 - 21 | G18: 10 | I18: 16 | J18: 0.99
A19: Wyeast XL1469 West Yorkshire Ale | C19: High | D19: 67 - 71 | E19: 69 | F19: 18 - 22 | G19: 9 | I19: 17 | J19: 0.95
A20: Wyeast XL1728 Scottish Ale | C20: High | D20: 69 - 73 | E20: 71 | F20: 13 - 24 | G20: 12 | I20: 18 | J20: 0.91
A21: Wyeast XL1762 Belgian Abbey II | C21: Medium | D21: 73 - 77 | E21: 75 | F21: 18 - 24 | G21: 12 | I21: 19 | J21: 0.89
A22: Wyeast XL1968 London ESB Ale | C22: Very High | D22: 67 - 71 | E22: 69 | F22: 18 - 22 | G22: 9 | I22: 20 | J22: 0.88
A23: Wyeast XL2000 Budvar Lager | C23: Medium - High | D23: 71 - 75 | E23: 73 | F23: 9 - 13 | G23: 9 | I23: 21 | J23: 0.85
A24: Wyeast XL2001 Urquell Lager | C24: Medium - High | D24: 72 - 76 | E24: 74 | F24: 9 - 13 | G24: 9 | I24: 22 | J24: 0.83
A25: Wyeast XL2007 Pilsen Lager | C25: Medium | D25: 71 - 75 | E25: 73 | F25: 9 - 13 | G25: 9 | I25: 23 | J25: 0.81
A26: Wyeast XL2035 American Lager | C26: Medium | D26: 73 - 77 | E26: 75 | F26: 9 - 14 | G26: 9 | I26: 24 | J26: 0.78
A27: Wyeast XL2042 Danish Lager | C27: Low | D27: 73 - 77 | E27: 75 | F27: 8 - 13 | G27: 9 | I27: 25 | J27: 0.76
A28: Wyeast XL2112 California Lager | C28: High | D28: 67 - 71 | E28: 69 | F28: 14 - 20 | G28: 9 | I28: 26 | J28: 0.74
A29: Wyeast XL2124 Bohemian Lager | C29: Low - Medium | D29: 73 - 77 | E29: 75 | F29: 8 - 22 | G29: 9 | I29: 27 | J29: 0.73
A30: Wyeast XL2206 Bavarian Lager | C30: Medium - High | D30: 73 - 77 | E30: 75 | F30: 8 - 14 | G30: 9
A31: Wyeast XL2278 Czech Pils | C31: Medium - High | D31: 70 - 74 | E31: 72 | F31: 10 - 14 | G31: 9
A32: Wyeast XL2308 Munich Lager | C32: Medium | D32: 70 - 74 | E32: 72 | F32: 9 - 13 | G32: 9
A33: Wyeast XL2565 Kölsch | C33: Low | D33: 73 - 77 | E33: 75 | F33: 13 - 21 | G33: 10
A34: Wyeast XL2633 Octoberfest Lager Blend | C34: Low - Medium | D34: 73 - 77 | E34: 75 | F34: 9 - 14 | G34: 9
A35: Wyeast XL3056 Bavarian Wheat Blend | C35: Medium | D35: 73 - 77 | E35: 75 | F35: 18 - 23 | G35: 10
A36: Wyeast XL3068 Weihenstephan Weizen | C36: Low | D36: 73 - 77 | E36: 75 | F36: 18 - 24 | G36: 10
A37: Wyeast XL3278 Belgian Lambic Blend | C37: Variable | D37: 70 - 80 | E37: 75 | F37: 17 - 24 | G37: 11
A38: Wyeast XL3333 German Wheat | C38: High | D38: 70 - 76 | E38: 73 | F38: 17 - 24 | G38: 10
A39: Wyeast XL3463 Forbidden Fruit | C39: Low | D39: 72 - 76 | E39: 74 | F39: 17 - 24 | G39: 12
A40: Wyeast XL3522 Belgian Ardennes | C40: High | D40: 72 - 76 | E40: 74 | F40: 18 - 24 | G40: 12
A41: Wyeast XL3638 Bavarian Wheat | C41: Low | D41: 70 - 76 | E41: 73 | F41: 18 - 24 | G41: 10
A42: Wyeast XL3711 French Saison | C42: Low | D42: 77 - 83 | E42: 80 | F42: 18 - 25 | G42: 12
A43: Wyeast XL3724 Belgian Saison | C43: Low | D43: 76 - 80 | E43: 78 | F43: 21 - 35 | G43: 12
A44: Wyeast XL3763 Roeselare Ale Blend | C44: Variable | D44: 80 | E44: 80 | F44: 18 - 30 | G44: 11
A45: Wyeast XL3787 Trappist High Gravity | C45: Medium | D45: 74 - 78 | E45: 76 | F45: 18 - 25 | G45: 12
A46: Wyeast XL3942 Belgian Wheat | C46: Medium | D46: 72 - 76 | E46: 74 | F46: 18 - 23 | G46: 12
A47: Wyeast XL3944 Belgian Witbier | C47: Medium | D47: 72 - 76 | E47: 74 | F47: 16 - 24 | G47: 12
A48: Mangrove Jack's Bohemian Lager M84 | B48: Denne gær giver en blød, delikat og velafbalanceret øl, med en tør og ren smag. | C48: High | D48: High | E48: 77 | F48: 10 - 15
A49: Mangrove Jack's California Lager M54 | B49: Producer en ren og klar pilsneraroma, uden de frygtede bismage. Gæren er perfekt til de fleste undergærede øltyper. | C49: Medium - High | D49: 77 - 82 | E49: 80 | F49: 18 - 20 | G49: 8.5
A50: Mangrove Jack's Belgian Abbey Ale M47 | B50: Den har en fantastisk og kraftig frugtaroma, balanceret perfekt med en mild og let krydret aroma, og komplekse og lækre krydrede phenoler. | C50: Medium - High | D50: 73 - 77 | E50: 75 | F50: 18 - 25 | G50: 12
A51: Mangrove Jack's Bavarian Wheat M20 | B51: Giver fine velafbalancerede estere med krydrede aromaer. | C51: Low | D51: Medium | E51: 74 | F51: 18 - 30
A52: Mangrove Jack's Belgian Ale M27 | B52: Meget karakterfuld ølgær med krydrede, frugtige og pebrede noter. | C52: Medium | D52: Very High | E52: 90 | F52: 26 - 32 | G52: 14
A53: Mangrove Jack's Liberty Bell Ale M36 | B53: Ren, neutral og rund I smagen, let pæreagtig aroma, med lidt jordbær eller kiwi blandet i. Rene klare maltaromaer, og med en evne til at fremhæve humlearomaerne | C53: Medium - High | D53: 74 - 78 | E53: 76 | F53: 18 - 23 | G53: 10
A54: Mangrove Jack´s French Saison M29 | B54: Meget karakterfuld ølgær med krydrede, frugtige og pebrede noter. | C54: Medium | D54: Very High | E54: 83 | F54: 26 - 32 | G54: 14
A55: Mangrove Jack´s New World Strong Ale M42 | B55: Gæren har en neutral gæraroma for at sikre, den fulde karakter af malt og humle er fremtrædende i hver øl. Giver en meget klar øl, da gærrester lægger sig fast i bunden og blander sig ikke ved uro i væsken. | C55: Very High | D55: High 77 - 82 | E55: 79 | F55: 16 - 22
A56: Mangrove Jack's Newcastle Dark Ale M03 | B56: Fremmer krop og smag. Gæren giver en fyldig mørk frugt variation. | C56: Medium | D56: Medium | E56: 74 | F56: 18 - 22
A57: Mangrove Jack's US West Coast M44 | B57: Denne gær giver en usædvanlig ren smag, ideel til at humlekarakteren kommer tydelig frem. Citrus og fyrresmag i humle vil blive fremhævet. | C57: High | D57: High | E57: 77 | F57: 18 - 23
A58: Mangrove Jack's Workhorse M10 | B58: Neutral og ren aroma, der er velegnet til alle øltyper. Imiterer lagerøl karakteristika. | C58: Medium | D58: High | E58: 75 | F58: 15 - 32
C62: https://www.wyeastlab.com/hb_yeaststrain.cfm
C64: http://mangrovejacks.com/collections/craft-series-yeasts

Sheet Humle
A1: Humletyper | B1: Blomst / Pellet | C1: Alfa Range % | D1: IBU Avg. | E1: Beta Range % | F1: Co-humulione % | G1: Usage | H1: Brewing usage | I1: Used in | J1: Aroma | K1: Substitutes | M1: Glenn Tinseth's website | P1: Decimal Alpha Acid Utilization vs. Boil Time and Wort Original Gravity
G2: B/A
A3: Admiral | B3: B / P | C3: 13,0 - 16,0 | D3: 14 | E3: 4,0 - 6,0 | F3: 37 - 45 | G3: Ba | H3: A high alpha hop with balanced bitterness and an acceptable aroma profile; mainly bittering, but a versatile replacement for both high alpha and dual purpose varieties | I3: English-style Ale | J3: Pleasant, resinous hop aroma with hints of citrus (orange) and herbal flavors | K3: Target, Northdown, Challenger | M3: Boil Time (min) | N3: Original Gravity
A4: Amarillo | B4: P | C4: 8,0 - 11,0 | D4: 8.5 | E4: 6,0 - 7,0 | F4: 21 - 24 | G4: BA | H4: Unknown origin, but character similar to Cascade. Used for both bitterness and aroma | I4: IPAs, Ales | J4: Floral, tropical, and citrus (lemon, orange and grapefruit) | K4: Cascade, Centennial, Simcoe | N4: 1.03 | O4: 1.04 | P4: 1.05 | Q4: 1.06 | R4: 1.07 | S4: 1.08 | T4: 1.09 | U4: 1.1 | V4: 1.11 | W4: 1.12 | X4: 1.13
A5: Bobek | B5: P | C5: 3,5 - 7,0 | D5: 5 | E5: 4 - 6,1 | F5: 27 - 31 | G5: A | H5: Bobek is a diploid hybrid between Northern Brewer and a TG seedling of unknown origin. | I5: Belgian Ales and Lagers, ESBs, and Pilsners. | J5: Noble aroma of delicate spicy, floral, and piney notes. | K5: Styrian Golding, UK or US Fuggle, Willamette
A6: Bramling X | B6: B | C6: 5,0 - 7,8 | D6: 4.3 | E6: 2,3 - 3,5 | F6: 34 | G6: A | H6: Developed in 1927 from commercial Goldings and wild hop variety. | I6: ESB, Bitters, Pale Ale | J6: Mild, fruity, currant aroma. | K6: East Kent Goldings, Progress, Whitbred
A7: Brewer's Gold | B7: B / P | C7: 5,5 - 10,0 | D7: 5.8 | E7: 3,5 - 4,5 | F7: 37 - 40 | G7: B | H7: Traditional bittering hop. An English variety and sibling of Bullion | I7: English ales and heavy German lagers. | J7: Spicy, fruity characteristics, black currant | K7: Northern Brewer, Galena, Chinook, Eroica, Nugget | M7: 0 | N7: 0 | O7: 0 | P7: 0 | Q7: 0 | R7: 0 | S7: 0 | T7: 0 | U7: 0 | V7: 0 | W7: 0 | X7: 0
A8: Cascade | B8: B / P | C8: 4,5 - 7,0 | D8: 6.3 | E8: 4,5 - 7,0 | F8: 33 - 40 | G8: BA | H8: A hop with Northern Brewers Heritage | I8: American ales and lagers | J8: Strong spicy, floral, grapefruit character | K8: Centennial | M8: 3 | N8: 0.034 | O8: 0.031 | P8: 0.029 | Q8: 0.026 | R8: 0.024 | S8: 0.022 | T8: 0.02 | U8: 0.018 | V8: 0.017 | W8: 0.015 | X8: 0.014
A9: Centennial | B9: B / P | C9: 9,5 - 11,5 | D9: 9.2 | E9: 3,5 - 4,5 | F9: 28 - 30 | G9: BA | H9: General purpose bittering, aroma. Derived from 3/4 Brewer's Gold and contributions of Fuggle, East Kent Golding and others | I9: American ales and Wheats | J9: Floral, citrus aroma, spicy, clean bittering flavor | K9: Cascade, Chinook, Columbus, Galena, Eroica, Nugget, Bullion | M9: 6 | N9: 0.065 | O9: 0.059 | P9: 0.054 | Q9: 0.049 | R9: 0.045 | S9: 0.041 | T9: 0.038 | U9: 0.035 | V9: 0.032 | W9: 0.029 | X9: 0.026
A10: Challenger | B10: P | C10: 6,5 - 9,0 | D10: 6.9 | E10: 3,2 - 4,2 | F10: 20 - 25 | G10: BA | H10: Variant of Northern Brewers heritage Used for: Both aroma and bittering | I10: Ales and lagers | J10: Fruity in flavor, spicy aroma, blends well | M10: 9 | N10: 0.092 | O10: 0.084 | P10: 0.077 | Q10: 0.07 | R10: 0.064 | S10: 0.059 | T10: 0.054 | U10: 0.049 | V10: 0.045 | W10: 0.041 | X10: 0.037
A11: Chinook | B11: P | C11: 12,0 - 14,0 | D11: 13 | E11: 3,0 - 4,0 | F11: 29 - 34 | G11: Ba | H11: Strong versatile bittering hop, but also acceptable aroma | I11: Ales, porters, stouts | J11: Heavy and spicy aroma. Distinct, medium intensity spice and pine characteristics with subtle notes of grapefruit | K11: Columbus, Northern Brewer, Galena, Eroica, Nugget, Bullion | M11: 12 | N11: 0.116 | O11: 0.106 | P11: 0.097 | Q11: 0.088 | R11: 0.081 | S11: 0.074 | T11: 0.068 | U11: 0.062 | V11: 0.056 | W11: 0.052 | X11: 0.047
A12: Citra | B12: P | C12: 9,0 - 13,0 | D12: 9.5 | E12: 3,5 - 4,5 | F12: 22 - 24 | G12: A | H12: Special aroma hops. Comprised of Hallertau Mittelfrüh, US Tettnang, Brewer's Gold and East Kent Golding. Released in 2007 | I12: IPAs | J12: Strong citrus and tropical tones of grapefruit, melon, lime, gooseberry, passion fruit and lychee | M12: 15 | N12: 0.137 | O12: 0.125 | P12: 0.114 | Q12: 0.105 | R12: 0.096 | S12: 0.087 | T12: 0.08 | U12: 0.073 | V12: 0.067 | W12: 0.061 | X12: 0.056
A13: Columbus | B13: P | C13: 14,0 - 16,0 | D13: 13.8 | E13: 4,0 - 5,0 | F13: 30 - 35 | G13: B | H13: High alpha bittering hops. Engineered Centennial Substitute, a descendant of Nugget | I13: Pale Ale | J13: Pungent, black pepper, licorice characteristics with subtle citrus overtones | K13: Chinook, Northern Brewer, Nugget, Galena U.K. Target | M13: 18 | N13: 0.156 | O13: 0.142 | P13: 0.13 | Q13: 0.119 | R13: 0.109 | S13: 0.099 | T13: 0.091 | U13: 0.083 | V13: 0.076 | W13: 0.069 | X13: 0.063
A14: Crystal | B14: P | C14: 3,5 - 5,5 | D14: 4.7 | E14: 4,5 - 6,7 | F14: 20 - 26 | G14: A | H14: Aroma and finishing hops | I14: IPAs and Lagers | J14: Clean, mild, floral, pleasant and slightly spicy | K14: Hallertauer, Mount Hood, Hersbrucker | M14: 21 | N14: 0.173 | O14: 0.158 | P14: 0.144 | Q14: 0.132 | R14: 0.12 | S14: 0.11 | T14: 0.101 | U14: 0.092 | V14: 0.084 | W14: 0.077 | X14: 0.07
A15: East Kent Golding | B15: P | C15: 4,0 - 6,0 | D15: 5.8 | E15: 1,9 - 3,0 | F15: 25 - 30 | G15: A | H15: Defines the English Pale Ales and Ales produced by the region, it is quintessentially English. | I15: English Ale, Porter, Scottish and Irish Ale, Stout, Strong Ale, ESB, Saison, Barleywine | J15: Floral, aromatic, earthy, slightly sweet spicy flavo | K15: First Gold, Fuggles, other Golding varieties, Progress, Target, and Whitbread Golding | M15: 24 | N15: 0.187 | O15: 0.171 | P15: 0.157 | Q15: 0.143 | R15: 0.131 | S15: 0.12 | T15: 0.109 | U15: 0.1 | V15: 0.091 | W15: 0.083 | X15: 0.076
A16: First Gold | B16: B | D16: 6.2
A17: Fuggles | B17: B / P | C17: 3,5 - 6,5 | D17: 4.9 | E17: 2,0 - 4,0 | F17: 27 - 33 | G17: BA | H17: General purpose bittering/aroma. Selected in 1861 by Richard Fuggle | I17: English Ales, Dark Lagers | J17: Mild wood, soft, grassy, floral aroma | K17: East Kent Goldings, Williamette | M17: 27 | N17: 0.201 | O17: 0.183 | P17: 0.168 | Q17: 0.153 | R17: 0.14 | S17: 0.128 | T17: 0.117 | U17: 0.107 | V17: 0.098 | W17: 0.089 | X17: 0.082
A18: Galena | C18: 12,0 - 14,0 | D18: 13 | E18: 7,0 - 9,0 | F18: 37 - 42 | G18: B | H18: General bittering hops. Strong, clean, balanced bittering. | I18: All beers | J18: Spicy, blackcurrant and citrus (grapefruit) tones | K18: Brewer's Gold, Eroica, Northern Brewer, Nugget, Columbus, Chinook | M18: 30 | N18: 0.212 | O18: 0.194 | P18: 0.177 | Q18: 0.162 | R18: 0.148 | S18: 0.135 | T18: 0.124 | U18: 0.113 | V18: 0.103 | W18: 0.094 | X18: 0.086
A19: Golding | B19: P | C19: 4,0 - 6,0 | D19: 5.9 | E19: 2,0 - 3,0 | F19: 20 - 25 | G19: BA | H19: Bittering, aroma and finishing. East Kent Golding | I19: British ales, bitters, porters and stouts. | J19: Mild and delicate with sweet floral characteristics | K19: East Kent Goldings, Fuggles, Willamette, Styrian Golding | M19: 33 | N19: 0.223 | O19: 0.203 | P19: 0.186 | Q19: 0.17 | R19: 0.155 | S19: 0.142 | T19: 0.13 | U19: 0.119 | V19: 0.108 | W19: 0.099 | X19: 0.091
A20: Hallertau Hersbrucker | B20: B / P | C20: 2,0 - 5,0 | D20: 3.8 | E20: 2,5 - 6,0 | F20: 18 - 25 | G20: A | H20: Very good aroma hop | I20: Lager, Pilsner, Bock, Weizen Bock, Wheat, Belgian-Style Ales, Kölsch, Munich Helles | J20: A mild aroma and a low co-humulone content | K20: Strisselspalt, Hallertauter Mittelfruh | M20: 36 | N20: 0.232 | O20: 0.212 | P20: 0.194 | Q20: 0.177 | R20: 0.162 | S20: 0.148 | T20: 0.135 | U20: 0.124 | V20: 0.113 | W20: 0.103 | X20: 0.094
A21: Hallertau Mittelfrüh | B21: B / P | C21: 3,0 - 5,5 | D21: 4.1 | E21: 3,0 - 5,0 | F21: 18 - 28 | G21: A | H21: Mittelfrüh has a traditional European aroma and is one of the Noble Hops | I21: German Pilsner, German Style Lagers | J21: A pleasant herbal, grassy and floral aroma | K21: Hersbrucker | M21: 39 | N21: 0.24 | O21: 0.219 | P21: 0.2 | Q21: 0.183 | R21: 0.167 | S21: 0.153 | T21: 0.14 | U21: 0.128 | V21: 0.117 | W21: 0.107 | X21: 0.098
A22: Magnum | B22: B / P | C22: 11,0 - 16,0 | D22: 13.9 | E22: 5,0 - 7,0 | F22: 21 - 29 | G22: B | H22: Bittering, no distinct aroma | I22: Ales and Lagers | J22: No distinct aroma | K22: Columbus, Horizon, Nugget, German Magnum | M22: 42 | N22: 0.247 | O22: 0.226 | P22: 0.206 | Q22: 0.189 | R22: 0.172 | S22: 0.158 | T22: 0.144 | U22: 0.132 | V22: 0.12 | W22: 0.11 | X22: 0.101
A23: Mosaic | B23: P | C23: 11,5 - 13,5 | D23: 11.4 | E23: 3,2 - 3,9 | F23: 24 - 26 | G23: A | H23: An excellent aroma variety. Daughter of Simcoe | I23: IPAs | J23: A complex array of tropical fruit, citrus, berry, herbal, earthy and pine characteristics | M23: 45 | N23: 0.253 | O23: 0.232 | P23: 0.212 | Q23: 0.194 | R23: 0.177 | S23: 0.162 | T23: 0.148 | U23: 0.135 | V23: 0.123 | W23: 0.113 | X23: 0.103
A24: Mount Hood | B24: P | C24: 4,0 - 8,0 | D24: 5.2 | E24: 5,0 - 7,5 | F24: 22 - 27 | G24: A | H24: An aroma hop variety with similarities to the German Hallertau and Hersbrucker varieties | I24: Lagers | J24: Mild, herbal and somewhat pungent or spicy | K24: Hallertau Mittelfrüh and Hersbrucker | M24: 48 | N24: 0.259 | O24: 0.237 | P24: 0.216 | Q24: 0.198 | R24: 0.181 | S24: 0.165 | T24: 0.151 | U24: 0.138 | V24: 0.126 | W24: 0.115 | X24: 0.105
A25: Northern Brewer | B25: B / P | C25: 7,0 - 10,0 | D25: 8.4 | E25: 3,5 - 5,0 | F25: 27 - 33 | G25: BA | H25: A true dual purpose hop variety | I25: Ales | J25: Medium intensity, pine and mint characteristics | K25: Chinook, US Northern Brewer, Galena | M25: 51 | N25: 0.264 | O25: 0.241 | P25: 0.221 | Q25: 0.202 | R25: 0.184 | S25: 0.169 | T25: 0.154 | U25: 0.141 | V25: 0.129 | W25: 0.118 | X25: 0.108
A26: Nugget | B26: B / P | C26: 12,0 - 14,5 | D26: 11.9 | E26: 4,0 - 6,0 | F26: 22 - 26 | G26: Ba | H26: Bittering, but gaining acceptance as a dual purpose variety | I26: Barley Wine | J26: Mild and pleasant with spicy, herbal tones | K26: Columbus, Galena, Magnum | M26: 54 | N26: 0.269 | O26: 0.246 | P26: 0.224 | Q26: 0.205 | R26: 0.188 | S26: 0.171 | T26: 0.157 | U26: 0.143 | V26: 0.131 | W26: 0.12 | X26: 0.109
A27: Perle | B27: B / P | C27: 6,0 - 10,0 | D27: 7.2 | E27: 2,5 - 5,0 | F27: 28 - 32 | G27: BA | H27: Bred from English Northern Brewer. Often used as a dual purpose hop in a variety of applications | I27: Stout | J27: Slightly spicy with herbal and floral characteristics | K27: Northern Brewer, German Northern Brewer, German Perle | M27: 57 | N27: 0.273 | O27: 0.249 | P27: 0.228 | Q27: 0.208 | R27: 0.19 | S27: 0.174 | T27: 0.159 | U27: 0.145 | V27: 0.133 | W27: 0.121 | X27: 0.111
A28: Saaz | B28: B / P | C28: 3,0 - 4,5 | D28: 3 | E28: 3,0 - 4,5 | F28: 24 - 28 | G28: A | H28: The classic "noble" aroma hop with long and strong traditions, associated with the renowned pilsner lager | I28: Lagers | J28: Very mild, with pleasant earthy, herbal and floral overtones | K28: US Saaz, Sterling, Polish Lublin | M28: 60 | N28: 0.276 | O28: 0.252 | P28: 0.231 | Q28: 0.211 | R28: 0.193 | S28: 0.176 | T28: 0.161 | U28: 0.147 | V28: 0.135 | W28: 0.123 | X28: 0.112
A29: Simcoe | B29: P | C29: 12,0 - 14,0 | D29: 11.7 | E29: 4,0 - 5,0 | F29: 15 - 20 | G29: BA | H29: Known as a bittering hop with a good aroma. Dual Purpose | I29: IPAs | J29: Unique passionfruit, pine, earth and citrus characteristics | K29: Magnum, Summit | M29: 70 | N29: 0.285 | O29: 0.261 | P29: 0.238 | Q29: 0.218 | R29: 0.199 | S29: 0.182 | T29: 0.166 | U29: 0.152 | V29: 0.139 | W29: 0.127 | X29: 0.116
A30: Styrian Golding | B30: P | C30: 2,8 - 5,5 | D30: 5.3 | E30: 2,0 - 3,0 | F30: 25 - 30 | G30: A | H30: A world-renowned aroma hop with widespread usage in both ale and lager brewing | I30: Belgian-style Ales | J30: Very mild, noble hop flavor | K30: Fuggle, Styrian Bobek | M30: 80 | N30: 0.291 | O30: 0.266 | P30: 0.243 | Q30: 0.222 | R30: 0.203 | S30: 0.186 | T30: 0.17 | U30: 0.155 | V30: 0.142 | W30: 0.13 | X30: 0.119
A31: Target | B31: B / P | C31: 8,5 - 13,5 | D31: 12.2 | E31: 4,0 - 5,7 | F31: 37 | G31: B | H31: An excellent bittering hop that tends to be too harsh for aroma purposes late in the boil | I31: Ale | J31: An intense English hop aroma with distinct spicy, floral, sage and citrus characteristics | K31: Fuggle, Willamette | M31: 90 | N31: 0.295 | O31: 0.27 | P31: 0.247 | Q31: 0.226 | R31: 0.206 | S31: 0.188 | T31: 0.172 | U31: 0.157 | V31: 0.144 | W31: 0.132 | X31: 0.12
A32: Tettnanger | B32: B / P | C32: 3,0 - 6,0 | D32: 3.5 | E32: 3,0 - 5,0 | F32: 22 - 29 | G32: A | H32: Traditional noble aroma hop | I32: Belgian-style Ales | J32: Mild and pleasant with balanced earthy, herbal and floral aroma impressions | K32: Saaz, Hersbrucker, Spalt, Select | M32: 120 | N32: 0.301 | O32: 0.275 | P32: 0.252 | Q32: 0.23 | R32: 0.21 | S32: 0.192 | T32: 0.176 | U32: 0.161 | V32: 0.147 | W32: 0.134 | X32: 0.123
A33: Tradition | B33: P | C33: 5,0 - 7,0 | D33: 4.6 | E33: 4,0 - 5,0 | F33: 26 - 29 | G33: A | H33: Aroma Hop. Imparts beer with a harmonic bitterness | I33: Bock | J33: Medium intense floral and herbal (grassy) tones | K33: Liberty, Hallertau Mittelfrüh
A34: Willamette | B34: P | C34: 4,0 - 6,0 | D34: 5.4 | E34: 3,0 - 4,5 | F34: 30 - 35 | G34: A | H34: A quality aroma hop with low alpha content. Triploid seedling of the English Fuggle variety | I34: English-style Ale | J34: Mild and pleasant, with slightly spicy and floral tones | K34: Fuggle, Glacier, Tettnanger, Styrian Golding
M35: To calculate IBUs, the formula is simple: | T35: IBUs = decimal alpha acid utilization * mg/l of added alpha acids
M37: To calculate the concentration of alpha acids you add to the wort: | T37: (mg/l of added alpha acids = decimal AA rating * grams hops * 1000) / volume of finished beer in liters
A38: https://www.hopunion.com/hop-varieties/

Sheet Typer
A1: Ref.: Beer Judge Certification Program | D1: 2008 BJCP Style Guidelines
A2: Style # | C2: Style Name | D2: OG high | E2: OG low | F2: FG high | G2: FG low | H2: ABV high | I2: ABV low | J2: EBC high | K2: EBC low | L2: IBU high | M2: IBU low | N2: RBR | O2: CO2 High | P2: CO2 Low | Q2: CO2 Avg. | R2: Yeast Type | S2: Brief
A4: 1 | B4: A | C4: Lite American Lager | D4: 1040 | E4: 1028 | F4: 1008 | G4: 998 | H4: 4.2 | I4: 2.8 | J4: 6 | K4: 4 | L4: 12 | M4: 8 | N4: 0.34 | O4: 2.73 | P4: 2.57 | Q4: =(P4+O4)/2 -> 2.65 | R4: Lager
A5: 1 | B5: B | C5: Standard American Lager | D5: 1050 | E5: 1040 | F5: 1010 | G5: 1004 | H5: 5.3 | I5: 4.2 | J5: 8 | K5: 4 | L5: 15 | M5: 8 | N5: 0.27 | O5: 2.73 | P5: 2.57 | Q5: 2.65 | R5: Lager
A6: 1 | B6: C | C6: Premium American Lager | D6: 1056 | E6: 1046 | F6: 1012 | G6: 1008 | H6: 6 | I6: 4.6 | J6: 12 | K6: 4 | L6: 25 | M6: 15 | N6: 0.4 | O6: 2.73 | P6: 2.57 | Q6: 2.65 | R6: Lager
A7: 1 | B7: D | C7: Munich Helles | D7: 1051 | E7: 1045 | F7: 1012 | G7: 1008 | H7: 5.4 | I7: 4.7 | J7: 10 | K7: 6 | L7: 22 | M7: 16 | N7: 0.4 | O7: 2.68 | P7: 2.26 | Q7: 2.47 | R7: Lager
A8: 1 | B8: E | C8: Dortmunder Export | D8: 1056 | E8: 1048 | F8: 1015 | G8: 1010 | H8: 6 | I8: 4.8 | J8: 12 | K8: 8 | L8: 30 | M8: 23 | N8: 0.5 | O8: 2.57 | P8: 2.57 | Q8: 2.57 | R8: Lager
A9: 2 | B9: A | C9: German Pilsner | D9: 1050 | E9: 1044 | F9: 1013 | G9: 1008 | H9: 5.2 | I9: 4.4 | J9: 10 | K9: 4 | L9: 45 | M9: 25 | N9: 0.75 | O9: 2.52 | P9: 2.52 | Q9: 2.52 | R9: Lager
A10: 2 | B10: B | C10: Bohemian Pilsner | D10: 1056 | E10: 1044 | F10: 1017 | G10: 1013 | H10: 5.4 | I10: 4.2 | J10: 12 | K10: 7 | L10: 45 | M10: 35 | N10: 0.74 | O10: 2.5 | P10: 2.3 | Q10: 2.4 | R10: Lager
A11: 2 | B11: C | C11: Classic American Pilsner | D11: 1060 | E11: 1044 | F11: 1015 | G11: 1010 | H11: 6 | I11: 4.5 | J11: 12 | K11: 6 | L11: 40 | M11: 25 | N11: 0.62 | O11: 2.5 | P11: 2.3 | Q11: 2.4 | R11: Lager
A12: 3 | B12: A | C12: Vienna Lager | D12: 1052 | E12: 1046 | F12: 1014 | G12: 1010 | H12: 5.5 | I12: 4.5 | J12: 32 | K12: 20 | L12: 30 | M12: 18 | N12: 0.48 | O12: 2.6 | P12: 2.4 | Q12: 2.5 | R12: Lager
A13: 3 | B13: B | C13: Oktoberfest | D13: 1057 | E13: 1050 | F13: 1016 | G13: 1012 | H13: 5.7 | I13: 4.8 | J13: 28 | K13: 14 | L13: 28 | M13: 20 | N13: 0.43 | O13: 2.73 | P13: 2.57 | Q13: 2.65 | R13: Lager
A14: 4 | B14: A | C14: Dark American Lager | D14: 1056 | E14: 1044 | F14: 1012 | G14: 1008 | H14: 6 | I14: 4.2 | J14: 43 | K14: 28 | L14: 20 | M14: 8 | N14: 0.29 | O14: 2.7 | P14: 2.5 | Q14: 2.6 | R14: Lager
A15: 4 | B15: B | C15: Munich Dunkel | D15: 1056 | E15: 1048 | F15: 1016 | G15: 1010 | H15: 5.6 | I15: 4.5 | J15: 55 | K15: 28 | L15: 28 | M15: 18 | N15: 0.43 | O15: 2.66 | P15: 2.21 | Q15: 2.435 | R15: Lager
A16: 4 | B16: C | C16: Schwarzbier | D16: 1052 | E16: 1046 | F16: 1016 | G16: 1010 | H16: 5.4 | I16: 4.4 | J16: 59 | K16: 33 | L16: 32 | M16: 22 | N16: 0.53 | O16: 2.6 | P16: 2.2 | Q16: 2.4 | R16: Lager
A17: 5 | B17: A | C17: Maibock / Helles Bock | D17: 1072 | E17: 1064 | F17: 1018 | G17: 1011 | H17: 7.4 | I17: 6.3 | J17: 22 | K17: 12 | L17: 35 | M17: 23 | N17: 0.43 | O17: 2.73 | P17: 2.16 | Q17: 2.445 | R17: Lager
A18: 5 | B18: B | C18: Bock | D18: 1072 | E18: 1064 | F18: 1019 | G18: 1013 | H18: 7.2 | I18: 6.3 | J18: 43 | K18: 28 | L18: 27 | M18: 20 | N18: 0.34 | O18: 2.7 | P18: 2.2 | Q18: 2.45 | R18: Lager
A19: 5 | B19: C | C19: Doppelbock | D19: 1112 | E19: 1072 | F19: 1024 | G19: 1016 | H19: 10 | I19: 7 | J19: 49 | K19: 12 | L19: 26 | M19: 16 | N19: 0.23 | O19: 2.62 | P19: 2.26 | Q19: 2.44 | R19: Lager
A20: 5 | B20: D | C20: Eisbock | D20: 1120 | E20: 1078 | F20: 1035 | G20: 1020 | H20: 14+ | I20: 9 | J20: 59 | K20: 35 | L20: 35 | M20: 25 | N20: 0.28 | O20: 2.37 | P20: 2.37 | Q20: 2.37 | R20: Lager
A21: 6 | B21: A | C21: Cream Ale | D21: 1055 | E21: 1042 | F21: 1012 | G21: 1006 | H21: 5.6 | I21: 4.2 | J21: 10 | K21: 5 | L21: 20 | M21: 15 | N21: 0.38 | O21: 2.7 | P21: 2.6 | Q21: 2.65 | R21: Ale
A22: 6 | B22: B | C22: Blonde Ale | D22: 1054 | E22: 1038 | F22: 1013 | G22: 1008 | H22: 5.5 | I22: 3.8 | J22: 12 | K22: 6 | L22: 28 | M22: 15 | N22: 0.47 | O22: 2.6 | P22: 2.3 | Q22: 2.45 | R22: Ale
A23: 6 | B23: C | C23: Kölsch | D23: 1050 | E23: 1044 | F23: 1011 | G23: 1007 | H23: 5.2 | I23: 4.4 | J23: 10 | K23: 7 | L23: 30 | M23: 20 | N23: 0.55 | O23: 2.73 | P23: 2.42 | Q23: 2.575 | R23: Kölsch
A24: 6 | B24: D | C24: American Wheat / Rye | D24: 1055 | E24: 1040 | F24: 1013 | G24: 1008 | H24: 5.5 | I24: 4 | J24: 12 | K24: 6 | L24: 30 | M24: 15 | N24: 0.48 | O24: 2.6 | P24: 2.3 | Q24: 2.45 | R24: Ale
A25: 7 | B25: A | C25: Northern German Altbier | D25: 1054 | E25: 1046 | F25: 1015 | G25: 1010 | H25: 5.2 | I25: 4.5 | J25: 37 | K25: 26 | L25: 40 | M25: 25 | N25: 0.63 | O25: 3.09 | P25: 2.16 | Q25: 2.625 | R25: Ale
A26: 7 | B26: B | C26: California Common | D26: 1054 | E26: 1048 | F26: 1014 | G26: 1011 | H26: 5.5 | I26: 4.5 | J26: 28 | K26: 20 | L26: 45 | M26: 30 | N26: 0.72 | O26: 2.8 | P26: 2.4 | Q26: 2.6 | R26: Lager
A27: 7 | B27: C | C27: Düsseldorf Altbier | D27: 1054 | E27: 1046 | F27: 1015 | G27: 1010 | H27: 5.2 | I27: 4.5 | J27: 33 | K27: 22 | L27: 50 | M27: 35 | N27: 0.83 | O27: 3.09 | P27: 2.16 | Q27: 2.625 | R27: Ale
A28: 8 | B28: A | C28: Standard Bitter | D28: 1040 | E28: 1032 | F28: 1011 | G28: 1007 | H28: 3.8 | I28: 3.2 | J28: 28 | K28: 8 | L28: 35 | M28: 25 | N28: 0.81 | O28: 1.3 | P28: 0.75 | Q28: 1.025 | R28: Ale
A29: 8 | B29: B | C29: Best Bitter | D29: 1048 | E29: 1040 | F29: 1012 | G29: 1008 | H29: 4.6 | I29: 3.8 | J29: 32 | K29: 10 | L29: 40 | M29: 25 | N29: 0.74 | O29: 1.3 | P29: 0.75 | Q29: 1.025 | R29: Ale
A30: 8 | B30: C | C30: Strong Bitter | D30: 1060 | E30: 1048 | F30: 1015 | G30: 1010 | H30: 6.2 | I30: 4.6 | J30: 35 | K30: 12 | L30: 50 | M30: 30 | N30: 0.73 | O30: 1.3 | P30: 0.75 | Q30: 1.025 | R30: Ale
A31: 9 | B31: A | C31: Scottish Light | D31: 1035 | E31: 1030 | F31: 1013 | G31: 1010 | H31: 3.2 | I31: 2.5 | J31: 33 | K31: 18 | L31: 20 | M31: 10 | N31: 0.4 | O31: 1.3 | P31: 0.75 | Q31: 1.025 | R31: Ale
A32: 9 | B32: B | C32: Scottish Heavy | D32: 1040 | E32: 1035 | F32: 1015 | G32: 1010 | H32: 3.9 | I32: 3.2 | J32: 33 | K32: 18 | L32: 25 | M32: 10 | N32: 0.42 | O32: 1.3 | P32: 0.75 | Q32: 1.025 | R32: Ale
A33: 9 | B33: C | C33: Scottish Export | D33: 1054 | E33: 1040 | F33: 1016 | G33: 1010 | H33: 5 | I33: 3.9 | J33: 33 | K33: 18 | L33: 30 | M33: 15 | N33: 0.45 | O33: 1.3 | P33: 0.75 | Q33: 1.025 | R33: Ale
A34: 9 | B34: D | C34: Irish Red Ale | D34: 1060 | E34: 1044 | F34: 1014 | G34: 1010 | H34: 6 | I34: 4 | J34: 35 | K34: 18 | L34: 28 | M34: 17 | N34: 0.43 | O34: 2.3 | P34: 1.5 | Q34: 1.9 | R34: Ale
A35: 9 | B35: E | C35: Strong Scotch Ale | D35: 1130 | E35: 1070 | F35: 1056 | G35: 1018 | H35: 10 | I35: 6.5 | J35: 49 | K35: 28 | L35: 35 | M35: 17 | N35: 0.22 | O35: 2.3 | P35: 1.5 | Q35: 1.9 | R35: Ale
A36: 10 | B36: A | C36: American Pale Ale | D36: 1060 | E36: 1045 | F36: 1015 | G36: 1010 | H36: 6.2 | I36: 4.5 | J36: 28 | K36: 10 | L36: 45 | M36: 30 | N36: 0.71 | O36: 2.78 | P36: 2.26 | Q36: =(P36+O36)/2 -> 2.52 | R36: Ale
A37: 10 | B37: B | C37: American Amber Ale | D37: 1060 | E37: 1045 | F37: 1015 | G37: 1010 | H37: 6.2 | I37: 4.5 | J37: 33 | K37: 20 | L37: 40 | M37: 25 | N37: 0.61 | O37: 2.78 | P37: 2.26 | Q37: 2.52 | R37: Ale
A38: 10 | B38: C | C38: American Brown Ale | D38: 1060 | E38: 1045 | F38: 1016 | G38: 1010 | H38: 6.2 | I38: 4.3 | J38: 69 | K38: 35 | L38: 40 | M38: 20 | N38: 0.56 | O38: 2.5 | P38: 1.5 | Q38: 2 | R38: Ale
A39: 11 | B39: A | C39: Mild Ale | D39: 1038 | E39: 1030 | F39: 1013 | G39: 1008 | H39: 4.5 | I39: 2.8 | J39: 49 | K39: 24 | L39: 25 | M39: 10 | N39: 0.47 | O39: 2 | P39: 1.3 | Q39: 1.65 | R39: Ale
A40: 11 | B40: B | C40: Southern English Brown Ale | D40: 1042 | E40: 1033 | F40: 1014 | G40: 1011 | H40: 4.1 | I40: 2.8 | J40: 69 | K40: 37 | L40: 20 | M40: 12 | N40: 0.38 | O40: 2.3 | P40: 1.5 | Q40: 1.9 | R40: Ale
A41: 11 | B41: C | C41: Northern English Brown Ale | D41: 1052 | E41: 1040 | F41: 1013 | G41: 1008 | H41: 5.4 | I41: 4.2 | J41: 43 | K41: 24 | L41: 30 | M41: 20 | N41: 0.54 | O41: 2.3 | P41: 1.5 | Q41: 1.9 | R41: Ale
A42: 12 | B42: A | C42: Brown Porter | D42: 1052 | E42: 1040 | F42: 1014 | G42: 1008 | H42: 5.4 | I42: 4 | J42: 59 | K42: 39 | L42: 35 | M42: 18 | N42: 0.57 | O42: 2.5 | P42: 1.7 | Q42: 2.1 | R42: Ale
A43: 12 | B43: B | C43: Robust Porter | D43: 1065 | E43: 1048 | F43: 1016 | G43: 1012 | H43: 6.5 | I43: 4.8 | J43: 69 | K43: 43 | L43: 50 | M43: 25 | N43: 0.65 | O43: 2.5 | P43: 1.8 | Q43: 2.15 | R43: Ale
A44: 12 | B44: C | C44: Baltic Porter | D44: 1090 | E44: 1060 | F44: 1024 | G44: 1016 | H44: 9.5 | I44: 5.5 | J44: 59 | K44: 33 | L44: 40 | M44: 20 | N44: 0.38 | O44: 2.5 | P44: 1.8 | Q44: 2.15 | R44: Ale
A45: 13 | B45: A | C45: Dry Stout | D45: 1050 | E45: 1036 | F45: 1011 | G45: 1007 | H45: 5 | I45: 4 | J45: 79 | K45: 49 | L45: 45 | M45: 30 | N45: 0.89 | O45: 2 | P45: 1.6 | Q45: 1.8 | R45: Ale
A46: 13 | B46: B | C46: Sweet Stout | D46: 1060 | E46: 1044 | F46: 1024 | G46: 1012 | H46: 6 | I46: 4 | J46: 79 | K46: 59 | L46: 40 | M46: 20 | N46: 0.51 | O46: 2.4 | P46: 2 | Q46: 2.2 | R46: Ale
A47: 13 | B47: C | C47: Oatmeal Stout | D47: 1065 | E47: 1048 | F47: 1018 | G47: 1010 | H47: 5.9 | I47: 4.2 | J47: 79 | K47: 43 | L47: 40 | M47: 25 | N47: 0.56 | O47: 2.4 | P47: 2 | Q47: 2.2 | R47: Ale
A48: 13 | B48: D | C48: Foreign Extra Stout | D48: 1075 | E48: 1056 | F48: 1018 | G48: 1010 | H48: 8 | I48: 5.5 | J48: 79 | K48: 59 | L48: 70 | M48: 30 | N48: 0.77 | O48: 2.6 | P48: 2.3 | Q48: 2.45 | R48: Ale
A49: 13 | B49: E | C49: American Stout | D49: 1075 | E49: 1050 | F49: 1022 | G49: 1010 | H49: 7 | I49: 5 | J49: 79 | K49: 59 | L49: 75 | M49: 35 | N49: 0.85 | O49: 2.6 | P49: 2.3 | Q49: 2.45 | R49: Ale
A50: 13 | B50: F | C50: Russian Imperial Stout | D50: 1115 | E50: 1075 | F50: 1030 | G50: 1018 | H50: 12 | I50: 8 | J50: 79 | K50: 59 | L50: 90 | M50: 50 | N50: 0.71 | O50: 2.3 | P50: 1.5 | Q50: 1.9 | R50: Ale
A51: 14 | B51: A | C51: English IPA | D51: 1075 | E51: 1050 | F51: 1018 | G51: 1010 | H51: 7.5 | I51: 5 | J51: 28 | K51: 16 | L51: 60 | M51: 40 | N51: 0.8 | O51: 2.3 | P51: 1.5 | Q51: 1.9 | R51: Ale
A52: 14 | B52: B | C52: American IPA | D52: 1075 | E52: 1056 | F52: 1018 | G52: 1010 | H52: 7.5 | I52: 5.5 | J52: 30 | K52: 12 | L52: 70 | M52: 40 | N52: 0.85 | O52: 2.3 | P52: 1.5 | Q52: 1.9 | R52: Ale
A53: 14 | B53: C | C53: Imperial IPA | D53: 1090 | E53: 1070 | F53: 1020 | G53: 1010 | H53: 10 | I53: 7.5 | J53: 30 | K53: 16 | L53: 120 | M53: 60 | N53: 1.14 | O53: 2.3 | P53: 1.5 | Q53: 1.9 | R53: Ale
A54: 15 | B54: A | C54: Weizen | D54: 1052 | E54: 1044 | F54: 1014 | G54: 1010 | H54: 5.6 | I54: 4.3 | J54: 16 | K54: 4 | L54: 15 | M54: 8 | N54: 0.23 | O54: 4.48 | P54: 3.6 | Q54: 4.04 | R54: Wheat Ale
A55: 15 | B55: B | C55: Dunkelweizen | D55: 1056 | E55: 1044 | F55: 1014 | G55: 1010 | H55: 5.6 | I55: 4.3 | J55: 45 | K55: 28 | L55: 18 | M55: 10 | N55: 0.28 | O55: 4.48 | P55: 3.6 | Q55: 4.04 | R55: Wheat Ale
A56: 15 | B56: C | C56: Weizenbock | D56: 1090 | E56: 1064 | F56: 1022 | G56: 1015 | H56: 8 | I56: 6.5 | J56: 49 | K56: 24 | L56: 30 | M56: 15 | N56: 0.29 | O56: 4.74 | P56: 3.71 | Q56: 4.225 | R56: Wheat Ale
A57: 15 | B57: D | C57: Roggenbier | D57: 1056 | E57: 1046 | F57: 1014 | G57: 1010 | H57: 6 | I57: 4.5 | J57: 37 | K57: 28 | L57: 20 | M57: 10 | N57: 0.29 | O57: 4.74 | P57: 3.71 | Q57: 4.225 | R57: Wheat Ale
A58: 16 | B58: A | C58: Witbier | D58: 1052 | E58: 1044 | F58: 1012 | G58: 1008 | H58: 5.5 | I58: 4.5 | J58: 8 | K58: 4 | L58: 20 | M58: 10 | N58: 0.32 | O58: 2.6 | P58: 2.1 | Q58: 2.35 | R58: Ale
A59: 16 | B59: B | C59: Belgian Pale Ale | D59: 1054 | E59: 1048 | F59: 1014 | G59: 1010 | H59: 5.5 | I59: 4.8 | J59: 28 | K59: 16 | L59: 30 | M59: 20 | N59: 0.49 | O59: 2.5 | P59: 1.9 | Q59: 2.2 | R59: Ale
A60: 16 | B60: C | C60: Saison | D60: 1065 | E60: 1048 | F60: 1012 | G60: 1002 | H60: 7 | I60: 5 | J60: 28 | K60: 10 | L60: 35 | M60: 20 | N60: 0.54 | O60: 2.4 | P60: 1.9 | Q60: 2.15 | R60: Ale
A61: 16 | B61: D | C61: Bière de Garde | D61: 1080 | E61: 1060 | F61: 1016 | G61: 1008 | H61: 8.5 | I61: 6 | J61: 37 | K61: 12 | L61: 28 | M61: 18 | N61: 0.35 | O61: 2.5 | P61: 1.9 | Q61: 2.2 | R61: Ale
A62: 16 | B62: E | C62: Belgian Specialty Ale | D62: - | E62: - | F62: - | G62: - | H62: - | I62: - | J62: - | K62: - | L62: - | M62: - | N62: - | O62: 2.4 | P62: 1.9 | Q62: 2.15 | R62: Ale
A63: 17 | B63: A | C63: Berliner Weisse | D63: 1032 | E63: 1028 | F63: 1006 | G63: 1003 | H63: 3.8 | I63: 2.8 | J63: 6 | K63: 4 | L63: 8 | M63: 3 | N63: 0.2 | O63: 3.45 | P63: 3.45 | Q63: 3.45 | R63: Ale w. Lactic
A64: 17 | B64: B | C64: Flanders Red Ale | D64: 1057 | E64: 1048 | F64: 1012 | G64: 1002 | H64: 6.5 | I64: 4.6 | J64: 32 | K64: 20 | L64: 25 | M64: 10 | N64: 0.37 | O64: 2.5 | P64: 1.9 | Q64: 2.2 | R64: Ale w. Lactic
A65: 17 | B65: C | C65: Flanders Oud Bruin | D65: 1074 | E65: 1040 | F65: 1012 | G65: 1008 | H65: 8 | I65: 4 | J65: 43 | K65: 30 | L65: 25 | M65: 20 | N65: 0.41 | O65: 2.5 | P65: 1.9 | Q65: 2.2 | R65: Ale w. Lactic
A66: 17 | B66: D | C66: Lambic | D66: 1054 | E66: 1040 | F66: 1010 | G66: 1001 | H66: 6.5 | I66: 5 | J66: 14 | K66: 6 | L66: 10 | M66: 0 | N66: 0.12 | O66: 4.5 | P66: 3 | Q66: 3.75 | R66: Ale w. Lactic
A67: 17 | B67: E | C67: Gueuze | D67: 1060 | E67: 1040 | F67: 1006 | G67: 1000 | H67: 8 | I67: 5 | J67: 14 | K67: 6 | L67: 10 | M67: 0 | N67: 0.12 | O67: 4.5 | P67: 3 | Q67: 3.75 | R67: Ale w. Lactic
A68: 17 | B68: F | C68: Fruit Lambic | D68: 1060 | E68: 1040 | F68: 1010 | G68: 1000 | H68: 7 | I68: 5 | J68: - | K68: - | L68: 10 | M68: 0 | N68: 0.11 | O68: 4.5 | P68: 2.6 | Q68: =(P68+O68)/2 -> 3.55 | R68: Ale w. Lactic
A69: 18 | B69: A | C69: Belgian Blond Ale | D69: 1075 | E69: 1062 | F69: 1018 | G69: 1008 | H69: 7.5 | I69: 6 | J69: 14 | K69: 8 | L69: 30 | M69: 15 | N69: 0.34 | O69: 2.4 | P69: 1.9 | Q69: 2.15 | R69: Ale
A70: 18 | B70: B | C70: Belgian Dubbel | D70: 1075 | E70: 1062 | F70: 1018 | G70: 1008 | H70: 7.6 | I70: 6 | J70: 33 | K70: 20 | L70: 25 | M70: 15 | N70: 0.3 | O70: 2.4 | P70: 1.9 | Q70: 2.15 | R70: Ale
A71: 18 | B71: C | C71: Belgian Tripel | D71: 1085 | E71: 1075 | F71: 1014 | G71: 1008 | H71: 9.5 | I71: 7.5 | J71: 14 | K71: 9 | L71: 40 | M71: 20 | N71: 0.41 | O71: 2.4 | P71: 1.9 | Q71: 2.15 | R71: Ale
A72: 18 | B72: D | C72: Belgian Golden Strong Ale | D72: 1095 | E72: 1070 | F72: 1016 | G72: 1005 | H72: 10.5 | I72: 7.5 | J72: 12 | K72: 6 | L72: 35 | M72: 22 | N72: 0.38 | O72: 2.4 | P72: 1.9 | Q72: 2.15 | R72: Ale
A73: 18 | B73: E | C73: Belgian Dark Strong Ale | D73: 1110 | E73: 1075 | F73: 1024 | G73: 1010 | H73: 11 | I73: 8 | J73: 43 | K73: 24 | L73: 35 | M73: 20 | N73: 0.31 | O73: 2.5 | P73: 1.9 | Q73: 2.2 | R73: Ale
A74: 19 | B74: A | C74: Old Ale | D74: 1090 | E74: 1060 | F74: 1022 | G74: 1015 | H74: 9 | I74: 6 | J74: 43 | K74: 20 | L74: 60 | M74: 30 | N74: 0.58 | O74: 2.3 | P74: 1.5 | Q74: 1.9 | R74: Ale
A75: 19 | B75: B | C75: English Barleywine | D75: 1120 | E75: 1060 | F75: 1030 | G75: 1018 | H75: 12 | I75: 8 | J75: 43 | K75: 16 | L75: 70 | M75: 35 | N75: 0.51 | O75: 2.3 | P75: 1.3 | Q75: 1.8 | R75: Ale
A76: 19 | B76: C | C76: American Barleywine | D76: 1120 | E76: 1080 | F76: 1030 | G76: 1016 | H76: 12 | I76: 8 | J76: 37 | K76: 20 | L76: 120 | M76: 50 | N76: 0.84 | O76: 2.3 | P76: 1.3 | Q76: 1.8 | R76: Ale
A77: 20 | B77: A | C77: Fruit Beer | D77: - | E77: - | F77: - | G77: - | H77: - | I77: - | J77: - | K77: - | L77: - | M77: - | N77: - | O77: 3 | P77: 2 | Q77: 2.5 | R77: Ale
A78: 21 | B78: A | C78: Spice, Herb and Vegetable Beer | D78: - | E78: - | F78: - | G78: - | H78: - | I78: - | J78: - | K78: - | L78: - | M78: - | N78: - | O78: 3 | P78: 2 | Q78: 2.5 | R78: Ale
A79: 21 | B79: B | C79: Christmas / Winter Beer | D79: - | E79: - | F79: - | G79: - | H79: 6+ | I79: - | J79: - | K79: - | L79: - | M79: - | N79: - | O79: 2.3 | P79: 1.9 | Q79: 2.1 | R79: Ale or Lager
A80: 22 | B80: A | C80: Classic Rauchbier | D80: 1057 | E80: 1050 | F80: 1016 | G80: 1012 | H80: 6 | I80: 4.8 | J80: 43 | K80: 24 | L80: 30 | M80: 20 | N80: 0.45 | O80: 2.57 | P80: 2.16 | Q80: 2.365 | R80: Ale
A81: 22 | B81: B | C81: Smoked Beer | D81: - | E81: - | F81: - | G81: - | H81: - | I81: - | J81: - | K81: - | L81: - | M81: - | N81: - | O81: 2.57 | P81: 2.16 | Q81: 2.365 | R81: Ale or Lager
A82: 22 | B82: C | C82: Wood-Aged Beer | D82: - | E82: - | F82: - | G82: - | H82: - | I82: - | J82: - | K82: - | L82: - | M82: - | N82: - | O82: 2.57 | P82: 2.16 | Q82: 2.365 | R82: Ale
A83: 23 | B83: A | C83: Specialty Beer | D83: - | E83: - | F83: - | G83: - | H83: - | I83: - | J83: - | K83: - | L83: - | M83: - | N83: - | O83: 2.5 | P83: 2.2 | Q83: 2.35 | R83: -
C84: · Honey Beers (not Braggots) | D84: - | E84: - | F84: - | G84: - | H84: - | I84: - | J84: - | K84: - | L84: - | M84: - | N84: - | O84: - | P84: - | Q84: - | R84: -
C85: · Wiess (cloudy, young Kölsch) | D85: - | E85: - | F85: - | G85: - | H85: - | I85: - | J85: - | K85: - | L85: - | M85: - | N85: - | O85: 2.73 | P85: 2.42 | Q85: =(P85+O85)/2 -> 2.575 | R85: Kölsch
C86: · Sticke Altbier | D86: - | E86: - | F86: - | G86: - | H86: 5.5 | I86: - | J86: - | K86: - | L86: - | M86: - | N86: - | O86: 3.09 | P86: 2.16 | Q86: 2.625 | R86: Ale
C87: · Münster Altbier | D87: 1049 | E87: - | F87: - | G87: - | H87: 5.1 | I87: - | J87: - | K87: - | L87: 20 | M87: - | N87: - | O87: 3.09 | P87: 2.16 | Q87: 2.625 | R87: Ale
C88: · Imperial Porter | D88: - | E88: - | F88: - | G88: - | H88: - | I88: - | J88: - | K88: - | L88: - | M88: - | N88: - | O88: 3.09 | P88: 2.16 | Q88: 2.625 | R88: Ale
C89: · Classic American Cream Ale | D89: - | E89: - | F89: - | G89: - | H89: - | I89: - | J89: - | K89: - | L89: - | M89: - | N89: - | O89: 2.7 | P89: 2.6 | Q89: 2.65 | R89: Ale
C90: · Czech Dark Lager | D90: - | E90: - | F90: - | G90: - | H90: - | I90: - | J90: - | K90: - | L90: - | M90: - | N90: - | O90: 2.6 | P90: 2.2 | Q90: 2.4 | R90: Lager
C91: · English Pale Mild | D91: - | E91: - | F91: - | G91: - | H91: - | I91: - | J91: - | K91: - | L91: - | M91: - | N91: - | O91: 2 | P91: 1.3 | Q91: 1.65 | R91: Ale
C92: · Scottish 90/- | D92: - | E92: - | F92: - | G92: - | H92: - | I92: - | J92: - | K92: - | L92: - | M92: - | N92: - | O92: 2.3 | P92: 1.5 | Q92: 1.9 | R92: Ale
C93: · American Stock Ale | D93: - | E93: - | F93: - | G93: - | H93: - | I93: - | J93: - | K93: - | L93: - | M93: - | N93: - | O93: 2.78 | P93: 2.26 | Q93: 2.52 | R93: Ale
C94: · English Strong Ale | D94: - | E94: - | F94: - | G94: - | H94: - | I94: - | J94: - | K94: - | L94: - | M94: - | N94: - | O94: 2.3 | P94: 1.5 | Q94: 1.9 | R94: Ale
C95: · Non-alcoholic “Beer” | D95: - | E95: - | F95: - | G95: - | H95: - | I95: - | J95: - | K95: - | L95: - | M95: - | N95: - | O95: - | P95: - | Q95: - | R95: -
C96: · Kellerbier | D96: 1056 | E96: - | F96: 1014 | G96: - | H96: 5.5 | I96: 5 | J96: 39 | K96: 20 | L96: 35 | M96: - | N96: - | O96: 1.3 | P96: 0.75 | Q96: =(P96+O96)/2 -> 1.025 | R96: Lager
C97: · Malt Liquor | D97: - | E97: - | F97: - | G97: - | H97: - | I97: - | J97: - | K97: - | L97: - | M97: - | N97: - | O97: - | P97: - | Q97: - | R97: Lager
C98: · Australian Sparkling Ale | D98: - | E98: - | F98: - | G98: - | H98: - | I98: - | J98: - | K98: - | L98: - | M98: - | N98: - | O98: - | P98: - | Q98: - | R98: Ale
C99: · Imperial/Double Red Ale | D99: - | E99: - | F99: - | G99: - | H99: - | I99: - | J99: - | K99: - | L99: - | M99: - | N99: - | O99: 2.3 | P99: 1.5 | Q99: =(P99+O99)/2 -> 1.9 | R99: Ale
C100: · Imperial/Double Brown Ale | D100: - | E100: - | F100: - | G100: - | H100: - | I100: - | J100: - | K100: - | L100: - | M100: - | N100: - | O100: 2.3 | P100: 1.5 | Q100: =(P100+O100)/2 -> 1.9 | R100: Ale
C101: · Rye IPA | D101: - | E101: - | F101: - | G101: - | H101: - | I101: - | J101: - | K101: - | L101: - | M101: - | N101: - | O101: 2.3 | P101: 1.5 | Q101: =(P101+O101)/2 -> 1.9 | R101: Ale
C102: · Dark American Wheat/Rye | D102: - | E102: - | F102: - | G102: - | H102: - | I102: - | J102: - | K102: - | L102: - | M102: - | N102: - | O102: 2.6 | P102: 2.3 | Q102: =(P102+O102)/2 -> 2.45 | R102: Ale

Sheet Malt X-ref.
B2: WEYERMANN | C2: Castle Malting | D2: MUNTONS | E2: BRIESS | F2: FAWCETT | G2: BAIRDS | H2: CRISP | I2: GAMBRINUS | J2: DINGEMANS
B3: (German) | C3: (Belgian) | D3: (British) | E3: (American) | F3: (British) | G3: (British) | H3: (British) | I3: (Canadian) | J3: (Belgian)
B4: Bohemian Pilsner | C4: Pilsner | D4: Lager | E4: Pilsner | F4: Lager | H4: Lager | J4: Pilsen
B5: Pale | C5: Pale Ale | D5: Pale | E5: Brewers 2-Row | F5: Pale Ale | G5: Pale Ale | H5: Pale | I5: Pale | J5: Pale Ale
C6: Maris Otter Ale | D6: Maris Otter | F6: Maris Otter | I6: ESB
B7: Vienna | C7: Vienna | D7: Mild | E7: Vienna | F7: Vienna | G7: Vienna | H7: Ashburne/Vienna
B8: Abbey | C8: Abbey
B9: Munich Type I, Light | C9: Munich Light | E9: Bonlander | J9: Munich
B10: Munich Type II, Dark | C10: Munich | E10: Munich 10L | I10: Munich 10L
B11: Carafoam/Dextrin | D11: Caramalt | E11: Carapils/Dextrin | F11: Caramalt | H11: Carapils | J11: Cara 8/Carapils
B12: Melanoidin | C12: Melanoidin/ Melano | E12: Victory | F12: Amber | H12: Amber | J12: Aromatic/Biscuit
B13: CaraHell | C13: Cara Blond | D13: Carapils | E13: Crystal 10L
B14: CaraBelge | C14: Melano Light | G14: Light Carastan (10-15L)
B15: CaraRed | C15: Cara Ruby | E15: Crystal 20L | J15: Cara 20/CaraVienne
B16: CaraAmber | C16: Aroma | E16: Victory | I16: Munich 30 | J16: Biscuit
E17: Crystal 30L | F17: Pale Crystal | G17: Carastan
B18: CaraMunich I | C18: Cara Gold | E18: Crystal 40L | F18: Crystal Malt (40 - 50) | J18: Cara 45
B19: CaraMunich II | C19: Cara Gold | D19: Medium Crystal
B20: CaraMunich III | C20: Café Light | E20: Crystal 60L | F20: Crystal Malt II (60 - 70)
B21: CaraBohemian | E21: Crystal 80L | F21: Dark Crystal (85 - 95) | G21: Crystal
E22: Crystal 90L
B23: CaraAroma | C23: Café | D23: Dark Crystal | E23: Crystal 120L | F23: Dark Crystal II (118 - 124) | G23: Dark Crystal
E24: Special Roast | F24: Brown Malt | G24: Brown Malt
E25: Extra Special Roast | J25: Special B
B26: Carafa I, dehusked | C26: Chocolate | F26: Pale Chocolate
B27: Carafa II, dehusked | C27: Black | D27: Chocolate | E27: Chocolate | F27: Chocolate | G27: Chocolate | H27: Chocolate | J27: Chocolate
B28: Carafa III, dehusked | C28: Black | D28: Black Patent | E28: Black Patent | F28: Black Malt | G28: Black Malt | H28: Black | I28: De-Bittered Black
B29: Roasted Barley | C29: Roasted Barley | D29: Roasted Barley | E29: Roasted Barley | F29: Roasted Barley | G29: Roasted Barley
B30: Chocolate Wheat | F30: Roasted Wheat | J30: Roasted Wheat
B31: Pale Wheat, Light | C31: Wheat | D31: Wheat | E31: Wheat | F31: Wheat | H31: Wheat | J31: Pale Wheat
B32: Dark Wheat | C32: Munich Wheat
B33: Caramel Wheat | F33: Crystal Wheat
B34: Chocolate Rye
B35: Rye Malt | E35: Rye Malt | F35: Rye Malt
B36: Caramel Rye
I37: Honey
B38: Acidulated Malt | C38: Acid
B39: Smoked Malt, Beechwood | C39: Smoked | F39: Peated Malt (Peat Smoked)

Sheet Indkøb
B2: Varenavn | C2: Antal | D2: Pris pr. stk. | E2: Pris i alt DKK
B3: Pale Ale Malt EBC 7-9: 1 gram | C3: + 5.500,00 - | D3: 0.02 | E3: 110
B4: Cascade, Alpha: 6,3%: 1 gram | C4: + 65,00 - | D4: 0.5 | E4: 32.5
B5: Mangrove Jack's Californian Lager M54 | C5: + 1,00 - | D5: 20 | E5: 20
B6: Mangrove Jack´s New World Strong Ale M42 | C6: + 1,00 - | D6: 20 | E6: 20
B7: Fragt | E7: 25
B8: Vareværdi i alt DKK | E8: =SUM(E3:E7) -> 207.5
C11: Pris ved 40 flasker | E11: =E8/40 -> 5.1875

Sheet Links
A2: Shopping: | B2: http://brygladen.com/
B3: http://www.hjemmebryggeren.dk/
B4: http://www.albryg.dk/
B5: http://www.bryglageret.dk/
B6: https://brygforretningen.dk/
A8: Opskrifter: | B8: http://www.candisyrup.com/recipes.html
B9: http://www.castlemalting.com/CastleMaltingBeerRecipes.asp?P=94&Language=Danish
A11: Ressource Guides: | B11: https://byo.com/resources
A13: Hops | B13: https://www.hopunion.com/hop-varieties/
B14: http://www.castlemalting.com/CastleMaltingHops.asp?P=105&Language=Danish
A16: Malt | B16: http://www.castlemalting.com/CastleMaltingMalts.asp?P=105&Language=Danish
A18: Malt Descriptions | B18: http://www.beercolor.com/malt_descriptions.htm
A20: Yeast | B20: https://www.wyeastlab.com/hb_yeaststrain.cfm
B21: http://mangrovejacks.com/collections/craft-series-yeasts
B22: https://www.whitelabs.com/beer/homebrew/listings
B23: http://www.fermentis.com/brewing/homebrewing/product-range/
A25: BU:GU / RBR | B25: http://www.madalchemist.com/chart_bitterness_corrected.html
A27: Glenn Tinseth's Website | B27: http://www.realbeer.com/hops/
A29: Beer Judge Certification Program | B29: http://bjcp.org/
